Workbook

Sheet CAMP PILOTO EVOL
A1: PARA DESTACAR UM PILOTO MARQUE/DESMARQUE COM UM "X" AO LADO DO NOME E CLIQUE NO BOTÃO. => | D1: OK | F1: OK | H1: OK | J1: OK | L1: OK | N1: OK | P1: OK | R1: OK | T1: OK | V1: OK | X1: OK | Z1: DIF. LIDER | AA1: DIF. 5º | AB1: DIF. PRÓXIMO | AC1: OK | AE1: DIF. LIDER | AF1: DIF. 5º | AG1: DIF. PRÓXIMO
D2: Etapa 2 11/02/2021 - 21:15 | F2: Etapa 5 13/05/2021 - 21:15 | H2: Etapa 6 10/06/2021 - 20:30 | J2: Etapa 7 22/07/2021 - 21:15 | L2: 8ª etapa | N2: Etapa 9 09/09/2021 - 21:15 | P2: Etapa 10 14/10/2021 - 21:15 | R2: Etapa 11 11/11/2021 - 21:15 | T2: Etapa 12 | V2: Etapa 01 | X2: Etapa 03 | AC2: Etapa 04
F3: 0 | H3: 0 | J3: 0 | L3: 2021-08-12
B4: Nome do (a) Piloto (a) | D4: PILOTO | E4: PONTOS | F4: PILOTO | G4: PONTOS | H4: PILOTO | I4: PONTOS | J4: PILOTO | K4: PONTOS | L4: PILOTO | M4: PONTOS | N4: PILOTO | O4: PONTOS | P4: PILOTO | Q4: PONTOS | R4: PILOTO | S4: PONTOS | T4: PILOTO | U4: PONTOS | V4: PILOTO | W4: PONTOS | X4: PILOTO | Y4: PONTOS | AC4: PILOTO | AD4: PONTOS
B5: Agostinho Neves | C5: 1 | D5: Fernando Mota | E5: 46 | F5: Fernando Mota | G5: 75 | H5: Petronio Jr. | I5: 82 | J5: Lucas Rabelo | K5: 85 | L5: Petronio Jr. | M5: 128 | N5: Lucas Rabelo | O5: 171 | P5: Lucas Rabelo | Q5: 208 | R5: Lucas Rabelo | S5: 248 | T5: Lucas Rabelo | U5: 294 | V5: Lucas Rabelo | W5: 321 | X5: Lucas Rabelo | Y5: 349 | Z5: - | AA5: - | AB5: - | AC5: Lucas Rabelo | AD5: 389 | AE5: - | AF5: - | AG5: -
A6: X | B6: Alexandre Melillo | C6: 2 | D6: Agostinho Neves | E6: 40 | F6: Anderson Teixeira | G6: 70 | H6: Lucas Rabelo | I6: 80 | J6: Petronio Jr. | K6: 82 | L6: Lucas Rabelo | M6: 125 | N6: Petronio Jr. | O6: 163 | P6: Petronio Jr. | Q6: 203 | R6: Petronio Jr. | S6: 236 | T6: Petronio Jr. | U6: 273 | V6: Petronio Jr. | W6: 301 | X6: Rafael Miranda | Y6: 336 | Z6: =Y5-Y6 -> 13 | AA6: - | AB6: =Y5-Y6 -> 13 | AC6: Rafael Miranda | AD6: 382 | AE6: =AD5-AD6 -> 7 | AF6: - | AG6: =AD5-AD6 -> 7
B7: Anderson Oliveira | C7: 3 | D7: Luciano Brandão | E7: 37 | F7: Luciano Brandão | G7: 70 | H7: Fernando Mota | I7: 75 | J7: Marcus Gregorio | K7: 76 | L7: Rafael Miranda | M7: 114 | N7: Rafael Miranda | O7: 154 | P7: Rafael Miranda | Q7: 200 | R7: Rafael Miranda | S7: 228 | T7: Rafael Miranda | U7: 263 | V7: Rafael Miranda | W7: 296 | X7: Alexandre Melillo | Y7: 318 | Z7: =Y5-Y7 -> 31 | AA7: - | AB7: =Y6-Y7 -> 18 | AC7: Alexandre Melillo | AD7: 351 | AE7: =AD5-AD7 -> 38 | AF7: - | AG7: =AD6-AD7 -> 31
A8: X | B8: Anderson Teixeira | C8: 4 | D8: Felipe Curi | E8: 35 | F8: Marcus Gregorio | G8: 66 | H8: Anderson Teixeira | I8: 70 | J8: Anderson Teixeira | K8: 75 | L8: Fernando Mota | M8: 112 | N8: Fernando Mota | O8: 141 | P8: Marcus Gregorio | Q8: 175 | R8: Marcus Gregorio | S8: 212 | T8: Marcus Gregorio | U8: 243 | V8: Alexandre Melillo | W8: 284 | X8: Petronio Jr. | Y8: 314 | Z8: =Y5-Y8 -> 35 | AA8: - | AB8: =Y7-Y8 -> 4 | AC8: Fernando Mota | AD8: 347 | AE8: =AD5-AD8 -> 42 | AF8: - | AG8: =AD7-AD8 -> 4
A9: X | B9: Aparecido Faria | C9: 5 | D9: Alexandre Melillo | E9: 33 | F9: Felipe Curi | G9: 66 | H9: Luciano Brandão | I9: 70 | J9: Fernando Mota | K9: 75 | L9: Anderson Teixeira | M9: 110 | N9: Marcus Gregorio | O9: 140 | P9: Fernando Mota | Q9: 170 | R9: Alexandre Melillo | S9: 210 | T9: Alexandre Melillo | U9: 239 | V9: Marcus Gregorio | W9: 281 | X9: Fernando Mota | Y9: 300 | Z9: =Y5-Y9 -> 49 | AA9: - | AB9: =Y8-Y9 -> 14 | AC9: Anderson Teixeira | AD9: 316 | AE9: =AD5-AD9 -> 73 | AF9: - | AG9: =AD8-AD9 -> 31
B10: Arthur Santiago | C10: 6 | D10: Marcus Gregorio | E10: 31 | F10: Alexandre Melillo | G10: 60 | H10: Marcus Gregorio | I10: 66 | J10: Rafael Miranda | K10: 74 | L10: Marcus Gregorio | M10: 107 | N10: Anderson Teixeira | O10: 134 | P10: Alexandre Melillo | Q10: 165 | R10: Fernando Mota | S10: 196 | T10: Fernando Mota | U10: 236 | V10: Fernando Mota | W10: 265 | X10: Anderson Teixeira | Y10: 292 | Z10: =Y5-Y10 -> 57 | AA10: =Y9-Y10 -> 8 | AB10: =Y9-Y10 -> 8 | AC10: Petronio Jr. | AD10: 314 | AE10: =AD5-AD10 -> 75 | AF10: =AD9-AD10 -> 2 | AG10: =AD9-AD10 -> 2
B11: Bruno Camargos | C11: 7 | D11: Diego Silva | E11: 29 | F11: Rafael Miranda | G11: 56 | H11: Rafael Miranda | I11: 65 | J11: Luciano Brandão | K11: 70 | L11: Felipe Franca | M11: 101 | N11: Alexandre Melillo | O11: 132 | P11: Anderson Teixeira | Q11: 158 | R11: Anderson Teixeira | S11: 193 | T11: Anderson Teixeira | U11: 226 | V11: Anderson Teixeira | W11: 261 | X11: Marcus Gregorio | Y11: 281 | Z11: =Y5-Y11 -> 68 | AA11: =Y9-Y11 -> 19 | AB11: =Y10-Y11 -> 11 | AC11: Felipe Franca | AD11: 282 | AE11: =AD5-AD11 -> 107 | AF11: =AD9-AD11 -> 34 | AG11: =AD10-AD11 -> 32
B12: Diego Silva | C12: 8 | D12: Rafael Miranda | E12: 28 | F12: Agostinho Neves | G12: 55 | H12: Alexandre Melillo | I12: 64 | J12: Felipe Franca | K12: 68 | L12: Agostinho Neves | M12: 96 | N12: Felipe Franca | O12: 124 | P12: Luciano Brandão | Q12: 151 | R12: Luciano Brandão | S12: 176 | T12: Luciano Brandão | U12: 203 | V12: Luciano Brandão | W12: 224 | X12: Agostinho Neves | Y12: 251 | Z12: =Y5-Y12 -> 98 | AA12: =Y9-Y12 -> 49 | AB12: =Y11-Y12 -> 30 | AC12: Marcus Gregorio | AD12: 281 | AE12: =AD5-AD12 -> 108 | AF12: =AD9-AD12 -> 35 | AG12: =AD11-AD12 -> 1
B13: Felipe Curi | C13: 9 | D13: Thales Silva | E13: 27 | F13: Diego Silva | G13: 55 | H13: Diego Silva | I13: 64 | J13: Agostinho Neves | K13: 67 | L13: Alexandre Melillo | M13: 95 | N13: Luciano Brandão | O13: 122 | P13: Felipe Franca | Q13: 137 | R13: Anderson Oliveira | S13: 161 | T13: Anderson Oliveira | U13: 183 | V13: Felipe Franca | W13: 214 | X13: Felipe Franca | Y13: 251 | Z13: =Y5-Y13 -> 98 | AA13: =Y9-Y13 -> 49 | AB13: =Y12-Y13 -> 0 | AC13: Agostinho Neves | AD13: 276 | AE13: =AD5-AD13 -> 113 | AF13: =AD9-AD13 -> 40 | AG13: =AD12-AD13 -> 5
B14: Felipe Franca | C14: 10 | D14: Lúcio Chequer | E14: 26 | F14: Lucas Rabelo | G14: 51 | H14: Felipe Franca | I14: 56 | J14: Alexandre Melillo | K14: 64 | L14: Luciano Brandão | M14: 95 | N14: Agostinho Neves | O14: 111 | P14: Anderson Oliveira | Q14: 136 | R14: Felipe Franca | S14: 158 | T14: Felipe Franca | U14: 183 | V14: Anderson Oliveira | W14: 208 | X14: Anderson Oliveira | Y14: 232 | Z14: =Y5-Y14 -> 117 | AA14: =Y9-Y14 -> 68 | AB14: =Y13-Y14 -> 19 | AC14: Anderson Oliveira | AD14: 258 | AE14: =AD5-AD14 -> 131 | AF14: =AD9-AD14 -> 58 | AG14: =AD13-AD14 -> 18
A15: X | B15: Fernando Mota | C15: 11 | D15: Anderson Oliveira | E15: 25 | F15: Anderson Oliveira | G15: 50 | H15: Agostinho Neves | I15: 55 | J15: Diego Silva | K15: 64 | L15: Diego Silva | M15: 90 | N15: Anderson Oliveira | O15: 111 | P15: Flavio Magalhães | Q15: 124 | R15: Flavio Magalhães | S15: 155 | T15: Flavio Magalhães | U15: 176 | V15: Agostinho Neves | W15: 206 | X15: Luciano Brandão | Y15: 224 | Z15: =Y5-Y15 -> 125 | AA15: =Y9-Y15 -> 76 | AB15: =Y14-Y15 -> 8 | AC15: Lúcio Chequer | AD15: 246 | AE15: =AD5-AD15 -> 143 | AF15: =AD9-AD15 -> 70 | AG15: =AD14-AD15 -> 12
B16: Flavio Magalhães | C16: 12 | D16: Anderson Teixeira | E16: 24 | F16: Petronio Jr. | G16: 49 | H16: Anderson Oliveira | I16: 53 | J16: Anderson Oliveira | K16: 53 | L16: Felipe Curi | M16: 83 | N16: Flavio Magalhães | O16: 98 | P16: Leodegario Junior | Q16: 121 | R16: Diego Silva | S16: 149 | T16: Lúcio Chequer | U16: 171 | V16: Flavio Magalhães | W16: 200 | X16: Lúcio Chequer | Y16: 221 | Z16: =Y5-Y16 -> 128 | AA16: =Y9-Y16 -> 79 | AB16: =Y15-Y16 -> 3 | AC16: Luciano Brandão | AD16: 224 | AE16: =AD5-AD16 -> 165 | AF16: =AD9-AD16 -> 92 | AG16: =AD15-AD16 -> 22
B17: Gladystone Reis | C17: 13 | D17: Leodegario Junior | E17: 23 | F17: Thales Silva | G17: 49 | H17: Felipe Curi | I17: 52 | J17: Felipe Curi | K17: 52 | L17: Anderson Oliveira | M17: 80 | N17: Leodegario Junior | O17: 93 | P17: Lúcio Chequer | Q17: 117 | R17: Lúcio Chequer | S17: 143 | T17: Agostinho Neves | U17: 166 | V17: Lúcio Chequer | W17: 194 | X17: Flavio Magalhães | Y17: 200 | Z17: =Y5-Y17 -> 149 | AA17: =Y9-Y17 -> 100 | AB17: =Y16-Y17 -> 21 | AC17: Flavio Magalhães | AD17: 200 | AE17: =AD5-AD17 -> 189 | AF17: =AD9-AD17 -> 116 | AG17: =AD16-AD17 -> 24
B18: João Ferreira | C18: 14 | D18: Gladystone Reis | E18: 22 | F18: Felipe Franca | G18: 44 | H18: Thales Silva | I18: 49 | J18: Thales Silva | K18: 49 | L18: Flavio Magalhães | M18: 73 | N18: Diego Silva | O18: 90 | P18: Diego Silva | Q18: 115 | R18: Agostinho Neves | S18: 140 | T18: Leodegario Junior | U18: 164 | V18: Leodegario Junior | W18: 186 | X18: Leodegario Junior | Y18: 186 | Z18: =Y5-Y18 -> 163 | AA18: =Y9-Y18 -> 114 | AB18: =Y17-Y18 -> 14 | AC18: Gabriel Gontijo | AD18: 195 | AE18: =AD5-AD18 -> 194 | AF18: =AD9-AD18 -> 121 | AG18: =AD17-AD18 -> 5
B19: Leandro Leite | C19: 15 | D19: Felipe Franca | E19: 21 | F19: Leodegario Junior | G19: 42 | H19: Leodegario Junior | I19: 46 | J19: Flavio Magalhães | K19: 48 | L19: Thales Silva | M19: 70 | N19: Gabriel Gontijo | O19: 89 | P19: Gabriel Gontijo | Q19: 113 | R19: Leodegario Junior | S19: 140 | T19: Diego Silva | U19: 149 | V19: Vitor Diniz | W19: 165 | X19: Gabriel Gontijo | Y19: 166 | Z19: =Y5-Y19 -> 183 | AA19: =Y9-Y19 -> 134 | AB19: =Y18-Y19 -> 20 | AC19: Leodegario Junior | AD19: 186 | AE19: =AD5-AD19 -> 203 | AF19: =AD9-AD19 -> 130 | AG19: =AD18-AD19 -> 9
B20: Leodegario Junior | C20: 16 | D20: Arthur Santiago | E20: 20 | F20: Arthur Santiago | G20: 40 | H20: Mathias Almeida | I20: 41 | J20: Leodegario Junior | K20: 46 | L20: Leodegario Junior | M20: 69 | N20: Lúcio Chequer | O20: 86 | P20: Agostinho Neves | Q20: 111 | R20: Gabriel Gontijo | S20: 140 | T20: Gabriel Gontijo | U20: 140 | V20: Diego Silva | W20: 149 | X20: Vitor Diniz | Y20: 165 | Z20: =Y5-Y20 -> 184 | AA20: =Y9-Y20 -> 135 | AB20: =Y19-Y20 -> 1 | AC20: Gladystone Reis | AD20: 173 | AE20: =AD5-AD20 -> 216 | AF20: =AD9-AD20 -> 143 | AG20: =AD19-AD20 -> 13
B21: Lucas Mourão | C21: 17 | D21: Mathias Almeida | E21: 19 | F21: Mathias Almeida | G21: 40 | H21: Arthur Santiago | I21: 40 | J21: Bruno Camargos | K21: 44 | L21: Gabriel Gontijo | M21: 67 | N21: Felipe Curi | O21: 83 | P21: Gladystone Reis | Q21: 96 | R21: Gladystone Reis | S21: 120 | T21: Vitor Diniz | U21: 139 | V21: Gabriel Gontijo | W21: 140 | X21: Diego Silva | Y21: 149 | Z21: =Y5-Y21 -> 200 | AA21: =Y9-Y21 -> 151 | AB21: =Y20-Y21 -> 16 | AC21: Vitor Diniz | AD21: 165 | AE21: =AD5-AD21 -> 224 | AF21: =AD9-AD21 -> 151 | AG21: =AD20-AD21 -> 8
A22: X | B22: Lucas Rabelo | C22: 18 | D22: Bruno Camargos | E22: 18 | F22: Gladystone Reis | G22: 38 | H22: Bruno Camargos | I22: 40 | J22: Arthur Santiago | K22: 43 | L22: Arthur Santiago | M22: 63 | N22: Gladystone Reis | O22: 80 | P22: Bruno Camargos | Q22: 93 | R22: Vitor Diniz | S22: 119 | T22: Gladystone Reis | U22: 120 | V22: Gladystone Reis | W22: 120 | X22: Gladystone Reis | Y22: 145 | Z22: =Y5-Y22 -> 204 | AA22: =Y9-Y22 -> 155 | AB22: =Y21-Y22 -> 4 | AC22: Aparecido Faria | AD22: 154 | AE22: =AD5-AD22 -> 235 | AF22: =AD9-AD22 -> 162 | AG22: =AD21-AD22 -> 11
B23: Luciano Brandão | C23: 19 | D23: Lucas Mourão | E23: 17 | F23: Bruno Camargos | G23: 36 | H23: Gladystone Reis | I23: 40 | J23: Gabriel Gontijo | K23: 43 | L23: Bruno Camargos | M23: 62 | N23: Bruno Camargos | O23: 75 | P23: Vitor Diniz | Q23: 91 | R23: Bruno Camargos | S23: 93 | T23: Bruno Camargos | U23: 112 | V23: Bruno Camargos | W23: 112 | X23: Aparecido Faria | Y23: 127 | Z23: =Y5-Y23 -> 222 | AA23: =Y9-Y23 -> 173 | AB23: =Y22-Y23 -> 18 | AC23: Diego Silva | AD23: 149 | AE23: =AD5-AD23 -> 240 | AF23: =AD9-AD23 -> 167 | AG23: =AD22-AD23 -> 5
B24: Lúcio Chequer | C24: 20 | D24: João Ferreira | E24: 16 | F24: Lúcio Chequer | G24: 33 | H24: Matheus Dias | I24: 39 | J24: Gladystone Reis | K24: 41 | L24: Lúcio Chequer | M24: 60 | N24: Thales Silva | O24: 70 | P24: Arthur Santiago | Q24: 90 | R24: Arthur Santiago | S24: 90 | T24: Arthur Santiago | U24: 90 | V24: Aparecido Faria | W24: 98 | X24: Bruno Camargos | Y24: 112 | Z24: =Y5-Y24 -> 237 | AA24: =Y9-Y24 -> 188 | AB24: =Y23-Y24 -> 15 | AC24: Bruno Camargos | AD24: 112 | AE24: =AD5-AD24 -> 277 | AF24: =AD9-AD24 -> 204 | AG24: =AD23-AD24 -> 37
B25: Luis Cáceres | C25: 21 | D25: Pericles Barcelos | E25: 15 | F25: Lucas Mourão | G25: 31 | H25: Lúcio Chequer | I25: 34 | J25: Mathias Almeida | K25: 41 | L25: Gladystone Reis | M25: 59 | N25: Vitor Diniz | O25: 68 | P25: Felipe Curi | Q25: 83 | R25: Felipe Curi | S25: 83 | T25: Felipe Curi | U25: 83 | V25: Arthur Santiago | W25: 90 | X25: Arthur Santiago | Y25: 90 | Z25: =Y5-Y25 -> 259 | AA25: =Y9-Y25 -> 210 | AB25: =Y24-Y25 -> 22 | AC25: Arthur Santiago | AD25: 90 | AE25: =AD5-AD25 -> 299 | AF25: =AD9-AD25 -> 226 | AG25: =AD24-AD25 -> 22
B26: Marcus Gregorio | C26: 22 | D26: Matheus Dias | E26: 14 | F26: Matheus Dias | G26: 31 | H26: Lucas Mourão | I26: 31 | J26: Matheus Dias | K26: 39 | L26: Mathias Almeida | M26: 57 | N26: Arthur Santiago | O26: 63 | P26: Thales Silva | Q26: 70 | R26: Thales Silva | S26: 70 | T26: Aparecido Faria | U26: 78 | V26: Felipe Curi | W26: 83 | X26: Felipe Curi | Y26: 83 | Z26: =Y5-Y26 -> 266 | AA26: =Y9-Y26 -> 217 | AB26: =Y25-Y26 -> 7 | AC26: Felipe Curi | AD26: 83 | AE26: =AD5-AD26 -> 306 | AF26: =AD9-AD26 -> 233 | AG26: =AD25-AD26 -> 7
B27: Matheus Dias | C27: 23 | D27: Wilson Cristofani | E27: 14 | F27: Aparecido Faria | G27: 24 | H27: Aparecido Faria | I27: 24 | J27: Lucas Mourão | K27: 38 | L27: Matheus Dias | M27: 56 | N27: Mathias Almeida | O27: 57 | P27: Mathias Almeida | Q27: 57 | R27: Mathias Almeida | S27: 57 | T27: Thales Silva | U27: 70 | V27: Thales Silva | W27: 70 | X27: Thales Silva | Y27: 70 | Z27: =Y5-Y27 -> 279 | AA27: =Y9-Y27 -> 230 | AB27: =Y26-Y27 -> 13 | AC27: Thales Silva | AD27: 70 | AE27: =AD5-AD27 -> 319 | AF27: =AD9-AD27 -> 246 | AG27: =AD26-AD27 -> 13
B28: Mathias Almeida | C28: 24 | D28: Petronio Jr. | E28: 12 | F28: João Ferreira | G28: 16 | H28: Flavio Magalhães | I28: 20 | J28: Lúcio Chequer | K28: 34 | L28: Aparecido Faria | M28: 55 | N28: Matheus Dias | O28: 56 | P28: Matheus Dias | Q28: 56 | R28: Matheus Dias | S28: 56 | T28: Mathias Almeida | U28: 57 | V28: Mathias Almeida | W28: 57 | X28: Mathias Almeida | Y28: 57 | Z28: =Y5-Y28 -> 292 | AA28: =Y9-Y28 -> 243 | AB28: =Y27-Y28 -> 13 | AC28: Mathias Almeida | AD28: 57 | AE28: =AD5-AD28 -> 332 | AF28: =AD9-AD28 -> 259 | AG28: =AD27-AD28 -> 13
B29: Pericles Barcelos | C29: 25 | D29: Lucas Rabelo | E29: 11 | F29: Pericles Barcelos | G29: 15 | H29: Gabriel Gontijo | I29: 19 | J29: Aparecido Faria | K29: 24 | L29: Lucas Mourão | M29: 52 | N29: Aparecido Faria | O29: 55 | P29: Aparecido Faria | Q29: 55 | R29: Aparecido Faria | S29: 55 | T29: Matheus Dias | U29: 56 | V29: Matheus Dias | W29: 56 | X29: Matheus Dias | Y29: 56 | Z29: =Y5-Y29 -> 293 | AA29: =Y9-Y29 -> 244 | AB29: =Y28-Y29 -> 1 | AC29: Matheus Dias | AD29: 56 | AE29: =AD5-AD29 -> 333 | AF29: =AD9-AD29 -> 260 | AG29: =AD28-AD29 -> 1
B30: Petronio Jr. | C30: 26 | D30: Aparecido Faria | E30: 0 | F30: Wilson Cristofani | G30: 14 | H30: João Ferreira | I30: 16 | J30: Vitor Diniz | K30: 20 | L30: Vitor Diniz | M30: 42 | N30: Lucas Mourão | O30: 52 | P30: Lucas Mourão | Q30: 52 | R30: Lucas Mourão | S30: 52 | T30: Lucas Mourão | U30: 52 | V30: Lucas Mourão | W30: 52 | X30: Lucas Mourão | Y30: 52 | Z30: =Y5-Y30 -> 297 | AA30: =Y9-Y30 -> 248 | AB30: =Y29-Y30 -> 4 | AC30: Lucas Mourão | AD30: 52 | AE30: =AD5-AD30 -> 337 | AF30: =AD9-AD30 -> 264 | AG30: =AD29-AD30 -> 4
A31: X | B31: Rafael Miranda | C31: 27 | D31: Flavio Magalhães | E31: 0 | F31: Flavio Magalhães | G31: 0 | H31: Pericles Barcelos | I31: 15 | J31: Pericles Barcelos | K31: 17 | L31: João Ferreira | M31: 37 | N31: Wilson Cristofani | O31: 42 | P31: Wilson Cristofani | Q31: 42 | R31: Wilson Cristofani | S31: 42 | T31: Wilson Cristofani | U31: 42 | V31: Wilson Cristofani | W31: 42 | X31: Wilson Cristofani | Y31: 42 | Z31: =Y5-Y31 -> 307 | AA31: =Y9-Y31 -> 258 | AB31: =Y30-Y31 -> 10 | AC31: Wilson Cristofani | AD31: 42 | AE31: =AD5-AD31 -> 347 | AF31: =AD9-AD31 -> 274 | AG31: =AD30-AD31 -> 10
B32: Robert Freitas | C32: 28 | D32: Leandro Leite | E32: 0 | F32: Leandro Leite | G32: 0 | H32: Wilson Cristofani | I32: 14 | J32: João Ferreira | K32: 16 | L32: Pericles Barcelos | M32: 32 | N32: João Ferreira | O32: 37 | P32: João Ferreira | Q32: 37 | R32: João Ferreira | S32: 37 | T32: João Ferreira | U32: 37 | V32: João Ferreira | W32: 37 | X32: João Ferreira | Y32: 37 | Z32: =Y5-Y32 -> 312 | AA32: =Y9-Y32 -> 263 | AB32: =Y31-Y32 -> 5 | AC32: João Ferreira | AD32: 37 | AE32: =AD5-AD32 -> 352 | AF32: =AD9-AD32 -> 279 | AG32: =AD31-AD32 -> 5
B33: Thales Silva | C33: 29 | D33: Robert Freitas | E33: 0 | F33: Robert Freitas | G33: 0 | H33: Leandro Leite | I33: 0 | J33: Wilson Cristofani | K33: 14 | L33: Wilson Cristofani | M33: 14 | N33: Pericles Barcelos | O33: 32 | P33: Pericles Barcelos | Q33: 32 | R33: Pericles Barcelos | S33: 32 | T33: Pericles Barcelos | U33: 32 | V33: Pericles Barcelos | W33: 32 | X33: Pericles Barcelos | Y33: 32 | Z33: =Y5-Y33 -> 317 | AA33: =Y9-Y33 -> 268 | AB33: =Y32-Y33 -> 5 | AC33: Pericles Barcelos | AD33: 32 | AE33: =AD5-AD33 -> 357 | AF33: =AD9-AD33 -> 284 | AG33: =AD32-AD33 -> 5
B34: Wilson Cristofani | C34: 30 | D34: Luis Cáceres | E34: 0 | F34: Luis Cáceres | G34: 0 | H34: Robert Freitas | I34: 0 | J34: Leandro Leite | K34: 0 | L34: Leandro Leite | M34: 0 | N34: Leandro Leite | O34: 0 | P34: Leandro Leite | Q34: 21 | R34: Leandro Leite | S34: 21 | T34: Leandro Leite | U34: 21 | V34: Leandro Leite | W34: 21 | X34: Leandro Leite | Y34: 21 | Z34: =Y5-Y34 -> 328 | AA34: =Y9-Y34 -> 279 | AB34: =Y33-Y34 -> 11 | AC34: Leandro Leite | AD34: 21 | AE34: =AD5-AD34 -> 368 | AF34: =AD9-AD34 -> 295 | AG34: =AD33-AD34 -> 11
C35: 31 | E35: 0 | H35: Luis Cáceres | I35: 0 | J35: Robert Freitas | K35: 0 | L35: Robert Freitas | M35: 0 | N35: Robert Freitas | O35: 0 | P35: Robert Freitas | Q35: 0 | R35: Robert Freitas | S35: 0 | T35: Robert Freitas | U35: 0 | V35: Robert Freitas | W35: 0 | X35: Robert Freitas | Y35: 0 | Z35: =Y5-Y35 -> 349 | AA35: =Y9-Y35 -> 300 | AB35: =Y34-Y35 -> 21 | AC35: Robert Freitas | AD35: 0 | AE35: =AD5-AD35 -> 389 | AF35: =AD9-AD35 -> 316 | AG35: =AD34-AD35 -> 21
C36: 32 | E36: 0 | J36: Luis Cáceres | K36: 0 | L36: Luis Cáceres | M36: 0 | N36: Luis Cáceres | O36: 0 | P36: Luis Cáceres | Q36: 0 | R36: Luis Cáceres | S36: 0 | T36: Luis Cáceres | U36: 0 | V36: Luis Cáceres | W36: 0 | X36: Luis Cáceres | Y36: 0 | Z36: =Y5-Y36 -> 349 | AA36: =Y9-Y36 -> 300 | AB36: =Y35-Y36 -> 0 | AC36: Luis Cáceres | AD36: 0 | AE36: =AD5-AD36 -> 389 | AF36: =AD9-AD36 -> 316 | AG36: =AD35-AD36 -> 0
C37: 33 | E37: 0 | Z37: =Y5-Y37 -> 349 | AA37: =Y9-Y37 -> 300 | AB37: =Y36-Y37 -> 0 | AE37: =AD5-AD37 -> 389 | AF37: =AD9-AD37 -> 316 | AG37: =AD36-AD37 -> 0
C38: 34 | E38: 0 | Z38: =Y5-Y38 -> 349 | AA38: =Y9-Y38 -> 300 | AB38: =Y37-Y38 -> 0 | AE38: =AD5-AD38 -> 389 | AF38: =AD9-AD38 -> 316 | AG38: =AD37-AD38 -> 0
C39: 35 | E39: 0 | Z39: =Y5-Y39 -> 349 | AA39: =Y9-Y39 -> 300 | AB39: =Y38-Y39 -> 0 | AE39: =AD5-AD39 -> 389 | AF39: =AD9-AD39 -> 316 | AG39: =AD38-AD39 -> 0
C40: 36 | E40: 0 | Z40: =Y5-Y40 -> 349 | AA40: =Y9-Y40 -> 300 | AB40: =Y39-Y40 -> 0 | AE40: =AD5-AD40 -> 389 | AF40: =AD9-AD40 -> 316 | AG40: =AD39-AD40 -> 0
C41: 37 | E41: 0 | Z41: =Y5-Y41 -> 349 | AA41: =Y9-Y41 -> 300 | AB41: =Y40-Y41 -> 0 | AE41: =AD5-AD41 -> 389 | AF41: =AD9-AD41 -> 316 | AG41: =AD40-AD41 -> 0
C42: 38 | E42: 0 | Z42: =Y5-Y42 -> 349 | AA42: =Y9-Y42 -> 300 | AB42: =Y41-Y42 -> 0 | AE42: =AD5-AD42 -> 389 | AF42: =AD9-AD42 -> 316 | AG42: =AD41-AD42 -> 0
C43: 39 | E43: 0 | Z43: =Y5-Y43 -> 349 | AA43: =Y9-Y43 -> 300 | AB43: =Y42-Y43 -> 0 | AE43: =AD5-AD43 -> 389 | AF43: =AD9-AD43 -> 316 | AG43: =AD42-AD43 -> 0
C44: 40 | E44: 0 | Z44: =Y5-Y44 -> 349 | AA44: =Y9-Y44 -> 300 | AB44: =Y43-Y44 -> 0 | AE44: =AD5-AD44 -> 389 | AF44: =AD9-AD44 -> 316 | AG44: =AD43-AD44 -> 0
C45: 41 | E45: 0 | Z45: =Y5-Y45 -> 349 | AA45: =Y9-Y45 -> 300 | AB45: =Y44-Y45 -> 0 | AE45: =AD5-AD45 -> 389 | AF45: =AD9-AD45 -> 316 | AG45: =AD44-AD45 -> 0
C46: 42 | E46: 0 | Z46: =Y5-Y46 -> 349 | AA46: =Y9-Y46 -> 300 | AB46: =Y45-Y46 -> 0 | AE46: =AD5-AD46 -> 389 | AF46: =AD9-AD46 -> 316 | AG46: =AD45-AD46 -> 0
C47: 43 | E47: 0 | Z47: =Y5-Y47 -> 349 | AA47: =Y9-Y47 -> 300 | AB47: =Y46-Y47 -> 0 | AE47: =AD5-AD47 -> 389 | AF47: =AD9-AD47 -> 316 | AG47: =AD46-AD47 -> 0
C48: 44 | E48: 0 | Z48: =Y5-Y48 -> 349 | AA48: =Y9-Y48 -> 300 | AB48: =Y47-Y48 -> 0 | AE48: =AD5-AD48 -> 389 | AF48: =AD9-AD48 -> 316 | AG48: =AD47-AD48 -> 0
C49: 45 | E49: 0 | L49: XXXXXXX | M49: 0 | N49: XXXXXXX | O49: 0 | R49: XXXXXXX | S49: 0 | T49: XXXXXXX | U49: 0 | V49: XXXXXXX | W49: 0 | Z49: - | AA49: - | AB49: - | AC49: - | AD49: - | AE49: - | AF49: - | AG49: -

Sheet CAMP EQUIPE EVOL
A1: 2021 | B1: OK | D1: OK | F1: OK | H1: OK | J1: OK | L1: OK | N1: OK | P1: OK | R1: OK | T1: OK | V1: DIF. LIDER | W1: DIF. 3º | X1: DIF. PRÓXIMO | Y1: OK | AA1: DIF. LIDER | AB1: DIF. 3º | AC1: DIF. PRÓXIMO | AD1: OK | AF1: DIF. LIDER | AG1: DIF. PRÓXIMO | AH1: DIF. 5º
B2: Etapa 2 11/02/2021 - 21:15 | D2: Etapa 5 13/05/2021 - 21:15 | F2: Etapa 6 10/06/2021 - 20:30 | H2: Etapa 7 22/07/2021 - 21:15 | J2: Etapa 8 12/08/2021 - 21:15 | L2: Etapa 9 09/09/2021 - 21:15 | N2: Etapa 10 14/10/2021 - 21:15 | P2: Etapa 11 11/11/2021 - 21:15 | R2: Etapa 12 | T2: Etapa 01 | Y2: Etapa 03 | AD2: Etapa 04
D3: 0 | F3: 0 | H3: 0
A4: EQUIPES | B4: EQUIPES | C4: Pontuação Geral | D4: EQUIPES | E4: Pontuação Geral | F4: EQUIPES | G4: Pontuação Geral | H4: EQUIPES | I4: Pontuação Geral | J4: EQUIPES | K4: Pontuação Geral | L4: EQUIPES | M4: Pontuação Geral | N4: Posição | O4: Pontos | P4: Posição | Q4: Pontos | R4: Posição | S4: Pontos | T4: Posição | U4: Pontos | Y4: Posição | Z4: Pontos | AD4: Posição | AE4: Pontos
A5: 1º | B5: Essencia Studio | C5: 59 | D5: Os Piratas | E5: 126 | F5: Os Piratas | G5: 139 | H5: Grupo Santiago / RNG | I5: 142 | J5: Grupo Santiago / RNG | K5: 215 | L5: Os Piratas | M5: 285 | N5: Os Piratas | O5: 342 | P5: Os Piratas | Q5: 398 | R5: Os Piratas | S5: 484 | T5: Os Piratas | U5: 540 | V5: - | W5: - | X5: - | Y5: Os Piratas | Z5: 603 | AA5: - | AB5: - | AC5: - | AD5: Os Piratas | AE5: 690 | AF5: - | AG5: - | AH5: -
B6: Alexandre Melillo | C6: 33 | D6: Fernando Mota | E6: 75 | F6: Fernando Mota | G6: 59 | H6: Rafael Miranda | I6: 74 | J6: Rafael Miranda | K6: 114 | L6: Fernando Mota | M6: 114 | N6: Fernando Mota | O6: 134 | P6: Fernando Mota | Q6: 179 | R6: Fernando Mota | S6: 219 | T6: Fernando Mota | U6: 248 | V6: - | W6: - | X6: - | Y6: Fernando Mota | Z6: 283 | AA6: - | AB6: - | AC6: - | AD6: Fernando Mota | AE6: 330 | AF6: - | AG6: - | AH6: -
B7: Lúcio Chequer | C7: 26 | D7: Robert Freitas | E7: 0 | F7: Robert Freitas | G7: 0 | H7: Gladystone Reis | I7: 0 | J7: Gladystone Reis | K7: 0 | L7: Robert Freitas | M7: 0 | N7: Robert Freitas | O7: 0 | P7: Robert Freitas | Q7: 0 | R7: Robert Freitas | S7: 0 | T7: Robert Freitas | U7: 0 | V7: - | W7: - | X7: - | Y7: Robert Freitas | Z7: 0 | AA7: - | AB7: - | AC7: - | AD7: Robert Freitas | AE7: 0 | AF7: - | AG7: - | AH7: -
B8: Lucas Mourão | C8: 0 | D8: Lucas Rabelo | E8: 51 | F8: Lucas Rabelo | G8: 80 | H8: Felipe Franca | I8: 68 | J8: Felipe Franca | K8: 101 | L8: Lucas Rabelo | M8: 171 | N8: Lucas Rabelo | O8: 208 | P8: Lucas Rabelo | Q8: 219 | R8: Lucas Rabelo | S8: 265 | T8: Lucas Rabelo | U8: 292 | V8: - | W8: - | X8: - | Y8: Lucas Rabelo | Z8: 320 | AA8: - | AB8: - | AC8: - | AD8: Lucas Rabelo | AE8: 360 | AF8: - | AG8: - | AH8: -
B9: XXXXXX | C9: 0 | D9: XXXXXX | E9: 0 | F9: XXXXXX | G9: 0 | H9: XXXXXX | I9: 0 | J9: XXXXXX | K9: 0 | L9: XXXXXX | M9: 0 | N9: XXXXXX | O9: 0 | P9: XXXXXX | Q9: 0 | R9: XXXXXX | S9: 0 | T9: XXXXXX | U9: 0 | V9: - | W9: - | X9: - | Y9: XXXXXX | Z9: 0 | AA9: - | AB9: - | AC9: - | AD9: XXXXXX | AE9: 0 | AF9: - | AG9: - | AH9: -
B10: XXXXXX | C10: 0 | D10: XXXXXX | E10: 0 | F10: XXXXXX | G10: 0 | H10: XXXXXX | I10: 0 | J10: XXXXXX | K10: 0 | L10: XXXXXX | M10: 0 | N10: XXXXXX | O10: 0 | P10: XXXXXX | Q10: 0 | R10: XXXXXX | S10: 0 | T10: XXXXXX | U10: 0 | V10: - | W10: - | X10: - | Y10: XXXXXX | Z10: 0 | AA10: - | AB10: - | AC10: - | AD10: XXXXXX | AE10: 0 | AF10: - | AG10: - | AH10: -
A11: 2º | B11: Os Piratas | C11: 57 | D11: O2BH / Pyramo Cervejaria | E11: 112 | G11: 133 | H11: Os Piratas | I11: 141 | J11: Os Piratas | K11: 210 | L11: Grupo Santiago / RNG | M11: 276 | N11: Grupo Santiago / RNG | O11: 335 | P11: Grupo Santiago / RNG | Q11: 386 | R11: Grupo Santiago / RNG | S11: 446 | T11: Grupo Santiago / RNG | U11: 510 | V11: =U5-U11 -> 30 | W11: - | X11: =U5-U11 -> 30 | Y11: Grupo Santiago / RNG | Z11: 587 | AA11: =Z5-Z11 -> 16 | AB11: - | AC11: =Z5-Z11 -> 16 | AD11: Grupo Santiago / RNG | AE11: 664 | AF11: =AE5-AE11 -> 26 | AG11: =AE5-AE11 -> 26 | AH11: -
B12: Fernando Mota | C12: 46 | D12: Anderson Teixeira | E12: 70 | F12: Marcus Gregorio | G12: 66 | H12: Fernando Mota | I12: 56 | J12: Fernando Mota | K12: 85 | L12: Rafael Miranda | M12: 154 | N12: Rafael Miranda | O12: 200 | P12: Rafael Miranda | Q12: 228 | R12: Rafael Miranda | S12: 263 | T12: Rafael Miranda | U12: 296 | V12: - | W12: - | X12: - | Y12: Rafael Miranda | Z12: 336 | AA12: - | AB12: - | AC12: - | AD12: Rafael Miranda | AE12: 382 | AF12: - | AG12: - | AH12: -
B13: Robert Freitas | C13: 0 | D13: Leodegario Junior | E13: 42 | F13: Matheus Dias | G13: 1 | H13: Robert Freitas | I13: 0 | J13: Robert Freitas | K13: 0 | L13: Gladystone Reis | M13: 21 | N13: Gladystone Reis | O13: 21 | P13: Gladystone Reis | Q13: 21 | R13: Gladystone Reis | S13: 21 | T13: Gladystone Reis | U13: 21 | V13: - | W13: - | X13: - | Y13: Gladystone Reis | Z13: 21 | AA13: - | AB13: - | AC13: - | AD13: Gladystone Reis | AE13: 21 | AF13: - | AG13: - | AH13: -
B14: Lucas Rabelo | C14: 11 | D14: Bruno Camargos | E14: 0 | F14: Felipe Curi | G14: 66 | H14: Lucas Rabelo | I14: 85 | J14: Lucas Rabelo | K14: 125 | L14: Felipe Franca | M14: 101 | N14: Felipe Franca | O14: 114 | P14: Felipe Franca | Q14: 137 | R14: Felipe Franca | S14: 162 | T14: Felipe Franca | U14: 193 | V14: - | W14: - | X14: - | Y14: Felipe Franca | Z14: 230 | AA14: - | AB14: - | AC14: - | AD14: Felipe Franca | AE14: 261 | AF14: - | AG14: - | AH14: -
B15: XXXXXX | C15: 0 | D15: XXXXXX | E15: 0 | F15: XXXXXX | G15: 0 | H15: XXXXXX | I15: 0 | J15: XXXXXX | K15: 0 | L15: XXXXXX | M15: 0 | N15: XXXXXX | O15: 0 | P15: XXXXXX | Q15: 0 | R15: XXXXXX | S15: 0 | T15: XXXXXX | U15: 0 | V15: - | W15: - | X15: - | Y15: XXXXXX | Z15: 0 | AA15: - | AB15: - | AC15: - | AD15: XXXXXX | AE15: 0 | AF15: - | AG15: - | AH15: -
B16: XXXXXX | C16: 0 | D16: XXXXXX | E16: 0 | F16: XXXXXX | G16: 0 | H16: XXXXXX | I16: 0 | J16: XXXXXX | K16: 0 | L16: XXXXXX | M16: 0 | N16: XXXXXX | O16: 0 | P16: XXXXXX | Q16: 0 | R16: XXXXXX | S16: 0 | T16: XXXXXX | U16: 0 | V16: - | W16: - | X16: - | Y16: XXXXXX | Z16: 0 | AA16: - | AB16: - | AC16: - | AD16: XXXXXX | AE16: 0 | AF16: - | AG16: - | AH16: -
A17: 3º | B17: RBC Racing / Multiseg | C17: 57 | D17: RBC Racing / Multiseg | E17: 110 | F17: Grupo Santiago / RNG | G17: 121 | I17: 134 | K17: 177 | L17: Essencia Studio | M17: 228 | N17: Essencia Studio | O17: 292 | P17: Essencia Studio | Q17: 363 | R17: Essencia Studio | S17: 420 | T17: Essencia Studio | U17: 488 | V17: =U5-U17 -> 52 | W17: - | X17: =U11-U17 -> 22 | Y17: Essencia Studio | Z17: 549 | AA17: =Z5-Z17 -> 54 | AB17: - | AC17: =Z11-Z17 -> 38 | AD17: Essencia Studio | AE17: 607 | AF17: =AE5-AE17 -> 83 | AG17: =AE11-AE17 -> 57
B18: Luciano Brandão | C18: 37 | D18: Luciano Brandão | E18: 70 | F18: Rafael Miranda | G18: 65 | H18: Marcus Gregorio | I18: 67 | J18: Marcus Gregorio | K18: 67 | L18: Alexandre Melillo | M18: 129 | N18: Alexandre Melillo | O18: 162 | P18: Alexandre Melillo | Q18: 207 | R18: Alexandre Melillo | S18: 236 | T18: Alexandre Melillo | U18: 281 | V18: - | W18: - | X18: - | Y18: Alexandre Melillo | Z18: 315 | AA18: - | AB18: - | AC18: - | AD18: Alexandre Melillo | AE18: 348 | AF18: - | AG18: -
B19: João Ferreira | C19: 0 | D19: João Ferreira | E19: 0 | F19: Gladystone Reis | G19: 0 | H19: Matheus Dias | I19: 1 | J19: Matheus Dias | K19: 27 | L19: Lúcio Chequer | M19: 99 | N19: Lúcio Chequer | O19: 130 | P19: Lúcio Chequer | Q19: 156 | R19: Lúcio Chequer | S19: 184 | T19: Lúcio Chequer | U19: 207 | V19: - | W19: - | X19: - | Y19: Lúcio Chequer | Z19: 234 | AA19: - | AB19: - | AC19: - | AD19: Lúcio Chequer | AE19: 259 | AF19: - | AG19: -
B20: Arthur Santiago | C20: 20 | D20: Arthur Santiago | E20: 40 | F20: Felipe Franca | G20: 56 | H20: Felipe Curi | I20: 66 | J20: Felipe Curi | K20: 83 | L20: Lucas Mourão | M20: 0 | N20: Lucas Mourão | O20: 0 | P20: Lucas Mourão | Q20: 0 | R20: Lucas Mourão | S20: 0 | T20: Lucas Mourão | U20: 0 | V20: - | W20: - | X20: - | Y20: Lucas Mourão | Z20: 0 | AA20: - | AB20: - | AC20: - | AD20: Lucas Mourão | AE20: 0 | AF20: - | AG20: -
B21: XXXXXX | C21: 0 | D21: XXXXXX | E21: 0 | F21: XXXXXX | G21: 0 | H21: XXXXXX | I21: 0 | J21: XXXXXX | K21: 0 | L21: XXXXXX | M21: 0 | N21: XXXXXX | O21: 0 | P21: XXXXXX | Q21: 0 | R21: XXXXXX | S21: 0 | T21: XXXXXX | U21: 0 | V21: - | W21: - | X21: - | Y21: XXXXXX | Z21: 0 | AA21: - | AB21: - | AC21: - | AD21: XXXXXX | AE21: 0 | AF21: - | AG21: -
B22: XXXXXX | C22: 0 | D22: XXXXXX | E22: 0 | F22: XXXXXX | G22: 0 | H22: XXXXXX | I22: 0 | J22: XXXXXX | K22: 0 | L22: XXXXXX | M22: 0 | N22: XXXXXX | O22: 0 | P22: XXXXXX | Q22: 0 | R22: XXXXXX | S22: 0 | T22: XXXXXX | U22: 0 | V22: - | W22: - | X22: - | Y22: XXXXXX | Z22: 0 | AA22: - | AB22: - | AC22: - | AD22: XXXXXX | AE22: 0 | AF22: - | AG22: -
A23: 4º | B23: Grupo Santiago / RNG | C23: 50 | D23: Grupo Santiago / RNG | E23: 101 | F23: Essencia Studio | G23: 117 | H23: Essencia Studio | I23: 117 | J23: O2BH / Pyramo Cervejaria | K23: 174 | M23: 226 | O23: 278 | Q23: 343 | S23: 394 | U23: 445 | V23: =U5-U23 -> 95 | W23: =$C$17-U23 -> -388 | X23: =U17-U23 -> 43 | Z23: 494 | AA23: =Z5-Z23 -> 109 | AB23: =$C$17-Z23 -> -437 | AC23: =Z17-Z23 -> 55 | AE23: 537 | AF23: =AE5-AE23 -> 153 | AG23: =AE17-AE23 -> 70
B24: Rafael Miranda | C24: 28 | D24: Rafael Miranda | E24: 56 | F24: Alexandre Melillo | G24: 64 | H24: Alexandre Melillo | I24: 64 | J24: Anderson Teixeira | K24: 110 | L24: Anderson Oliveira | M24: 109 | N24: Anderson Oliveira | O24: 136 | P24: Anderson Oliveira | Q24: 136 | R24: Anderson Oliveira | S24: 161 | T24: Anderson Oliveira | U24: 161 | V24: - | W24: - | X24: - | Y24: Anderson Oliveira | Z24: 186 | AA24: - | AB24: - | AC24: - | AD24: Anderson Oliveira | AE24: 208 | AF24: - | AG24: -
B25: Gladystone Reis | C25: 22 | D25: Gladystone Reis | E25: 22 | F25: Lúcio Chequer | G25: 53 | H25: Lúcio Chequer | I25: 53 | J25: Leodegario Junior | K25: 42 | L25: Diego Silva | M25: 64 | N25: Diego Silva | O25: 64 | P25: Diego Silva | Q25: 98 | R25: Diego Silva | S25: 124 | T25: Diego Silva | U25: 149 | V25: - | W25: - | X25: - | Y25: Diego Silva | Z25: 149 | AA25: - | AB25: - | AC25: - | AD25: Diego Silva | AE25: 149 | AF25: - | AG25: -
B26: Felipe Franca | C26: 0 | D26: Felipe Franca | E26: 23 | F26: Lucas Mourão | G26: 0 | H26: Lucas Mourão | I26: 0 | J26: Bruno Camargos | K26: 22 | L26: Flavio Magalhães | M26: 53 | N26: Flavio Magalhães | O26: 78 | P26: Flavio Magalhães | Q26: 109 | R26: Flavio Magalhães | S26: 109 | T26: Flavio Magalhães | U26: 135 | V26: - | W26: - | X26: - | Y26: Flavio Magalhães | Z26: 159 | AA26: - | AB26: - | AC26: - | AD26: Flavio Magalhães | AE26: 180 | AF26: - | AG26: -
B27: XXXXXX | C27: 0 | D27: XXXXXX | E27: 0 | F27: XXXXXX | G27: 0 | H27: XXXXXX | I27: 0 | J27: XXXXXX | K27: 0 | L27: XXXXXX | M27: 0 | N27: XXXXXX | O27: 0 | P27: XXXXXX | Q27: 0 | R27: XXXXXX | S27: 0 | T27: XXXXXX | U27: 0 | V27: - | W27: - | X27: - | Y27: XXXXXX | Z27: 0 | AA27: - | AB27: - | AC27: - | AD27: XXXXXX | AE27: 0 | AF27: - | AG27: -
B28: XXXXXX | C28: 0 | D28: XXXXXX | E28: 0 | F28: XXXXXX | G28: 0 | H28: XXXXXX | I28: 0 | J28: XXXXXX | K28: 0 | L28: XXXXXX | M28: 0 | N28: XXXXXX | O28: 0 | P28: XXXXXX | Q28: 0 | R28: XXXXXX | S28: 0 | T28: XXXXXX | U28: 0 | V28: - | W28: - | X28: - | Y28: XXXXXX | Z28: 0 | AA28: - | AB28: - | AC28: - | AD28: XXXXXX | AE28: 0 | AF28: - | AG28: -
A29: 5º | B29: O2BH / Pyramo Cervejaria | C29: 47 | D29: Essencia Studio | E29: 100 | G29: 117 | I29: 117 | J29: Essencia Studio | K29: 171 | L29: O2BH / Pyramo Cervejaria | M29: 221 | N29: O2BH / Pyramo Cervejaria | O29: 271 | P29: O2BH / Pyramo Cervejaria | Q29: 318 | R29: O2BH / Pyramo Cervejaria | S29: 375 | T29: O2BH / Pyramo Cervejaria | U29: 432 | V29: =U5-U29 -> 108 | W29: =$C$17-U29 -> -375 | X29: =U23-U29 -> 13 | Y29: O2BH / Pyramo Cervejaria | Z29: 479 | AA29: =Z5-Z29 -> 124 | AB29: =$C$17-Z29 -> -422 | AC29: =Z23-Z29 -> 15 | AD29: O2BH / Pyramo Cervejaria | AE29: 514 | AF29: =AE5-AE29 -> 176 | AG29: =AE23-AE29 -> 23
B30: Anderson Teixeira | C30: 24 | D30: Alexandre Melillo | E30: 60 | F30: Anderson Oliveira | G30: 53 | H30: Anderson Oliveira | I30: 53 | J30: Alexandre Melillo | K30: 92 | L30: Anderson Teixeira | M30: 134 | N30: Anderson Teixeira | O30: 156 | P30: Anderson Teixeira | Q30: 180 | R30: Anderson Teixeira | S30: 213 | T30: Anderson Teixeira | U30: 248 | V30: - | W30: - | X30: - | Y30: Anderson Teixeira | Z30: 271 | AA30: - | AB30: - | AC30: - | AD30: Anderson Teixeira | AE30: 306 | AF30: - | AG30: -
B31: Leodegario Junior | C31: 23 | D31: Lúcio Chequer | E31: 26 | F31: Diego Silva | G31: 64 | H31: Diego Silva | I31: 64 | J31: Lúcio Chequer | K31: 79 | L31: Leodegario Junior | M31: 65 | N31: Leodegario Junior | O31: 93 | P31: Leodegario Junior | Q31: 116 | R31: Leodegario Junior | S31: 140 | T31: Leodegario Junior | U31: 162 | V31: - | W31: - | X31: - | Y31: Leodegario Junior | Z31: 186 | AA31: - | AB31: - | AC31: - | AD31: Leodegario Junior | AE31: 186 | AF31: - | AG31: -
B32: Bruno Camargos | C32: 0 | D32: Lucas Mourão | E32: 14 | F32: Flavio Magalhães | G32: 0 | H32: Flavio Magalhães | I32: 0 | J32: Lucas Mourão | K32: 0 | L32: Bruno Camargos | M32: 22 | N32: Bruno Camargos | O32: 22 | P32: Bruno Camargos | Q32: 22 | R32: Bruno Camargos | S32: 22 | T32: Bruno Camargos | U32: 22 | V32: - | W32: - | X32: - | Y32: Bruno Camargos | Z32: 22 | AA32: - | AB32: - | AC32: - | AD32: Bruno Camargos | AE32: 22 | AF32: - | AG32: -
B33: XXXXXX | C33: 0 | D33: XXXXXX | E33: 0 | F33: XXXXXX | G33: 0 | H33: XXXXXX | I33: 0 | J33: XXXXXX | K33: 0 | L33: XXXXXX | M33: 0 | N33: XXXXXX | O33: 0 | P33: XXXXXX | Q33: 0 | R33: XXXXXX | S33: 0 | T33: XXXXXX | U33: 0 | V33: - | W33: - | X33: - | Y33: XXXXXX | Z33: 0 | AA33: - | AB33: - | AC33: - | AD33: XXXXXX | AE33: 0 | AF33: - | AG33: -
B34: XXXXXX | C34: 0 | D34: XXXXXX | E34: 0 | F34: XXXXXX | G34: 0 | H34: XXXXXX | I34: 0 | J34: XXXXXX | K34: 0 | L34: XXXXXX | M34: 0 | N34: XXXXXX | O34: 0 | P34: XXXXXX | Q34: 0 | R34: XXXXXX | S34: 0 | T34: XXXXXX | U34: 0 | V34: - | W34: - | X34: - | Y34: XXXXXX | Z34: 0 | AA34: - | AB34: - | AC34: - | AD34: XXXXXX | AE34: 0 | AF34: - | AG34: -
A35: 6º | B35: Gui Figueiredo | C35: 34 | D35: Gui Figueiredo | E35: 79 | F35: O2BH / Pyramo Cervejaria | G35: 112 | H35: O2BH / Pyramo Cervejaria | I35: 116 | K35: 170 | M35: 217 | N35: Inovesa | O35: 252 | Q35: 289 | R35: Inovesa | S35: 322 | U35: 360 | V35: =U5-U35 -> 180 | W35: =$C$17-U35 -> -303 | X35: =U29-U35 -> 72 | Z35: 391 | AA35: =Z5-Z35 -> 212 | AB35: =$C$17-Z35 -> -334 | AC35: =Z29-Z35 -> 88 | AE35: 391 | AF35: =AE5-AE35 -> 299 | AG35: =AE29-AE35 -> 123 | AH35: =AE29-AE35 -> 123
B36: Mathias Almeida | C36: 19 | D36: Mathias Almeida | E36: 40 | F36: Anderson Teixeira | G36: 70 | H36: Anderson Teixeira | I36: 75 | J36: Anderson Oliveira | K36: 78 | L36: Marcus Gregorio | M36: 107 | N36: Wilson Cristofani | O36: 28 | P36: Marcus Gregorio | Q36: 179 | R36: Wilson Cristofani | S36: 28 | T36: Marcus Gregorio | U36: 250 | V36: - | W36: - | X36: - | Y36: Marcus Gregorio | Z36: 281 | AA36: - | AB36: - | AC36: - | AD36: Marcus Gregorio | AE36: 281 | AF36: - | AG36: - | AH36: -
B37: Aparecido Faria | C37: 0 | D37: Aparecido Faria | E37: 24 | F37: Leodegario Junior | G37: 42 | H37: Leodegario Junior | I37: 19 | J37: Diego Silva | K37: 64 | L37: Matheus Dias | M37: 27 | N37: Leandro Leite | O37: 21 | P37: Matheus Dias | Q37: 27 | R37: Leandro Leite | S37: 21 | T37: Matheus Dias | U37: 27 | V37: - | W37: - | X37: - | Y37: Matheus Dias | Z37: 27 | AA37: - | AB37: - | AC37: - | AD37: Matheus Dias | AE37: 27 | AF37: - | AG37: - | AH37: -
B38: Pericles Barcelos | C38: 15 | D38: Pericles Barcelos | E38: 15 | F38: Bruno Camargos | G38: 0 | H38: Bruno Camargos | I38: 22 | J38: Flavio Magalhães | K38: 28 | L38: Felipe Curi | M38: 83 | N38: Petronio Jr. | O38: 203 | P38: Felipe Curi | Q38: 83 | R38: Petronio Jr. | S38: 273 | T38: Felipe Curi | U38: 83 | V38: - | W38: - | X38: - | Y38: Felipe Curi | Z38: 83 | AA38: - | AB38: - | AC38: - | AD38: Felipe Curi | AE38: 83 | AF38: - | AG38: - | AH38: -
B39: XXXXXX | C39: 0 | D39: XXXXXX | E39: 0 | F39: XXXXXX | G39: 0 | H39: XXXXXX | I39: 0 | J39: XXXXXX | K39: 0 | L39: XXXXXX | M39: 0 | N39: XXXXXX | O39: 0 | P39: XXXXXX | Q39: 0 | R39: XXXXXX | S39: 0 | T39: XXXXXX | U39: 0 | V39: - | W39: - | X39: - | Y39: XXXXXX | Z39: 0 | AA39: - | AB39: - | AC39: - | AD39: XXXXXX | AE39: 0 | AF39: - | AG39: - | AH39: -
B40: XXXXXX | C40: 0 | D40: XXXXXX | E40: 0 | F40: XXXXXX | G40: 0 | H40: XXXXXX | I40: 0 | J40: XXXXXX | K40: 0 | L40: XXXXXX | M40: 0 | N40: XXXXXX | O40: 0 | P40: XXXXXX | Q40: 0 | R40: XXXXXX | S40: 0 | T40: XXXXXX | U40: 0 | V40: - | W40: - | X40: - | Y40: XXXXXX | Z40: 0 | AA40: - | AB40: - | AC40: - | AD40: XXXXXX | AE40: 0 | AF40: - | AG40: - | AH40: -
A41: 7º | B41: Inovesa | C41: 26 | D41: Inovesa | E41: 63 | F41: RBC Racing / Multiseg | G41: 110 | H41: RBC Racing / Multiseg | I41: 110 | J41: RBC Racing / Multiseg | K41: 135 | L41: Inovesa | M41: 191 | O41: 252 | P41: Inovesa | Q41: 285 | S41: 322 | T41: Inovesa | U41: 350 | V41: =U5-U41 -> 190 | W41: =$C$17-U41 -> -293 | X41: =U35-U41 -> 10 | Y41: Inovesa | Z41: 377 | AA41: =Z5-Z41 -> 226 | AB41: =$C$17-Z41 -> -320 | AC41: =Z35-Z41 -> 14 | AD41: Inovesa | AE41: 377 | AF41: =AE5-AE41 -> 313 | AG41: =AE35-AE41 -> 14 | AH41: =AE29-AE41 -> 137
B42: Wilson Cristofani | C42: 14 | D42: Wilson Cristofani | E42: 14 | F42: Luciano Brandão | G42: 70 | H42: Luciano Brandão | I42: 70 | J42: Luciano Brandão | K42: 95 | L42: Wilson Cristofani | M42: 28 | N42: Marcus Gregorio | O42: 142 | P42: Wilson Cristofani | Q42: 28 | R42: Marcus Gregorio | S42: 212 | T42: Wilson Cristofani | U42: 28 | V42: - | W42: - | X42: - | Y42: Wilson Cristofani | Z42: 42 | AA42: - | AB42: - | AC42: - | AD42: Wilson Cristofani | AE42: 42 | AF42: - | AG42: - | AH42: -
B43: Leandro Leite | C43: 0 | D43: Leandro Leite | E43: 0 | F43: João Ferreira | G43: 0 | H43: João Ferreira | I43: 0 | J43: João Ferreira | K43: 0 | L43: Leandro Leite | M43: 0 | N43: Matheus Dias | O43: 27 | P43: Leandro Leite | Q43: 21 | R43: Matheus Dias | S43: 27 | T43: Leandro Leite | U43: 21 | V43: - | W43: - | X43: - | Y43: Leandro Leite | Z43: 21 | AA43: - | AB43: - | AC43: - | AD43: Leandro Leite | AE43: 21 | AF43: - | AG43: - | AH43: -
B44: Petronio Jr. | C44: 12 | D44: Petronio Jr. | E44: 49 | F44: Arthur Santiago | G44: 40 | H44: Arthur Santiago | I44: 40 | J44: Arthur Santiago | K44: 40 | L44: Petronio Jr. | M44: 163 | N44: Felipe Curi | O44: 83 | P44: Petronio Jr. | Q44: 236 | R44: Felipe Curi | S44: 83 | T44: Petronio Jr. | U44: 301 | V44: - | W44: - | X44: - | Y44: Petronio Jr. | Z44: 314 | AA44: - | AB44: - | AC44: - | AD44: Petronio Jr. | AE44: 314 | AF44: - | AG44: - | AH44: -
B45: XXXXXX | C45: 0 | D45: XXXXXX | E45: 0 | F45: XXXXXX | G45: 0 | H45: XXXXXX | I45: 0 | J45: XXXXXX | K45: 0 | L45: XXXXXX | M45: 0 | N45: XXXXXX | O45: 0 | P45: XXXXXX | Q45: 0 | R45: XXXXXX | S45: 0 | T45: XXXXXX | U45: 0 | V45: - | W45: - | X45: - | Y45: XXXXXX | Z45: 0 | AA45: - | AB45: - | AC45: - | AD45: XXXXXX | AE45: 0 | AF45: - | AG45: - | AH45: -
B46: XXXXXX | C46: 0 | D46: XXXXXX | E46: 0 | F46: XXXXXX | G46: 0 | H46: XXXXXX | I46: 0 | J46: XXXXXX | K46: 0 | L46: XXXXXX | M46: 0 | N46: XXXXXX | O46: 0 | P46: XXXXXX | Q46: 0 | R46: XXXXXX | S46: 0 | T46: XXXXXX | U46: 0 | V46: - | W46: - | X46: - | Y46: XXXXXX | Z46: 0 | AA46: - | AB46: - | AC46: - | AD46: XXXXXX | AE46: 0 | AF46: - | AG46: - | AH46: -
A47: 8º | G47: 104 | I47: 104 | K47: 133 | L47: RBC Racing / Multiseg | M47: 162 | N47: RBC Racing / Multiseg | O47: 218 | P47: Grupo Santiago / RNG1 | Q47: 259 | R47: Grupo Santiago / RNG1 | S47: 279 | T47: Grupo Santiago / RNG1 | U47: 305 | V47: =U5-U47 -> 235 | W47: =$C$17-U47 -> -248 | X47: =U41-U47 -> 45 | Y47: Grupo Santiago / RNG1 | Z47: 331 | AA47: =Z5-Z47 -> 272 | AB47: =$C$17-Z47 -> -274 | AC47: =Z41-Z47 -> 46 | AD47: Grupo Santiago / RNG1 | AE47: 360 | AF47: =AE5-AE47 -> 330 | AG47: =AE41-AE47 -> 17 | AH47: =AE29-AE47 -> 154
F48: Agostinho Neves | G48: 55 | H48: Agostinho Neves | I48: 55 | J48: Agostinho Neves | K48: 84 | L48: Luciano Brandão | M48: 122 | N48: Luciano Brandão | O48: 151 | P48: Gabriel Gontijo | Q48: 140 | R48: Gabriel Gontijo | S48: 140 | T48: Gabriel Gontijo | U48: 140 | V48: - | W48: - | X48: - | Y48: Gabriel Gontijo | Z48: 166 | AA48: - | AB48: - | AC48: - | AD48: Gabriel Gontijo | AE48: 195 | AF48: - | AG48: - | AH48: -
F49: Thales Silva | G49: 49 | H49: Thales Silva | I49: 49 | J49: Thales Silva | K49: 49 | L49: João Ferreira | M49: 0 | N49: João Ferreira | O49: 0 | P49: Vitor Diniz | Q49: 119 | R49: Vitor Diniz | S49: 139 | T49: Vitor Diniz | U49: 165 | V49: - | W49: - | X49: - | Y49: Vitor Diniz | Z49: 165 | AA49: - | AB49: - | AC49: - | AD49: Vitor Diniz | AE49: 165 | AF49: - | AG49: - | AH49: -
F50: Luis Cáceres | G50: 0 | H50: Luis Cáceres | I50: 0 | J50: Luis Cáceres | K50: 0 | L50: Arthur Santiago | M50: 40 | N50: Arthur Santiago | O50: 67 | P50: XXXXXX | Q50: 0 | R50: XXXXXX | S50: 0 | T50: XXXXXX | U50: 0 | V50: - | W50: - | X50: - | Y50: XXXXXX | Z50: 0 | AA50: - | AB50: - | AC50: - | AD50: XXXXXX | AE50: 0 | AF50: - | AG50: - | AH50: -
F51: XXXXXX | G51: 0 | H51: XXXXXX | I51: 0 | J51: XXXXXX | K51: 0 | L51: XXXXXX | M51: 0 | N51: XXXXXX | O51: 0 | P51: XXXXXX | Q51: 0 | R51: XXXXXX | S51: 0 | T51: XXXXXX | U51: 0 | V51: - | W51: - | X51: - | Y51: XXXXXX | Z51: 0 | AA51: - | AB51: - | AC51: - | AD51: XXXXXX | AE51: 0 | AF51: - | AG51: - | AH51: -
F52: XXXXXX | G52: 0 | H52: XXXXXX | I52: 0 | J52: XXXXXX | K52: 0 | L52: XXXXXX | M52: 0 | N52: XXXXXX | O52: 0 | P52: XXXXXX | Q52: 0 | R52: XXXXXX | S52: 0 | T52: XXXXXX | U52: 0 | V52: - | W52: - | X52: - | Y52: XXXXXX | Z52: 0 | AA52: - | AB52: - | AC52: - | AD52: XXXXXX | AE52: 0 | AF52: - | AG52: - | AH52: -
A53: 9º | F53: Inovesa | G53: 82 | H53: Inovesa | I53: 82 | J53: Inovesa | K53: 128 | M53: 160 | N53: Grupo Santiago / RNG1 | O53: 204 | P53: RBC Racing / Multiseg | Q53: 243 | R53: RBC Racing / Multiseg | S53: 270 | T53: RBC Racing / Multiseg | U53: 293 | V53: =U5-U53 -> 247 | W53: =$C$17-U53 -> -236 | X53: =U47-U53 -> 12 | Z53: 321 | AA53: =Z5-Z53 -> 282 | AB53: =$C$17-Z53 -> -264 | AC53: =Z47-Z53 -> 10 | AE53: 346 | AF53: =AE5-AE53 -> 344 | AG53: =AE47-AE53 -> 14 | AH53: =AE29-AE53 -> 168
F54: Wilson Cristofani | G54: 0 | H54: Wilson Cristofani | I54: 0 | J54: Wilson Cristofani | K54: 0 | L54: Agostinho Neves | M54: 111 | N54: Gabriel Gontijo | O54: 113 | P54: Luciano Brandão | Q54: 176 | R54: Luciano Brandão | S54: 203 | T54: Luciano Brandão | U54: 203 | V54: - | W54: - | X54: - | Y54: Agostinho Neves | Z54: 251 | AA54: - | AB54: - | AC54: - | AD54: Agostinho Neves | AE54: 276 | AF54: - | AG54: - | AH54: -
F55: Leandro Leite | G55: 0 | H55: Leandro Leite | I55: 0 | J55: Leandro Leite | K55: 0 | L55: Thales Silva | M55: 49 | N55: Vitor Diniz | O55: 91 | P55: João Ferreira | Q55: 0 | R55: João Ferreira | S55: 0 | T55: João Ferreira | U55: 0 | V55: - | W55: - | X55: - | Y55: Thales Silva | Z55: 70 | AA55: - | AB55: - | AC55: - | AD55: Thales Silva | AE55: 70 | AF55: - | AG55: - | AH55: -
F56: Petronio Jr. | G56: 82 | H56: Petronio Jr. | I56: 82 | J56: Petronio Jr. | K56: 128 | L56: Luis Cáceres | M56: 0 | N56: XXXXXX | O56: 0 | P56: Arthur Santiago | Q56: 67 | R56: Arthur Santiago | S56: 67 | T56: Arthur Santiago | U56: 90 | V56: - | W56: - | X56: - | Y56: Luis Cáceres | Z56: 0 | AA56: - | AB56: - | AC56: - | AD56: Luis Cáceres | AE56: 0 | AF56: - | AG56: - | AH56: -
F57: XXXXXX | G57: 0 | H57: XXXXXX | I57: 0 | J57: XXXXXX | K57: 0 | L57: XXXXXX | M57: 0 | N57: XXXXXX | O57: 0 | P57: XXXXXX | Q57: 0 | R57: XXXXXX | S57: 0 | T57: XXXXXX | U57: 0 | V57: - | W57: - | X57: - | Y57: XXXXXX | Z57: 0 | AA57: - | AB57: - | AC57: - | AD57: XXXXXX | AE57: 0 | AF57: - | AG57: - | AH57: -
F58: XXXXXX | G58: 0 | H58: XXXXXX | I58: 0 | J58: XXXXXX | K58: 0 | L58: XXXXXX | M58: 0 | N58: XXXXXX | O58: 0 | P58: XXXXXX | Q58: 0 | R58: XXXXXX | S58: 0 | T58: XXXXXX | U58: 0 | V58: - | W58: - | X58: - | Y58: XXXXXX | Z58: 0 | AA58: - | AB58: - | AC58: - | AD58: XXXXXX | AE58: 0 | AF58: - | AG58: - | AH58: -
A59: 10º | F59: Gui Figueiredo | G59: 80 | H59: Gui Figueiredo | I59: 80 | J59: Gui Figueiredo | K59: 111 | L59: Grupo Santiago / RNG1 | M59: 157 | O59: 181 | Q59: 210 | S59: 236 | U59: 276 | V59: =U5-U59 -> 264 | W59: =$C$17-U59 -> -219 | X59: =U53-U59 -> 17 | Y59: RBC Racing / Multiseg | Z59: 314 | AA59: =Z5-Z59 -> 289 | AB59: =$C$17-Z59 -> -257 | AC59: =Z53-Z59 -> 7 | AD59: RBC Racing / Multiseg | AE59: 335 | AF59: =AE5-AE59 -> 355 | AG59: =AE53-AE59 -> 11 | AH59: =AE29-AE59 -> 179
F60: Mathias Almeida | G60: 41 | H60: Mathias Almeida | I60: 41 | J60: Mathias Almeida | K60: 41 | L60: Gabriel Gontijo | M60: 89 | N60: Agostinho Neves | O60: 111 | P60: Agostinho Neves | Q60: 140 | R60: Agostinho Neves | S60: 166 | T60: Agostinho Neves | U60: 206 | V60: - | W60: - | X60: - | Y60: Luciano Brandão | Z60: 203 | AA60: - | AB60: - | AC60: - | AD60: Luciano Brandão | AE60: 224 | AF60: - | AG60: - | AH60: -
F61: Aparecido Faria | G61: 24 | H61: Aparecido Faria | I61: 24 | J61: Aparecido Faria | K61: 55 | L61: Vitor Diniz | M61: 68 | N61: Thales Silva | O61: 70 | P61: Thales Silva | Q61: 70 | R61: Thales Silva | S61: 70 | T61: Thales Silva | U61: 70 | V61: - | W61: - | X61: - | Y61: João Ferreira | Z61: 21 | AA61: - | AB61: - | AC61: - | AD61: João Ferreira | AE61: 21 | AF61: - | AG61: - | AH61: -
F62: Pericles Barcelos | G62: 15 | H62: Pericles Barcelos | I62: 15 | J62: Pericles Barcelos | K62: 15 | L62: XXXXXX | M62: 0 | N62: Luis Cáceres | O62: 0 | P62: Luis Cáceres | Q62: 0 | R62: Luis Cáceres | S62: 0 | T62: Luis Cáceres | U62: 0 | V62: - | W62: - | X62: - | Y62: Arthur Santiago | Z62: 90 | AA62: - | AB62: - | AC62: - | AD62: Arthur Santiago | AE62: 90 | AF62: - | AG62: - | AH62: -
F63: XXXXXX | G63: 0 | H63: XXXXXX | I63: 0 | J63: XXXXXX | K63: 0 | L63: XXXXXX | M63: 0 | N63: XXXXXX | O63: 0 | P63: XXXXXX | Q63: 0 | R63: XXXXXX | S63: 0 | T63: XXXXXX | U63: 0 | V63: - | W63: - | X63: - | Y63: XXXXXX | Z63: 0 | AA63: - | AB63: - | AC63: - | AD63: XXXXXX | AE63: 0 | AF63: - | AG63: - | AH63: -
F64: XXXXXX | G64: 0 | H64: XXXXXX | I64: 0 | J64: XXXXXX | K64: 0 | L64: XXXXXX | M64: 0 | N64: XXXXXX | O64: 0 | P64: XXXXXX | Q64: 0 | R64: XXXXXX | S64: 0 | T64: XXXXXX | U64: 0 | V64: - | W64: - | X64: - | Y64: XXXXXX | Z64: 0 | AA64: - | AB64: - | AC64: - | AD64: XXXXXX | AE64: 0 | AF64: - | AG64: - | AH64: -
A65: 11º | F65: Grupo Santiago / RNG1 | G65: 19 | H65: Grupo Santiago / RNG1 | I65: 63 | J65: Grupo Santiago / RNG1 | K65: 109 | L65: Gui Figueiredo | M65: 128 | N65: Gui Figueiredo | O65: 144 | P65: Gui Figueiredo | Q65: 144 | R65: Gui Figueiredo | S65: 167 | T65: Gui Figueiredo | U65: 187 | V65: =U5-U65 -> 353 | W65: =$C$17-U65 -> -130 | X65: =U59-U65 -> 89 | Y65: Gui Figueiredo | Z65: 216 | AA65: =Z5-Z65 -> 387 | AB65: =$C$17-Z65 -> -159 | AC65: =Z59-Z65 -> 98 | AD65: Gui Figueiredo | AE65: 243
F66: Gabriel Gontijo | G66: 19 | H66: Gabriel Gontijo | I66: 43 | J66: Gabriel Gontijo | K66: 67 | L66: Mathias Almeida | M66: 41 | N66: Mathias Almeida | O66: 57 | P66: Mathias Almeida | Q66: 57 | R66: Mathias Almeida | S66: 57 | T66: Mathias Almeida | U66: 57 | V66: - | W66: - | X66: - | Y66: Mathias Almeida | Z66: 57 | AA66: - | AB66: - | AC66: - | AD66: Mathias Almeida | AE66: 57
F67: XXXXXX | G67: 0 | H67: Vitor Diniz | I67: 20 | J67: Vitor Diniz | K67: 42 | L67: Aparecido Faria | M67: 55 | N67: Aparecido Faria | O67: 55 | P67: Aparecido Faria | Q67: 55 | R67: Aparecido Faria | S67: 78 | T67: Aparecido Faria | U67: 98 | V67: - | W67: - | X67: - | Y67: Aparecido Faria | Z67: 127 | AA67: - | AB67: - | AC67: - | AD67: Aparecido Faria | AE67: 154
F68: XXXXXX | G68: 0 | H68: XXXXXX | I68: 0 | J68: XXXXXX | K68: 0 | L68: Pericles Barcelos | M68: 32 | N68: Pericles Barcelos | O68: 32 | P68: Pericles Barcelos | Q68: 32 | R68: Pericles Barcelos | S68: 32 | T68: Pericles Barcelos | U68: 32 | V68: - | W68: - | X68: - | Y68: Pericles Barcelos | Z68: 32 | AA68: - | AB68: - | AC68: - | AD68: Pericles Barcelos | AE68: 32
F69: XXXXXX | G69: 0 | H69: XXXXXX | I69: 0 | J69: XXXXXX | K69: 0 | L69: XXXXXX | M69: 0 | N69: XXXXXX | O69: 0 | P69: XXXXXX | Q69: 0 | R69: XXXXXX | S69: 0 | T69: XXXXXX | U69: 0 | V69: - | W69: - | X69: - | Y69: XXXXXX | Z69: 0 | AA69: - | AB69: - | AC69: - | AD69: XXXXXX | AE69: 0
F70: XXXXXX | G70: 0 | J70: XXXXXX | K70: 0 | L70: XXXXXX | M70: 0 | N70: XXXXXX | O70: 0 | P70: XXXXXX | Q70: 0 | R70: XXXXXX | S70: 0 | T70: XXXXXX | U70: 0 | V70: - | W70: - | X70: - | Y70: XXXXXX | Z70: 0 | AA70: - | AB70: - | AC70: - | AD70: XXXXXX | AE70: 0

Sheet TABELA
A1: 2021 | E1: OK | I1: OK | M1: OK | Q1: OK | U1: OK | Y1: OK | AC1: OK | AG1: OK | AK1: OK | AO1: OK | AS1: OK | AW1: OK
D2: 2ª etapa | H2: 5ª etapa | L2: 6ª etapa | P2: 7ª etapa | T2: 8ª etapa | X2: Etapa 9 09/09/2021 - 21:15 | AB2: Etapa 10 14/10/2021 - 21:15 | AF2: Etapa 11 11/11/2021 - 21:15 | AJ2: Etapa 12 09/12/2021 - 21:15 | AN2: Etapa01 09/12/2021 - 22:45 | AR2: Etapa 03 | AV2: Etapa 04
D3: SUPER | T3: 2021-08-12
B4: Nome do (a) Piloto (a) | C4: Pontuação Geral | D4: Posição | E4: Pontos | F4: Bônus | G4: Penalidade | H4: Posição | I4: Pontos | J4: Bônus | K4: Penalidade | L4: Posição | M4: Pontos | N4: Bônus | O4: Penalidade | P4: Posição | Q4: Pontos | R4: Bônus | S4: Penalidade | T4: Posição | U4: Pontos | V4: Bônus | W4: Penalidade | X4: Posição | Y4: Pontos | Z4: Bônus | AA4: Penalidade | AB4: Posição | AC4: Pontos | AD4: Bônus | AE4: Penalidade | AF4: Posição | AG4: Pontos | AH4: Bônus | AI4: Penalidade | AJ4: Posição | AK4: Pontos | AL4: Bônus | AM4: Penalidade | AN4: Posição | AO4: Pontos | AP4: Bônus | AQ4: Penalidade | AR4: Posição | AS4: Pontos | AT4: Bônus | AU4: Penalidade | AV4: Posição | AW4: Pontos | AX4: Bônus | AY4: Penalidade | AZ4: 1º LUGAR | BA4: 2º LUGAR | BB4: 3º LUGAR | BC4: 4º LUGAR | BD4: 5º LUGAR | BE4: 6º LUGAR | BF4: 7º LUGAR | BG4: 8º LUGAR | BH4: 9º LUGAR | BI4: 10º LUGAR | BJ4: 11º LUGAR | BK4: 12º LUGAR | BL4: 13º LUGAR | BM4: 14º LUGAR | BN4: 15º LUGAR | BO4: 16º LUGAR | BP4: 17º LUGAR | BQ4: 18º LUGAR | BR4: 19º LUGAR | BS4: 20º LUGAR | BT4: 21º LUGAR | BU4: 22º LUGAR | BV4: 23º LUGAR | BW4: 24º LUGAR | BX4: 25º LUGAR | BY4: 26º LUGAR | BZ4: 27º LUGAR | CA4: 28º LUGAR | CB4: 29º LUGAR | CC4: 30º LUGAR | CD4: 31º LUGAR | CE4: 32º LUGAR | CF4: 33º LUGAR | CG4: 34º LUGAR | CH4: 35º LUGAR | CI4: 36º LUGAR | CJ4: 37º LUGAR | CK4: 38º LUGAR | CL4: 39º LUGAR | CM4: 40º LUGAR | CN4: 41º LUGAR
A5: 1 | B5: Agostinho Neves | C5: 276 | D5: 2 | E5: 40 | H5: 21 | I5: 15 | M5: 0 | P5: 9 | Q5: 27 | T5: 7 | U5: 29 | Y5: 0 | AC5: 0 | AF5: 7 | AG5: 29 | AJ5: 10 | AK5: 26 | AN5: 2 | AO5: 40 | AR5: 4 | AS5: 35 | AV5: 4 | AW5: 35 | AZ5: 0 | BA5: 2 | BB5: 0 | BC5: 2 | BD5: 0 | BE5: 0 | BF5: 2 | BG5: 0 | BH5: 1 | BI5: 1 | BJ5: 0 | BK5: 0 | BL5: 0 | BM5: 0 | BN5: 0 | BO5: 0 | BP5: 0 | BQ5: 0 | BR5: 0 | BS5: 0 | BT5: 1 | BU5: 0 | BV5: 0 | BW5: 0 | BX5: 0 | BY5: 0 | BZ5: 0 | CA5: 0 | CB5: 0 | CC5: 0 | CD5: 0 | CE5: 0 | CF5: 0 | CG5: 0 | CH5: 0 | CI5: 0 | CJ5: 0 | CK5: 0 | CL5: 0 | CM5: 0 | CN5: 0
A6: 2 | B6: Alexandre Melillo | C6: 406 | D6: 5 | E6: 33 | H6: 9 | I6: 27 | L6: 6 | M6: 31 | P6: 6 | Q6: 31 | T6: 8 | U6: 28 | X6: 3 | Y6: 37 | AB6: 5 | AC6: 33 | AF6: 1 | AG6: 45 | AJ6: 7 | AK6: 29 | AN6: 1 | AO6: 45 | AR6: 5 | AS6: 33 | AT6: 1 | AV6: 5 | AW6: 33 | AZ6: 2 | BA6: 0 | BB6: 1 | BC6: 0 | BD6: 4 | BE6: 2 | BF6: 1 | BG6: 1 | BH6: 1 | BI6: 0 | BJ6: 0 | BK6: 0 | BL6: 0 | BM6: 0 | BN6: 0 | BO6: 0 | BP6: 0 | BQ6: 0 | BR6: 0 | BS6: 0 | BT6: 0 | BU6: 0 | BV6: 0 | BW6: 0 | BX6: 0 | BY6: 0 | BZ6: 0 | CA6: 0 | CB6: 0 | CC6: 0 | CD6: 0 | CE6: 0 | CF6: 0 | CG6: 0 | CH6: 0 | CI6: 0 | CJ6: 0 | CK6: 0 | CL6: 0 | CM6: 0 | CN6: 0
A7: 3 | B7: Anderson Oliveira | C7: 258 | D7: 11 | E7: 25 | H7: 11 | I7: 25 | L7: 8 | M7: 28 | P7: 11 | Q7: 25 | T7: 9 | U7: 27 | X7: 6 | Y7: 31 | AC7: 0 | AG7: 0 | AJ7: 14 | AK7: 22 | AN7: 11 | AO7: 25 | AR7: 12 | AS7: 24 | AV7: 10 | AW7: 26 | AZ7: 0 | BA7: 0 | BB7: 0 | BC7: 0 | BD7: 0 | BE7: 1 | BF7: 0 | BG7: 1 | BH7: 1 | BI7: 1 | BJ7: 4 | BK7: 1 | BL7: 0 | BM7: 1 | BN7: 0 | BO7: 0 | BP7: 0 | BQ7: 0 | BR7: 0 | BS7: 0 | BT7: 0 | BU7: 0 | BV7: 0 | BW7: 0 | BX7: 0 | BY7: 0 | BZ7: 0 | CA7: 0 | CB7: 0 | CC7: 0 | CD7: 0 | CE7: 0 | CF7: 0 | CG7: 0 | CH7: 0 | CI7: 0 | CJ7: 0 | CK7: 0 | CL7: 0 | CM7: 0 | CN7: 0
A8: 4 | B8: Anderson Teixeira | C8: 361 | D8: 12 | E8: 24 | H8: 1 | I8: 45 | J8: 1 | L8: 12 | M8: 24 | P8: 7 | Q8: 29 | T8: 4 | U8: 35 | X8: 13 | Y8: 23 | AB8: 14 | AC8: 22 | AF8: 4 | AG8: 35 | AJ8: 5 | AK8: 33 | AN8: 4 | AO8: 35 | AR8: 6 | AS8: 31 | AV8: 12 | AW8: 24 | AZ8: 0 | BA8: 0 | BB8: 0 | BC8: 0 | BD8: 0 | BE8: 0 | BF8: 0 | BG8: 0 | BH8: 0 | BI8: 0 | BJ8: 0 | BK8: 0 | BL8: 0 | BM8: 0 | BN8: 0 | BO8: 0 | BP8: 0 | BQ8: 0 | BR8: 0 | BS8: 0 | BT8: 0 | BU8: 0 | BV8: 0 | BW8: 0 | BX8: 0 | BY8: 0 | BZ8: 0 | CA8: 0 | CB8: 0 | CC8: 0 | CD8: 0 | CE8: 0 | CF8: 0 | CG8: 0 | CH8: 0 | CI8: 0 | CJ8: 0 | CK8: 0 | CL8: 0 | CM8: 0 | CN8: 0
A9: 5 | B9: Aparecido Faria | C9: 154 | E9: 0 | H9: 12 | I9: 24 | M9: 0 | Q9: 0 | T9: 6 | U9: 31 | Y9: 0 | AC9: 0 | AG9: 0 | AJ9: 13 | AK9: 23 | AN9: 16 | AO9: 20 | AR9: 7 | AS9: 29 | AV9: 9 | AW9: 27 | AZ9: 0 | BA9: 0 | BB9: 0 | BC9: 0 | BD9: 0 | BE9: 0 | BF9: 0 | BG9: 0 | BH9: 0 | BI9: 0 | BJ9: 0 | BK9: 0 | BL9: 0 | BM9: 0 | BN9: 0 | BO9: 0 | BP9: 0 | BQ9: 0 | BR9: 0 | BS9: 0 | BT9: 0 | BU9: 0 | BV9: 0 | BW9: 0 | BX9: 0 | BY9: 0 | BZ9: 0 | CA9: 0 | CB9: 0 | CC9: 0 | CD9: 0 | CE9: 0 | CF9: 0 | CG9: 0 | CH9: 0 | CI9: 0 | CJ9: 0 | CK9: 0 | CL9: 0 | CM9: 0 | CN9: 0
A10: 6 | B10: Arthur Santiago | C10: 90 | D10: 16 | E10: 20 | H10: 16 | I10: 20 | M10: 0 | P10: 13 | Q10: 23 | U10: 0 | Y10: 0 | AB10: 9 | AC10: 27 | AG10: 0 | AK10: 0 | AO10: 0 | AS10: 0 | AW10: 0 | AZ10: 0 | BA10: 0 | BB10: 0 | BC10: 0 | BD10: 0 | BE10: 0 | BF10: 0 | BG10: 0 | BH10: 0 | BI10: 0 | BJ10: 0 | BK10: 0 | BL10: 0 | BM10: 0 | BN10: 0 | BO10: 0 | BP10: 0 | BQ10: 0 | BR10: 0 | BS10: 0 | BT10: 0 | BU10: 0 | BV10: 0 | BW10: 0 | BX10: 0 | BY10: 0 | BZ10: 0 | CA10: 0 | CB10: 0 | CC10: 0 | CD10: 0 | CE10: 0 | CF10: 0 | CG10: 0 | CH10: 0 | CI10: 0 | CJ10: 0 | CK10: 0 | CL10: 0 | CM10: 0 | CN10: 0
A11: 7 | B11: Bruno Camargos | C11: 112 | D11: 18 | E11: 18 | H11: 18 | I11: 18 | L11: 14 | M11: 22 | P11: 14 | Q11: 22 | U11: 0 | X11: 23 | Y11: 13 | AA11: SIM | AC11: 0 | AG11: 0 | AJ11: 17 | AK11: 19 | AO11: 0 | AS11: 0 | AW11: 0 | AZ11: 0 | BA11: 0 | BB11: 0 | BC11: 0 | BD11: 0 | BE11: 0 | BF11: 0 | BG11: 0 | BH11: 0 | BI11: 0 | BJ11: 0 | BK11: 0 | BL11: 0 | BM11: 0 | BN11: 0 | BO11: 0 | BP11: 0 | BQ11: 0 | BR11: 0 | BS11: 0 | BT11: 0 | BU11: 0 | BV11: 0 | BW11: 0 | BX11: 0 | BY11: 0 | BZ11: 0 | CA11: 0 | CB11: 0 | CC11: 0 | CD11: 0 | CE11: 0 | CF11: 0 | CG11: 0 | CH11: 0 | CI11: 0 | CJ11: 0 | CK11: 0 | CL11: 0 | CM11: 0 | CN11: 0
A12: 8 | B12: Diego Silva | C12: 149 | D12: 7 | E12: 29 | H12: 10 | I12: 26 | L12: 4 | M12: 35 | Q12: 0 | U12: 0 | Y12: 0 | AB12: 11 | AC12: 25 | AF12: 5 | AG12: 33 | AH12: 1 | AK12: 0 | AO12: 0 | AS12: 0 | AW12: 0 | AZ12: 0 | BA12: 0 | BB12: 0 | BC12: 0 | BD12: 0 | BE12: 0 | BF12: 0 | BG12: 0 | BH12: 0 | BI12: 0 | BJ12: 0 | BK12: 0 | BL12: 0 | BM12: 0 | BN12: 0 | BO12: 0 | BP12: 0 | BQ12: 0 | BR12: 0 | BS12: 0 | BT12: 0 | BU12: 0 | BV12: 0 | BW12: 0 | BX12: 0 | BY12: 0 | BZ12: 0 | CA12: 0 | CB12: 0 | CC12: 0 | CD12: 0 | CE12: 0 | CF12: 0 | CG12: 0 | CH12: 0 | CI12: 0 | CJ12: 0 | CK12: 0 | CL12: 0 | CM12: 0 | CN12: 0
A13: 9 | B13: Felipe Franca | C13: 282 | D13: 15 | E13: 21 | H13: 13 | I13: 23 | L13: 5 | M13: 33 | P13: 4 | Q13: 35 | T13: 5 | U13: 33 | Y13: 0 | AB13: 23 | AC13: 13 | AE13: SIM | AG13: 0 | AJ13: 11 | AK13: 25 | AN13: 6 | AO13: 31 | AR13: 3 | AS13: 37 | AV13: 6 | AW13: 31 | AZ13: 0 | BA13: 0 | BB13: 0 | BC13: 0 | BD13: 0 | BE13: 0 | BF13: 0 | BG13: 0 | BH13: 0 | BI13: 0 | BJ13: 0 | BK13: 0 | BL13: 0 | BM13: 0 | BN13: 0 | BO13: 0 | BP13: 0 | BQ13: 0 | BR13: 0 | BS13: 0 | BT13: 0 | BU13: 0 | BV13: 0 | BW13: 0 | BX13: 0 | BY13: 0 | BZ13: 0 | CA13: 0 | CB13: 0 | CC13: 0 | CD13: 0 | CE13: 0 | CF13: 0 | CG13: 0 | CH13: 0 | CI13: 0 | CJ13: 0 | CK13: 0 | CL13: 0 | CM13: 0 | CN13: 0
A14: 10 | B14: Fernando Mota | C14: 367 | D14: 1 | E14: 45 | F14: 1 | H14: 7 | I14: 29 | L14: 7 | M14: 29 | P14: 10 | Q14: 26 | T14: 3 | U14: 37 | X14: 7 | Y14: 29 | AB14: 16 | AC14: 20 | AG14: 0 | AJ14: 2 | AK14: 40 | AN14: 7 | AO14: 29 | AR14: 1 | AS14: 45 | AV14: 3 | AW14: 37 | AZ14: 0 | BA14: 0 | BB14: 0 | BC14: 0 | BD14: 0 | BE14: 0 | BF14: 0 | BG14: 0 | BH14: 0 | BI14: 0 | BJ14: 0 | BK14: 0 | BL14: 0 | BM14: 0 | BN14: 0 | BO14: 0 | BP14: 0 | BQ14: 0 | BR14: 0 | BS14: 0 | BT14: 0 | BU14: 0 | BV14: 0 | BW14: 0 | BX14: 0 | BY14: 0 | BZ14: 0 | CA14: 0 | CB14: 0 | CC14: 0 | CD14: 0 | CE14: 0 | CF14: 0 | CG14: 0 | CH14: 0 | CI14: 0 | CJ14: 0 | CK14: 0 | CL14: 0 | CM14: 0 | CN14: 0
A15: 11 | B15: Flavio Magalhães | C15: 200 | E15: 0 | I15: 0 | L15: 16 | M15: 20 | P15: 8 | Q15: 28 | T15: 11 | U15: 25 | X15: 11 | Y15: 25 | AB15: 10 | AC15: 26 | AF15: 6 | AG15: 31 | AJ15: 15 | AK15: 21 | AN15: 12 | AO15: 24 | AS15: 0 | AW15: 0 | AZ15: 0 | BA15: 0 | BB15: 0 | BC15: 0 | BD15: 0 | BE15: 0 | BF15: 0 | BG15: 0 | BH15: 0 | BI15: 0 | BJ15: 0 | BK15: 0 | BL15: 0 | BM15: 0 | BN15: 0 | BO15: 0 | BP15: 0 | BQ15: 0 | BR15: 0 | BS15: 0 | BT15: 0 | BU15: 0 | BV15: 0 | BW15: 0 | BX15: 0 | BY15: 0 | BZ15: 0 | CA15: 0 | CB15: 0 | CC15: 0 | CD15: 0 | CE15: 0 | CF15: 0 | CG15: 0 | CH15: 0 | CI15: 0 | CJ15: 0 | CK15: 0 | CL15: 0 | CM15: 0 | CN15: 0
A16: 12 | B16: Gladystone Reis | C16: 173 | D16: 14 | E16: 22 | H16: 20 | I16: 16 | L16: 18 | M16: 18 | P16: 17 | Q16: 19 | U16: 0 | X16: 15 | Y16: 21 | AC16: 0 | AF16: 12 | AG16: 24 | AK16: 0 | AO16: 0 | AR16: 11 | AS16: 25 | AV16: 8 | AW16: 28 | AZ16: 0 | BA16: 0 | BB16: 0 | BC16: 0 | BD16: 0 | BE16: 0 | BF16: 0 | BG16: 0 | BH16: 0 | BI16: 0 | BJ16: 0 | BK16: 0 | BL16: 0 | BM16: 0 | BN16: 0 | BO16: 0 | BP16: 0 | BQ16: 0 | BR16: 0 | BS16: 0 | BT16: 0 | BU16: 0 | BV16: 0 | BW16: 0 | BX16: 0 | BY16: 0 | BZ16: 0 | CA16: 0 | CB16: 0 | CC16: 0 | CD16: 0 | CE16: 0 | CF16: 0 | CG16: 0 | CH16: 0 | CI16: 0 | CJ16: 0 | CK16: 0 | CL16: 0 | CM16: 0 | CN16: 0
A17: 13 | B17: João Ferreira | C17: 37 | D17: 20 | E17: 16 | I17: 0 | M17: 0 | Q17: 0 | T17: 15 | U17: 21 | Y17: 0 | AC17: 0 | AG17: 0 | AK17: 0 | AO17: 0 | AS17: 0 | AW17: 0 | AZ17: 0 | BA17: 0 | BB17: 0 | BC17: 0 | BD17: 0 | BE17: 0 | BF17: 0 | BG17: 0 | BH17: 0 | BI17: 0 | BJ17: 0 | BK17: 0 | BL17: 0 | BM17: 0 | BN17: 0 | BO17: 0 | BP17: 0 | BQ17: 0 | BR17: 0 | BS17: 0 | BT17: 0 | BU17: 0 | BV17: 0 | BW17: 0 | BX17: 0 | BY17: 0 | BZ17: 0 | CA17: 0 | CB17: 0 | CC17: 0 | CD17: 0 | CE17: 0 | CF17: 0 | CG17: 0 | CH17: 0 | CI17: 0 | CJ17: 0 | CK17: 0 | CL17: 0 | CM17: 0 | CN17: 0
A18: 14 | B18: Leandro Leite | C18: 21 | E18: 0 | I18: 0 | M18: 0 | Q18: 0 | U18: 0 | Y18: 0 | AB18: 15 | AC18: 21 | AG18: 0 | AK18: 0 | AO18: 0 | AS18: 0 | AW18: 0 | AZ18: 0 | BA18: 0 | BB18: 0 | BC18: 0 | BD18: 0 | BE18: 0 | BF18: 0 | BG18: 0 | BH18: 0 | BI18: 0 | BJ18: 0 | BK18: 0 | BL18: 0 | BM18: 0 | BN18: 0 | BO18: 0 | BP18: 0 | BQ18: 0 | BR18: 0 | BS18: 0 | BT18: 0 | BU18: 0 | BV18: 0 | BW18: 0 | BX18: 0 | BY18: 0 | BZ18: 0 | CA18: 0 | CB18: 0 | CC18: 0 | CD18: 0 | CE18: 0 | CF18: 0 | CG18: 0 | CH18: 0 | CI18: 0 | CJ18: 0 | CK18: 0 | CL18: 0 | CM18: 0 | CN18: 0
A19: 15 | B19: Leodegario Junior | C19: 186 | D19: 13 | E19: 23 | H19: 17 | I19: 19 | L19: 13 | M19: 23 | Q19: 0 | T19: 13 | U19: 23 | X19: 12 | Y19: 24 | AB19: 8 | AC19: 28 | AG19: 0 | AJ19: 12 | AK19: 24 | AN19: 14 | AO19: 22 | AS19: 0 | AW19: 0 | AZ19: 0 | BA19: 0 | BB19: 0 | BC19: 0 | BD19: 0 | BE19: 0 | BF19: 0 | BG19: 0 | BH19: 0 | BI19: 0 | BJ19: 0 | BK19: 0 | BL19: 0 | BM19: 0 | BN19: 0 | BO19: 0 | BP19: 0 | BQ19: 0 | BR19: 0 | BS19: 0 | BT19: 0 | BU19: 0 | BV19: 0 | BW19: 0 | BX19: 0 | BY19: 0 | BZ19: 0 | CA19: 0 | CB19: 0 | CC19: 0 | CD19: 0 | CE19: 0 | CF19: 0 | CG19: 0 | CH19: 0 | CI19: 0 | CJ19: 0 | CK19: 0 | CL19: 0 | CM19: 0 | CN19: 0
A20: 16 | B20: Lucas Mourão | C20: 52 | D20: 19 | E20: 17 | H20: 22 | I20: 14 | M20: 0 | P20: 15 | Q20: 21 | U20: 0 | Y20: 0 | AC20: 0 | AG20: 0 | AK20: 0 | AO20: 0 | AS20: 0 | AW20: 0 | AZ20: 0 | BA20: 0 | BB20: 0 | BC20: 0 | BD20: 0 | BE20: 0 | BF20: 0 | BG20: 0 | BH20: 0 | BI20: 0 | BJ20: 0 | BK20: 0 | BL20: 0 | BM20: 0 | BN20: 0 | BO20: 0 | BP20: 0 | BQ20: 0 | BR20: 0 | BS20: 0 | BT20: 0 | BU20: 0 | BV20: 0 | BW20: 0 | BX20: 0 | BY20: 0 | BZ20: 0 | CA20: 0 | CB20: 0 | CC20: 0 | CD20: 0 | CE20: 0 | CF20: 0 | CG20: 0 | CH20: 0 | CI20: 0 | CJ20: 0 | CK20: 0 | CL20: 0 | CM20: 0 | CN20: 0
A21: 17 | B21: Lucas Rabelo | C21: 400 | D21: 25 | E21: 11 | H21: 2 | I21: 40 | L21: 2 | M21: 40 | P21: 1 | Q21: 45 | U21: 0 | X21: 1 | Y21: 45 | Z21: 1 | AB21: 3 | AC21: 37 | AF21: 2 | AG21: 40 | AJ21: 1 | AK21: 45 | AL21: 1 | AN21: 9 | AO21: 27 | AR21: 8 | AS21: 28 | AV21: 2 | AW21: 40 | AZ21: 0 | BA21: 0 | BB21: 0 | BC21: 0 | BD21: 0 | BE21: 0 | BF21: 0 | BG21: 0 | BH21: 0 | BI21: 0 | BJ21: 0 | BK21: 0 | BL21: 0 | BM21: 0 | BN21: 0 | BO21: 0 | BP21: 0 | BQ21: 0 | BR21: 0 | BS21: 0 | BT21: 0 | BU21: 0 | BV21: 0 | BW21: 0 | BX21: 0 | BY21: 0 | BZ21: 0 | CA21: 0 | CB21: 0 | CC21: 0 | CD21: 0 | CE21: 0 | CF21: 0 | CG21: 0 | CH21: 0 | CI21: 0 | CJ21: 0 | CK21: 0 | CL21: 0 | CM21: 0 | CN21: 0
A22: 18 | B22: Luciano Brandão | C22: 224 | D22: 3 | E22: 37 | H22: 5 | I22: 33 | L22: 11 | M22: 25 | Q22: 0 | U22: 0 | X22: 9 | Y22: 27 | AB22: 7 | AC22: 29 | AF22: 11 | AG22: 25 | AJ22: 9 | AK22: 27 | AN22: 15 | AO22: 21 | AS22: 0 | AW22: 0 | AZ22: 0 | BA22: 0 | BB22: 0 | BC22: 0 | BD22: 0 | BE22: 0 | BF22: 0 | BG22: 0 | BH22: 0 | BI22: 0 | BJ22: 0 | BK22: 0 | BL22: 0 | BM22: 0 | BN22: 0 | BO22: 0 | BP22: 0 | BQ22: 0 | BR22: 0 | BS22: 0 | BT22: 0 | BU22: 0 | BV22: 0 | BW22: 0 | BX22: 0 | BY22: 0 | BZ22: 0 | CA22: 0 | CB22: 0 | CC22: 0 | CD22: 0 | CE22: 0 | CF22: 0 | CG22: 0 | CH22: 0 | CI22: 0 | CJ22: 0 | CK22: 0 | CL22: 0 | CM22: 0 | CN22: 0
A23: 19 | B23: Lúcio Chequer | C23: 284 | D23: 10 | E23: 26 | H23: 29 | I23: 7 | K23: SIM | L23: 9 | M23: 27 | P23: 18 | Q23: 18 | T23: 10 | U23: 26 | X23: 16 | Y23: 20 | AB23: 6 | AC23: 31 | AF23: 10 | AG23: 26 | AJ23: 8 | AK23: 28 | AN23: 13 | AO23: 23 | AR23: 9 | AS23: 27 | AV23: 11 | AW23: 25 | AZ23: 0 | BA23: 0 | BB23: 0 | BC23: 0 | BD23: 0 | BE23: 0 | BF23: 0 | BG23: 0 | BH23: 0 | BI23: 0 | BJ23: 0 | BK23: 0 | BL23: 0 | BM23: 0 | BN23: 0 | BO23: 0 | BP23: 0 | BQ23: 0 | BR23: 0 | BS23: 0 | BT23: 0 | BU23: 0 | BV23: 0 | BW23: 0 | BX23: 0 | BY23: 0 | BZ23: 0 | CA23: 0 | CB23: 0 | CC23: 0 | CD23: 0 | CE23: 0 | CF23: 0 | CG23: 0 | CH23: 0 | CI23: 0 | CJ23: 0 | CK23: 0 | CL23: 0 | CM23: 0 | CN23: 0
A24: 20 | B24: Marcus Gregorio | C24: 281 | D24: 6 | E24: 31 | H24: 4 | I24: 35 | M24: 0 | P24: 2 | Q24: 40 | R24: 1 | U24: 0 | X24: 5 | Y24: 33 | AB24: 4 | AC24: 35 | AF24: 3 | AG24: 37 | AJ24: 6 | AK24: 31 | AN24: 3 | AO24: 37 | AP24: 1 | AS24: 0 | AW24: 0 | AZ24: 0 | BA24: 0 | BB24: 0 | BC24: 0 | BD24: 0 | BE24: 0 | BF24: 0 | BG24: 0 | BH24: 0 | BI24: 0 | BJ24: 0 | BK24: 0 | BL24: 0 | BM24: 0 | BN24: 0 | BO24: 0 | BP24: 0 | BQ24: 0 | BR24: 0 | BS24: 0 | BT24: 0 | BU24: 0 | BV24: 0 | BW24: 0 | BX24: 0 | BY24: 0 | BZ24: 0 | CA24: 0 | CB24: 0 | CC24: 0 | CD24: 0 | CE24: 0 | CF24: 0 | CG24: 0 | CH24: 0 | CI24: 0 | CJ24: 0 | CK24: 0 | CL24: 0 | CM24: 0 | CN24: 0
A25: 21 | B25: Matheus Dias | C25: 56 | D25: 24 | E25: 12 | F25: 1 | G25: SIM | H25: 19 | I25: 17 | L25: 10 | M25: 26 | Q25: 0 | U25: 0 | Y25: 0 | AC25: 0 | AG25: 0 | AK25: 0 | AO25: 0 | AS25: 0 | AW25: 0 | AZ25: 0 | BA25: 0 | BB25: 0 | BC25: 0 | BD25: 0 | BE25: 0 | BF25: 0 | BG25: 0 | BH25: 0 | BI25: 0 | BJ25: 0 | BK25: 0 | BL25: 0 | BM25: 0 | BN25: 0 | BO25: 0 | BP25: 0 | BQ25: 0 | BR25: 0 | BS25: 0 | BT25: 0 | BU25: 0 | BV25: 0 | BW25: 0 | BX25: 0 | BY25: 0 | BZ25: 0 | CA25: 0 | CB25: 0 | CC25: 0 | CD25: 0 | CE25: 0 | CF25: 0 | CG25: 0 | CH25: 0 | CI25: 0 | CJ25: 0 | CK25: 0 | CL25: 0 | CM25: 0 | CN25: 0
A26: 22 | B26: Mathias Almeida | C26: 57 | D26: 17 | E26: 19 | H26: 15 | I26: 21 | L26: 20 | M26: 16 | N26: 1 | Q26: 0 | U26: 0 | Y26: 0 | AC26: 0 | AG26: 0 | AK26: 0 | AO26: 0 | AS26: 0 | AW26: 0 | AZ26: 0 | BA26: 0 | BB26: 0 | BC26: 0 | BD26: 0 | BE26: 0 | BF26: 0 | BG26: 0 | BH26: 0 | BI26: 0 | BJ26: 0 | BK26: 0 | BL26: 0 | BM26: 0 | BN26: 0 | BO26: 0 | BP26: 0 | BQ26: 0 | BR26: 0 | BS26: 0 | BT26: 0 | BU26: 0 | BV26: 0 | BW26: 0 | BX26: 0 | BY26: 0 | BZ26: 0 | CA26: 0 | CB26: 0 | CC26: 0 | CD26: 0 | CE26: 0 | CF26: 0 | CG26: 0 | CH26: 0 | CI26: 0 | CJ26: 0 | CK26: 0 | CL26: 0 | CM26: 0 | CN26: 0
A27: 23 | B27: Pericles Barcelos | C27: 32 | D27: 21 | E27: 15 | H27: 0 | I27: 0 | K27: SIM | M27: 0 | P27: 19 | Q27: 17 | U27: 0 | Y27: 0 | AC27: 0 | AG27: 0 | AK27: 0 | AO27: 0 | AS27: 0 | AW27: 0 | AZ27: 0 | BA27: 0 | BB27: 0 | BC27: 0 | BD27: 0 | BE27: 0 | BF27: 0 | BG27: 0 | BH27: 0 | BI27: 0 | BJ27: 0 | BK27: 0 | BL27: 0 | BM27: 0 | BN27: 0 | BO27: 0 | BP27: 0 | BQ27: 0 | BR27: 0 | BS27: 0 | BT27: 0 | BU27: 0 | BV27: 0 | BW27: 0 | BX27: 0 | BY27: 0 | BZ27: 0 | CA27: 0 | CB27: 0 | CC27: 0 | CD27: 0 | CE27: 0 | CF27: 0 | CG27: 0 | CH27: 0 | CI27: 0 | CJ27: 0 | CK27: 0 | CL27: 0 | CM27: 0 | CN27: 0
A28: 24 | B28: Petronio Jr. | C28: 314 | D28: 23 | E28: 13 | H28: 3 | I28: 37 | L28: 1 | M28: 45 | P28: 5 | Q28: 33 | T28: 1 | U28: 45 | V28: 1 | X28: 4 | Y28: 35 | AB28: 2 | AC28: 40 | AG28: 0 | AJ28: 3 | AK28: 37 | AN28: 8 | AO28: 28 | AS28: 0 | AW28: 0 | AZ28: 0 | BA28: 0 | BB28: 0 | BC28: 0 | BD28: 0 | BE28: 0 | BF28: 0 | BG28: 0 | BH28: 0 | BI28: 0 | BJ28: 0 | BK28: 0 | BL28: 0 | BM28: 0 | BN28: 0 | BO28: 0 | BP28: 0 | BQ28: 0 | BR28: 0 | BS28: 0 | BT28: 0 | BU28: 0 | BV28: 0 | BW28: 0 | BX28: 0 | BY28: 0 | BZ28: 0 | CA28: 0 | CB28: 0 | CC28: 0 | CD28: 0 | CE28: 0 | CF28: 0 | CG28: 0 | CH28: 0 | CI28: 0 | CJ28: 0 | CK28: 0 | CL28: 0 | CM28: 0 | CN28: 0
A29: 25 | B29: Rafael Miranda | C29: 410 | D29: 8 | E29: 28 | H29: 8 | I29: 28 | L29: 3 | M29: 37 | P29: 3 | Q29: 37 | T29: 2 | U29: 40 | X29: 2 | Y29: 40 | AB29: 1 | AC29: 45 | AD29: 1 | AG29: 0 | AJ29: 4 | AK29: 35 | AN29: 5 | AO29: 33 | AR29: 2 | AS29: 40 | AV29: 1 | AW29: 45 | AX29: 1 | AZ29: 0 | BA29: 0 | BB29: 0 | BC29: 0 | BD29: 0 | BE29: 0 | BF29: 0 | BG29: 0 | BH29: 0 | BI29: 0 | BJ29: 0 | BK29: 0 | BL29: 0 | BM29: 0 | BN29: 0 | BO29: 0 | BP29: 0 | BQ29: 0 | BR29: 0 | BS29: 0 | BT29: 0 | BU29: 0 | BV29: 0 | BW29: 0 | BX29: 0 | BY29: 0 | BZ29: 0 | CA29: 0 | CB29: 0 | CC29: 0 | CD29: 0 | CE29: 0 | CF29: 0 | CG29: 0 | CH29: 0 | CI29: 0 | CJ29: 0 | CK29: 0 | CL29: 0 | CM29: 0 | CN29: 0
A30: 26 | B30: Robert Freitas | C30: 0 | E30: 0 | I30: 0 | M30: 0 | Q30: 0 | U30: 0 | Y30: 0 | AC30: 0 | AG30: 0 | AK30: 0 | AO30: 0 | AS30: 0 | AW30: 0 | AZ30: 0 | BA30: 0 | BB30: 0 | BC30: 0 | BD30: 0 | BE30: 0 | BF30: 0 | BG30: 0 | BH30: 0 | BI30: 0 | BJ30: 0 | BK30: 0 | BL30: 0 | BM30: 0 | BN30: 0 | BO30: 0 | BP30: 0 | BQ30: 0 | BR30: 0 | BS30: 0 | BT30: 0 | BU30: 0 | BV30: 0 | BW30: 0 | BX30: 0 | BY30: 0 | BZ30: 0 | CA30: 0 | CB30: 0 | CC30: 0 | CD30: 0 | CE30: 0 | CF30: 0 | CG30: 0 | CH30: 0 | CI30: 0 | CJ30: 0 | CK30: 0 | CL30: 0 | CM30: 0 | CN30: 0
A31: 27 | B31: Thales Silva | C31: 70 | D31: 9 | E31: 27 | H31: 14 | I31: 22 | L31: 15 | M31: 21 | Q31: 0 | U31: 0 | Y31: 0 | AC31: 0 | AG31: 0 | AK31: 0 | AO31: 0 | AS31: 0 | AW31: 0 | AZ31: 0 | BA31: 0 | BB31: 0 | BC31: 0 | BD31: 0 | BE31: 0 | BF31: 0 | BG31: 0 | BH31: 0 | BI31: 0 | BJ31: 0 | BK31: 0 | BL31: 0 | BM31: 0 | BN31: 0 | BO31: 0 | BP31: 0 | BQ31: 0 | BR31: 0 | BS31: 0 | BT31: 0 | BU31: 0 | BV31: 0 | BW31: 0 | BX31: 0 | BY31: 0 | BZ31: 0 | CA31: 0 | CB31: 0 | CC31: 0 | CD31: 0 | CE31: 0 | CF31: 0 | CG31: 0 | CH31: 0 | CI31: 0 | CJ31: 0 | CK31: 0 | CL31: 0 | CM31: 0 | CN31: 0
A32: 28 | B32: Wilson Cristofani | C32: 42 | D32: 22 | E32: 14 | I32: 0 | M32: 0 | Q32: 0 | U32: 0 | X32: 8 | Y32: 28 | AC32: 0 | AG32: 0 | AK32: 0 | AO32: 0 | AS32: 0 | AW32: 0 | AZ32: 0 | BA32: 0 | BB32: 0 | BC32: 0 | BD32: 0 | BE32: 0 | BF32: 0 | BG32: 0 | BH32: 0 | BI32: 0 | BJ32: 0 | BK32: 0 | BL32: 0 | BM32: 0 | BN32: 0 | BO32: 0 | BP32: 0 | BQ32: 0 | BR32: 0 | BS32: 0 | BT32: 0 | BU32: 0 | BV32: 0 | BW32: 0 | BX32: 0 | BY32: 0 | BZ32: 0 | CA32: 0 | CB32: 0 | CC32: 0 | CD32: 0 | CE32: 0 | CF32: 0 | CG32: 0 | CH32: 0 | CI32: 0 | CJ32: 0 | CK32: 0 | CL32: 0 | CM32: 0 | CN32: 0
A33: 29 | B33: Luis Cáceres | C33: 0 | E33: 0 | I33: 0 | M33: 0 | Q33: 0 | U33: 0 | Y33: 0 | AC33: 0 | AG33: 0 | AK33: 0 | AO33: 0 | AS33: 0 | AW33: 0 | AZ33: 0 | BA33: 0 | BB33: 0 | BC33: 0 | BD33: 0 | BE33: 0 | BF33: 0 | BG33: 0 | BH33: 0 | BI33: 0 | BJ33: 0 | BK33: 0 | BL33: 0 | BM33: 0 | BN33: 0 | BO33: 0 | BP33: 0 | BQ33: 0 | BR33: 0 | BS33: 0 | BT33: 0 | BU33: 0 | BV33: 0 | BW33: 0 | BX33: 0 | BY33: 0 | BZ33: 0 | CA33: 0 | CB33: 0 | CC33: 0 | CD33: 0 | CE33: 0 | CF33: 0 | CG33: 0 | CH33: 0 | CI33: 0 | CJ33: 0 | CK33: 0 | CL33: 0 | CM33: 0 | CN33: 0
A34: 30 | B34: Felipe Curi | C34: 83 | D34: 4 | E34: 35 | H34: 6 | I34: 31 | L34: 19 | M34: 17 | O34: SIM | Q34: 0 | U34: 0 | Y34: 0 | AC34: 0 | AG34: 0 | AK34: 0 | AO34: 0 | AS34: 0 | AW34: 0 | AZ34: 0 | BA34: 0 | BB34: 0 | BC34: 0 | BD34: 0 | BE34: 0 | BF34: 0 | BG34: 0 | BH34: 0 | BI34: 0 | BJ34: 0 | BK34: 0 | BL34: 0 | BM34: 0 | BN34: 0 | BO34: 0 | BP34: 0 | BQ34: 0 | BR34: 0 | BS34: 0 | BT34: 0 | BU34: 0 | BV34: 0 | BW34: 0 | BX34: 0 | BY34: 0 | BZ34: 0 | CA34: 0 | CB34: 0 | CC34: 0 | CD34: 0 | CE34: 0 | CF34: 0 | CG34: 0 | CH34: 0 | CI34: 0 | CJ34: 0 | CK34: 0 | CL34: 0 | CM34: 0 | CN34: 0
A35: 31 | B35: Gabriel Gontijo | C35: 195 | E35: 0 | I35: 0 | L35: 17 | M35: 19 | P35: 12 | Q35: 24 | T35: 12 | U35: 24 | X35: 14 | Y35: 22 | AB35: 12 | AC35: 24 | AF35: 9 | AG35: 27 | AK35: 0 | AO35: 0 | AR35: 10 | AS35: 26 | AV35: 7 | AW35: 29 | AZ35: 0 | BA35: 0 | BB35: 0 | BC35: 0 | BD35: 0 | BE35: 0 | BF35: 0 | BG35: 0 | BH35: 0 | BI35: 0 | BJ35: 0 | BK35: 0 | BL35: 0 | BM35: 0 | BN35: 0 | BO35: 0 | BP35: 0 | BQ35: 0 | BR35: 0 | BS35: 0 | BT35: 0 | BU35: 0 | BV35: 0 | BW35: 0 | BX35: 0 | BY35: 0 | BZ35: 0 | CA35: 0 | CB35: 0 | CC35: 0 | CD35: 0 | CE35: 0 | CF35: 0 | CG35: 0 | CH35: 0 | CI35: 0 | CJ35: 0 | CK35: 0 | CL35: 0 | CM35: 0 | CN35: 0
A36: 32 | B36: Vitor Diniz | C36: 165 | E36: 0 | I36: 0 | M36: 0 | P36: 16 | Q36: 20 | T36: 14 | U36: 22 | X36: 10 | Y36: 26 | AB36: 13 | AC36: 23 | AF36: 8 | AG36: 28 | AJ36: 16 | AK36: 20 | AN36: 10 | AO36: 26 | AS36: 0 | AW36: 0 | AZ36: 0 | BA36: 0 | BB36: 0 | BC36: 0 | BD36: 0 | BE36: 0 | BF36: 0 | BG36: 0 | BH36: 0 | BI36: 0 | BJ36: 0 | BK36: 0 | BL36: 0 | BM36: 0 | BN36: 0 | BO36: 0 | BP36: 0 | BQ36: 0 | BR36: 0 | BS36: 0 | BT36: 0 | BU36: 0 | BV36: 0 | BW36: 0 | BX36: 0 | BY36: 0 | BZ36: 0 | CA36: 0 | CB36: 0 | CC36: 0 | CD36: 0 | CE36: 0 | CF36: 0 | CG36: 0 | CH36: 0 | CI36: 0 | CJ36: 0 | CK36: 0 | CL36: 0 | CM36: 0 | CN36: 0
A37: 33 | C37: 0 | E37: 0 | I37: 0 | M37: 0 | Q37: 0 | U37: 0 | Y37: 0 | AC37: 0 | AG37: 0 | AK37: 0 | AO37: 0 | AS37: 0 | AW37: 0 | AZ37: 0 | BA37: 0 | BB37: 0 | BC37: 0 | BD37: 0 | BE37: 0 | BF37: 0 | BG37: 0 | BH37: 0 | BI37: 0 | BJ37: 0 | BK37: 0 | BL37: 0 | BM37: 0 | BN37: 0 | BO37: 0 | BP37: 0 | BQ37: 0 | BR37: 0 | BS37: 0 | BT37: 0 | BU37: 0 | BV37: 0 | BW37: 0 | BX37: 0 | BY37: 0 | BZ37: 0 | CA37: 0 | CB37: 0 | CC37: 0 | CD37: 0 | CE37: 0 | CF37: 0 | CG37: 0 | CH37: 0 | CI37: 0 | CJ37: 0 | CK37: 0 | CL37: 0 | CM37: 0 | CN37: 0
A38: 34 | C38: 0 | E38: 0 | I38: 0 | M38: 0 | Q38: 0 | U38: 0 | Y38: 0 | AC38: 0 | AG38: 0 | AK38: 0 | AO38: 0 | AS38: 0 | AW38: 0 | AZ38: 0 | BA38: 0 | BB38: 0 | BC38: 0 | BD38: 0 | BE38: 0 | BF38: 0 | BG38: 0 | BH38: 0 | BI38: 0 | BJ38: 0 | BK38: 0 | BL38: 0 | BM38: 0 | BN38: 0 | BO38: 0 | BP38: 0 | BQ38: 0 | BR38: 0 | BS38: 0 | BT38: 0 | BU38: 0 | BV38: 0 | BW38: 0 | BX38: 0 | BY38: 0 | BZ38: 0 | CA38: 0 | CB38: 0 | CC38: 0 | CD38: 0 | CE38: 0 | CF38: 0 | CG38: 0 | CH38: 0 | CI38: 0 | CJ38: 0 | CK38: 0 | CL38: 0 | CM38: 0 | CN38: 0
A39: 35 | C39: 0 | E39: 0 | I39: 0 | M39: 0 | Q39: 0 | U39: 0 | Y39: 0 | AC39: 0 | AG39: 0 | AK39: 0 | AO39: 0 | AS39: 0 | AW39: 0 | AZ39: 0 | BA39: 0 | BB39: 0 | BC39: 0 | BD39: 0 | BE39: 0 | BF39: 0 | BG39: 0 | BH39: 0 | BI39: 0 | BJ39: 0 | BK39: 0 | BL39: 0 | BM39: 0 | BN39: 0 | BO39: 0 | BP39: 0 | BQ39: 0 | BR39: 0 | BS39: 0 | BT39: 0 | BU39: 0 | BV39: 0 | BW39: 0 | BX39: 0 | BY39: 0 | BZ39: 0 | CA39: 0 | CB39: 0 | CC39: 0 | CD39: 0 | CE39: 0 | CF39: 0 | CG39: 0 | CH39: 0 | CI39: 0 | CJ39: 0 | CK39: 0 | CL39: 0 | CM39: 0 | CN39: 0
A40: 36 | C40: 0 | E40: 0 | I40: 0 | M40: 0 | Q40: 0 | U40: 0 | Y40: 0 | AC40: 0 | AG40: 0 | AK40: 0 | AO40: 0 | AS40: 0 | AW40: 0 | AZ40: 0 | BA40: 0 | BB40: 0 | BC40: 0 | BD40: 0 | BE40: 0 | BF40: 0 | BG40: 0 | BH40: 0 | BI40: 0 | BJ40: 0 | BK40: 0 | BL40: 0 | BM40: 0 | BN40: 0 | BO40: 0 | BP40: 0 | BQ40: 0 | BR40: 0 | BS40: 0 | BT40: 0 | BU40: 0 | BV40: 0 | BW40: 0 | BX40: 0 | BY40: 0 | BZ40: 0 | CA40: 0 | CB40: 0 | CC40: 0 | CD40: 0 | CE40: 0 | CF40: 0 | CG40: 0 | CH40: 0 | CI40: 0 | CJ40: 0 | CK40: 0 | CL40: 0 | CM40: 0 | CN40: 0
A41: 37 | C41: 0 | E41: 0 | I41: 0 | M41: 0 | Q41: 0 | U41: 0 | Y41: 0 | AC41: 0 | AG41: 0 | AK41: 0 | AO41: 0 | AS41: 0 | AW41: 0 | AZ41: 0 | BA41: 0 | BB41: 0 | BC41: 0 | BD41: 0 | BE41: 0 | BF41: 0 | BG41: 0 | BH41: 0 | BI41: 0 | BJ41: 0 | BK41: 0 | BL41: 0 | BM41: 0 | BN41: 0 | BO41: 0 | BP41: 0 | BQ41: 0 | BR41: 0 | BS41: 0 | BT41: 0 | BU41: 0 | BV41: 0 | BW41: 0 | BX41: 0 | BY41: 0 | BZ41: 0 | CA41: 0 | CB41: 0 | CC41: 0 | CD41: 0 | CE41: 0 | CF41: 0 | CG41: 0 | CH41: 0 | CI41: 0 | CJ41: 0 | CK41: 0 | CL41: 0 | CM41: 0 | CN41: 0
A42: 38 | C42: 0 | E42: 0 | I42: 0 | M42: 0 | Q42: 0 | U42: 0 | Y42: 0 | AC42: 0 | AG42: 0 | AK42: 0 | AO42: 0 | AS42: 0 | AW42: 0 | AZ42: 0 | BA42: 0 | BB42: 0 | BC42: 0 | BD42: 0 | BE42: 0 | BF42: 0 | BG42: 0 | BH42: 0 | BI42: 0 | BJ42: 0 | BK42: 0 | BL42: 0 | BM42: 0 | BN42: 0 | BO42: 0 | BP42: 0 | BQ42: 0 | BR42: 0 | BS42: 0 | BT42: 0 | BU42: 0 | BV42: 0 | BW42: 0 | BX42: 0 | BY42: 0 | BZ42: 0 | CA42: 0 | CB42: 0 | CC42: 0 | CD42: 0 | CE42: 0 | CF42: 0 | CG42: 0 | CH42: 0 | CI42: 0 | CJ42: 0 | CK42: 0 | CL42: 0 | CM42: 0 | CN42: 0
A43: 39 | C43: 0 | E43: 0 | I43: 0 | M43: 0 | Q43: 0 | U43: 0 | Y43: 0 | AC43: 0 | AG43: 0 | AK43: 0 | AO43: 0 | AS43: 0 | AW43: 0 | AZ43: 0 | BA43: 0 | BB43: 0 | BC43: 0 | BD43: 0 | BE43: 0 | BF43: 0 | BG43: 0 | BH43: 0 | BI43: 0 | BJ43: 0 | BK43: 0 | BL43: 0 | BM43: 0 | BN43: 0 | BO43: 0 | BP43: 0 | BQ43: 0 | BR43: 0 | BS43: 0 | BT43: 0 | BU43: 0 | BV43: 0 | BW43: 0 | BX43: 0 | BY43: 0 | BZ43: 0 | CA43: 0 | CB43: 0 | CC43: 0 | CD43: 0 | CE43: 0 | CF43: 0 | CG43: 0 | CH43: 0 | CI43: 0 | CJ43: 0 | CK43: 0 | CL43: 0 | CM43: 0 | CN43: 0
A44: 40 | C44: 0 | E44: 0 | I44: 0 | M44: 0 | Q44: 0 | U44: 0 | Y44: 0 | AC44: 0 | AG44: 0 | AK44: 0 | AO44: 0 | AS44: 0 | AW44: 0 | AZ44: 0 | BA44: 0 | BB44: 0 | BC44: 0 | BD44: 0 | BE44: 0 | BF44: 0 | BG44: 0 | BH44: 0 | BI44: 0 | BJ44: 0 | BK44: 0 | BL44: 0 | BM44: 0 | BN44: 0 | BO44: 0 | BP44: 0 | BQ44: 0 | BR44: 0 | BS44: 0 | BT44: 0 | BU44: 0 | BV44: 0 | BW44: 0 | BX44: 0 | BY44: 0 | BZ44: 0 | CA44: 0 | CB44: 0 | CC44: 0 | CD44: 0 | CE44: 0 | CF44: 0 | CG44: 0 | CH44: 0 | CI44: 0 | CJ44: 0 | CK44: 0 | CL44: 0 | CM44: 0 | CN44: 0
A45: 41 | C45: 0 | E45: 0 | I45: 0 | M45: 0 | Q45: 0 | U45: 0 | Y45: 0 | AC45: 0 | AG45: 0 | AK45: 0 | AO45: 0 | AS45: 0 | AW45: 0 | AZ45: 0 | BA45: 0 | BB45: 0 | BC45: 0 | BD45: 0 | BE45: 0 | BF45: 0 | BG45: 0 | BH45: 0 | BI45: 0 | BJ45: 0 | BK45: 0 | BL45: 0 | BM45: 0 | BN45: 0 | BO45: 0 | BP45: 0 | BQ45: 0 | BR45: 0 | BS45: 0 | BT45: 0 | BU45: 0 | BV45: 0 | BW45: 0 | BX45: 0 | BY45: 0 | BZ45: 0 | CA45: 0 | CB45: 0 | CC45: 0 | CD45: 0 | CE45: 0 | CF45: 0 | CG45: 0 | CH45: 0 | CI45: 0 | CJ45: 0 | CK45: 0 | CL45: 0 | CM45: 0 | CN45: 0
A46: 42 | C46: 0 | E46: 0 | I46: 0 | M46: 0 | Q46: 0 | U46: 0 | Y46: 0 | AC46: 0 | AG46: 0 | AK46: 0 | AO46: 0 | AS46: 0 | AW46: 0 | AZ46: 0 | BA46: 0 | BB46: 0 | BC46: 0 | BD46: 0 | BE46: 0 | BF46: 0 | BG46: 0 | BH46: 0 | BI46: 0 | BJ46: 0 | BK46: 0 | BL46: 0 | BM46: 0 | BN46: 0 | BO46: 0 | BP46: 0 | BQ46: 0 | BR46: 0 | BS46: 0 | BT46: 0 | BU46: 0 | BV46: 0 | BW46: 0 | BX46: 0 | BY46: 0 | BZ46: 0 | CA46: 0 | CB46: 0 | CC46: 0 | CD46: 0 | CE46: 0 | CF46: 0 | CG46: 0 | CH46: 0 | CI46: 0 | CJ46: 0 | CK46: 0 | CL46: 0 | CM46: 0 | CN46: 0
A47: 43 | C47: 0 | E47: 0 | I47: 0 | M47: 0 | Q47: 0 | U47: 0 | Y47: 0 | AC47: 0 | AG47: 0 | AK47: 0 | AO47: 0 | AS47: 0 | AW47: 0 | AZ47: 0 | BA47: 0 | BB47: 0 | BC47: 0 | BD47: 0 | BE47: 0 | BF47: 0 | BG47: 0 | BH47: 0 | BI47: 0 | BJ47: 0 | BK47: 0 | BL47: 0 | BM47: 0 | BN47: 0 | BO47: 0 | BP47: 0 | BQ47: 0 | BR47: 0 | BS47: 0 | BT47: 0 | BU47: 0 | BV47: 0 | BW47: 0 | BX47: 0 | BY47: 0 | BZ47: 0 | CA47: 0 | CB47: 0 | CC47: 0 | CD47: 0 | CE47: 0 | CF47: 0 | CG47: 0 | CH47: 0 | CI47: 0 | CJ47: 0 | CK47: 0 | CL47: 0 | CM47: 0 | CN47: 0
A48: 44 | C48: 0 | E48: 0 | I48: 0 | M48: 0 | Q48: 0 | U48: 0 | Y48: 0 | AC48: 0 | AG48: 0 | AK48: 0 | AO48: 0 | AS48: 0 | AW48: 0 | AZ48: 0 | BA48: 0 | BB48: 0 | BC48: 0 | BD48: 0 | BE48: 0 | BF48: 0 | BG48: 0 | BH48: 0 | BI48: 0 | BJ48: 0 | BK48: 0 | BL48: 0 | BM48: 0 | BN48: 0 | BO48: 0 | BP48: 0 | BQ48: 0 | BR48: 0 | BS48: 0 | BT48: 0 | BU48: 0 | BV48: 0 | BW48: 0 | BX48: 0 | BY48: 0 | BZ48: 0 | CA48: 0 | CB48: 0 | CC48: 0 | CD48: 0 | CE48: 0 | CF48: 0 | CG48: 0 | CH48: 0 | CI48: 0 | CJ48: 0 | CK48: 0 | CL48: 0 | CM48: 0 | CN48: 0
A49: 45 | C49: 0 | E49: 0 | I49: 0 | M49: 0 | Q49: 0 | U49: 0 | Y49: 0 | AC49: 0 | AG49: 0 | AK49: 0 | AO49: 0 | AS49: 0 | AW49: 0 | AZ49: 0 | BA49: 0 | BB49: 0 | BC49: 0 | BD49: 0 | BE49: 0 | BF49: 0 | BG49: 0 | BH49: 0 | BI49: 0 | BJ49: 0 | BK49: 0 | BL49: 0 | BM49: 0 | BN49: 0 | BO49: 0 | BP49: 0 | BQ49: 0 | BR49: 0 | BS49: 0 | BT49: 0 | BU49: 0 | BV49: 0 | BW49: 0 | BX49: 0 | BY49: 0 | BZ49: 0 | CA49: 0 | CB49: 0 | CC49: 0 | CD49: 0 | CE49: 0 | CF49: 0 | CG49: 0 | CH49: 0 | CI49: 0 | CJ49: 0 | CK49: 0 | CL49: 0 | CM49: 0 | CN49: 0

Sheet Classificação Geral
A1: 2021 | E1: OK | I1: OK | M1: OK | Q1: OK | U1: OK | Y1: OK | AC1: OK | AG1: OK | AK1: OK | AO1: OK | AS1: OK | AW1: OK
D2: 2ª etapa | H2: 5ª etapa | L2: 6ª etapa | P2: 7ª etapa | T2: 8ª etapa | X2: Etapa 9 09/09/2021 - 21:15 | AB2: Etapa 10 14/10/2021 - 21:15 | AF2: Etapa 11 11/11/2021 - 21:15 | AJ2: Etapa 12 09/12/2021 - 21:15 | AN2: Etapa01 09/12/2021 - 22:45 | AR2: Etapa 03 | AV2: Etapa 04
D3: SUPER | T3: 2021-08-12
B4: Nome do (a) Piloto (a) | C4: Pontuação Geral | D4: Posição | E4: Pontos | F4: Bônus | G4: Penalidade | H4: Posição | I4: Pontos | J4: Bônus | K4: Penalidade | L4: Posição | M4: Pontos | N4: Bônus | O4: Penalidade | P4: Posição | Q4: Pontos | R4: Bônus | S4: Penalidade | T4: Posição | U4: Pontos | V4: Bônus | W4: Penalidade | X4: Posição | Y4: Pontos | Z4: Bônus | AA4: Penalidade | AB4: Posição | AC4: Pontos | AD4: Bônus | AE4: Penalidade | AF4: Posição | AG4: Pontos | AH4: Bônus | AI4: Penalidade | AJ4: Posição | AK4: Pontos | AL4: Bônus | AM4: Penalidade | AN4: Posição | AO4: Pontos | AP4: Bônus | AQ4: Penalidade | AR4: Posição | AS4: Pontos | AT4: Bônus | AU4: Penalidade | AV4: Posição | AW4: Pontos | AX4: Bônus | AY4: Penalidade | AZ4: 1º LUGAR | BA4: 2º LUGAR | BB4: 3º LUGAR | BC4: 4º LUGAR | BD4: 5º LUGAR | BE4: 6º LUGAR | BF4: 7º LUGAR | BG4: 8º LUGAR | BH4: 9º LUGAR | BI4: 10º LUGAR | BJ4: 11º LUGAR | BK4: 12º LUGAR | BL4: 13º LUGAR | BM4: 14º LUGAR | BN4: 15º LUGAR | BO4: 16º LUGAR | BP4: 17º LUGAR | BQ4: 18º LUGAR | BR4: 19º LUGAR | BS4: 20º LUGAR | BT4: 21º LUGAR | BU4: 22º LUGAR | BV4: 23º LUGAR | BW4: 24º LUGAR | BX4: 25º LUGAR | BY4: 26º LUGAR | BZ4: 27º LUGAR | CA4: 28º LUGAR | CB4: 29º LUGAR | CC4: 30º LUGAR | CD4: 31º LUGAR | CE4: 32º LUGAR | CF4: 33º LUGAR | CG4: 34º LUGAR | CH4: 35º LUGAR | CI4: 36º LUGAR | CJ4: 37º LUGAR | CK4: 38º LUGAR | CL4: 39º LUGAR | CM4: 40º LUGAR | CN4: 41º LUGAR
A5: 1 | B5: Rafael Miranda | C5: 410 | D5: 8 | E5: 28 | H5: 8 | I5: 28 | L5: 3 | M5: 37 | P5: 3 | Q5: 37 | T5: 2 | U5: 40 | X5: 2 | Y5: 40 | AB5: 1 | AC5: 45 | AD5: 1 | AG5: 0 | AJ5: 4 | AK5: 35 | AN5: 5 | AO5: 33 | AR5: 2 | AS5: 40 | AV5: 1 | AW5: 45 | AX5: 1 | AZ5: 0 | BA5: 0 | BB5: 0 | BC5: 0 | BD5: 0 | BE5: 0 | BF5: 0 | BG5: 0 | BH5: 0 | BI5: 0 | BJ5: 0 | BK5: 0 | BL5: 0 | BM5: 0 | BN5: 0 | BO5: 0 | BP5: 0 | BQ5: 0 | BR5: 0 | BS5: 0 | BT5: 0 | BU5: 0 | BV5: 0 | BW5: 0 | BX5: 0 | BY5: 0 | BZ5: 0 | CA5: 0 | CB5: 0 | CC5: 0 | CD5: 0 | CE5: 0 | CF5: 0 | CG5: 0 | CH5: 0 | CI5: 0 | CJ5: 0 | CK5: 0 | CL5: 0 | CM5: 0 | CN5: 0
A6: 2 | B6: Alexandre Melillo | C6: 406 | D6: 5 | E6: 33 | H6: 9 | I6: 27 | L6: 6 | M6: 31 | P6: 6 | Q6: 31 | T6: 8 | U6: 28 | X6: 3 | Y6: 37 | AB6: 5 | AC6: 33 | AF6: 1 | AG6: 45 | AJ6: 7 | AK6: 29 | AN6: 1 | AO6: 45 | AR6: 5 | AS6: 33 | AT6: 1 | AV6: 5 | AW6: 33 | AZ6: 2 | BA6: 0 | BB6: 1 | BC6: 0 | BD6: 4 | BE6: 2 | BF6: 1 | BG6: 1 | BH6: 1 | BI6: 0 | BJ6: 0 | BK6: 0 | BL6: 0 | BM6: 0 | BN6: 0 | BO6: 0 | BP6: 0 | BQ6: 0 | BR6: 0 | BS6: 0 | BT6: 0 | BU6: 0 | BV6: 0 | BW6: 0 | BX6: 0 | BY6: 0 | BZ6: 0 | CA6: 0 | CB6: 0 | CC6: 0 | CD6: 0 | CE6: 0 | CF6: 0 | CG6: 0 | CH6: 0 | CI6: 0 | CJ6: 0 | CK6: 0 | CL6: 0 | CM6: 0 | CN6: 0
A7: 3 | B7: Lucas Rabelo | C7: 400 | D7: 25 | E7: 11 | H7: 2 | I7: 40 | L7: 2 | M7: 40 | P7: 1 | Q7: 45 | U7: 0 | X7: 1 | Y7: 45 | Z7: 1 | AB7: 3 | AC7: 37 | AF7: 2 | AG7: 40 | AJ7: 1 | AK7: 45 | AL7: 1 | AN7: 9 | AO7: 27 | AR7: 8 | AS7: 28 | AV7: 2 | AW7: 40 | AZ7: 0 | BA7: 0 | BB7: 0 | BC7: 0 | BD7: 0 | BE7: 0 | BF7: 0 | BG7: 0 | BH7: 0 | BI7: 0 | BJ7: 0 | BK7: 0 | BL7: 0 | BM7: 0 | BN7: 0 | BO7: 0 | BP7: 0 | BQ7: 0 | BR7: 0 | BS7: 0 | BT7: 0 | BU7: 0 | BV7: 0 | BW7: 0 | BX7: 0 | BY7: 0 | BZ7: 0 | CA7: 0 | CB7: 0 | CC7: 0 | CD7: 0 | CE7: 0 | CF7: 0 | CG7: 0 | CH7: 0 | CI7: 0 | CJ7: 0 | CK7: 0 | CL7: 0 | CM7: 0 | CN7: 0
A8: 4 | B8: Fernando Mota | C8: 367 | D8: 1 | E8: 45 | F8: 1 | H8: 7 | I8: 29 | L8: 7 | M8: 29 | P8: 10 | Q8: 26 | T8: 3 | U8: 37 | X8: 7 | Y8: 29 | AB8: 16 | AC8: 20 | AG8: 0 | AJ8: 2 | AK8: 40 | AN8: 7 | AO8: 29 | AR8: 1 | AS8: 45 | AV8: 3 | AW8: 37 | AZ8: 0 | BA8: 0 | BB8: 0 | BC8: 0 | BD8: 0 | BE8: 0 | BF8: 0 | BG8: 0 | BH8: 0 | BI8: 0 | BJ8: 0 | BK8: 0 | BL8: 0 | BM8: 0 | BN8: 0 | BO8: 0 | BP8: 0 | BQ8: 0 | BR8: 0 | BS8: 0 | BT8: 0 | BU8: 0 | BV8: 0 | BW8: 0 | BX8: 0 | BY8: 0 | BZ8: 0 | CA8: 0 | CB8: 0 | CC8: 0 | CD8: 0 | CE8: 0 | CF8: 0 | CG8: 0 | CH8: 0 | CI8: 0 | CJ8: 0 | CK8: 0 | CL8: 0 | CM8: 0 | CN8: 0
A9: 5 | B9: Anderson Teixeira | C9: 361 | D9: 12 | E9: 24 | H9: 1 | I9: 45 | J9: 1 | L9: 12 | M9: 24 | P9: 7 | Q9: 29 | T9: 4 | U9: 35 | X9: 13 | Y9: 23 | AB9: 14 | AC9: 22 | AF9: 4 | AG9: 35 | AJ9: 5 | AK9: 33 | AN9: 4 | AO9: 35 | AR9: 6 | AS9: 31 | AV9: 12 | AW9: 24 | AZ9: 0 | BA9: 0 | BB9: 0 | BC9: 0 | BD9: 0 | BE9: 0 | BF9: 0 | BG9: 0 | BH9: 0 | BI9: 0 | BJ9: 0 | BK9: 0 | BL9: 0 | BM9: 0 | BN9: 0 | BO9: 0 | BP9: 0 | BQ9: 0 | BR9: 0 | BS9: 0 | BT9: 0 | BU9: 0 | BV9: 0 | BW9: 0 | BX9: 0 | BY9: 0 | BZ9: 0 | CA9: 0 | CB9: 0 | CC9: 0 | CD9: 0 | CE9: 0 | CF9: 0 | CG9: 0 | CH9: 0 | CI9: 0 | CJ9: 0 | CK9: 0 | CL9: 0 | CM9: 0 | CN9: 0
A10: 6 | B10: Petronio Jr. | C10: 314 | D10: 23 | E10: 13 | H10: 3 | I10: 37 | L10: 1 | M10: 45 | P10: 5 | Q10: 33 | T10: 1 | U10: 45 | V10: 1 | X10: 4 | Y10: 35 | AB10: 2 | AC10: 40 | AG10: 0 | AJ10: 3 | AK10: 37 | AN10: 8 | AO10: 28 | AS10: 0 | AW10: 0 | AZ10: 0 | BA10: 0 | BB10: 0 | BC10: 0 | BD10: 0 | BE10: 0 | BF10: 0 | BG10: 0 | BH10: 0 | BI10: 0 | BJ10: 0 | BK10: 0 | BL10: 0 | BM10: 0 | BN10: 0 | BO10: 0 | BP10: 0 | BQ10: 0 | BR10: 0 | BS10: 0 | BT10: 0 | BU10: 0 | BV10: 0 | BW10: 0 | BX10: 0 | BY10: 0 | BZ10: 0 | CA10: 0 | CB10: 0 | CC10: 0 | CD10: 0 | CE10: 0 | CF10: 0 | CG10: 0 | CH10: 0 | CI10: 0 | CJ10: 0 | CK10: 0 | CL10: 0 | CM10: 0 | CN10: 0
A11: 7 | B11: Lúcio Chequer | C11: 284 | D11: 10 | E11: 26 | H11: 29 | I11: 7 | K11: SIM | L11: 9 | M11: 27 | P11: 18 | Q11: 18 | T11: 10 | U11: 26 | X11: 16 | Y11: 20 | AB11: 6 | AC11: 31 | AF11: 10 | AG11: 26 | AJ11: 8 | AK11: 28 | AN11: 13 | AO11: 23 | AR11: 9 | AS11: 27 | AV11: 11 | AW11: 25 | AZ11: 0 | BA11: 0 | BB11: 0 | BC11: 0 | BD11: 0 | BE11: 0 | BF11: 0 | BG11: 0 | BH11: 0 | BI11: 0 | BJ11: 0 | BK11: 0 | BL11: 0 | BM11: 0 | BN11: 0 | BO11: 0 | BP11: 0 | BQ11: 0 | BR11: 0 | BS11: 0 | BT11: 0 | BU11: 0 | BV11: 0 | BW11: 0 | BX11: 0 | BY11: 0 | BZ11: 0 | CA11: 0 | CB11: 0 | CC11: 0 | CD11: 0 | CE11: 0 | CF11: 0 | CG11: 0 | CH11: 0 | CI11: 0 | CJ11: 0 | CK11: 0 | CL11: 0 | CM11: 0 | CN11: 0
A12: 8 | B12: Felipe Franca | C12: 282 | D12: 15 | E12: 21 | H12: 13 | I12: 23 | L12: 5 | M12: 33 | P12: 4 | Q12: 35 | T12: 5 | U12: 33 | Y12: 0 | AB12: 23 | AC12: 13 | AE12: SIM | AG12: 0 | AJ12: 11 | AK12: 25 | AN12: 6 | AO12: 31 | AR12: 3 | AS12: 37 | AV12: 6 | AW12: 31 | AZ12: 0 | BA12: 0 | BB12: 0 | BC12: 0 | BD12: 0 | BE12: 0 | BF12: 0 | BG12: 0 | BH12: 0 | BI12: 0 | BJ12: 0 | BK12: 0 | BL12: 0 | BM12: 0 | BN12: 0 | BO12: 0 | BP12: 0 | BQ12: 0 | BR12: 0 | BS12: 0 | BT12: 0 | BU12: 0 | BV12: 0 | BW12: 0 | BX12: 0 | BY12: 0 | BZ12: 0 | CA12: 0 | CB12: 0 | CC12: 0 | CD12: 0 | CE12: 0 | CF12: 0 | CG12: 0 | CH12: 0 | CI12: 0 | CJ12: 0 | CK12: 0 | CL12: 0 | CM12: 0 | CN12: 0
A13: 9 | B13: Marcus Gregorio | C13: 281 | D13: 6 | E13: 31 | H13: 4 | I13: 35 | M13: 0 | P13: 2 | Q13: 40 | R13: 1 | U13: 0 | X13: 5 | Y13: 33 | AB13: 4 | AC13: 35 | AF13: 3 | AG13: 37 | AJ13: 6 | AK13: 31 | AN13: 3 | AO13: 37 | AP13: 1 | AS13: 0 | AW13: 0 | AZ13: 0 | BA13: 0 | BB13: 0 | BC13: 0 | BD13: 0 | BE13: 0 | BF13: 0 | BG13: 0 | BH13: 0 | BI13: 0 | BJ13: 0 | BK13: 0 | BL13: 0 | BM13: 0 | BN13: 0 | BO13: 0 | BP13: 0 | BQ13: 0 | BR13: 0 | BS13: 0 | BT13: 0 | BU13: 0 | BV13: 0 | BW13: 0 | BX13: 0 | BY13: 0 | BZ13: 0 | CA13: 0 | CB13: 0 | CC13: 0 | CD13: 0 | CE13: 0 | CF13: 0 | CG13: 0 | CH13: 0 | CI13: 0 | CJ13: 0 | CK13: 0 | CL13: 0 | CM13: 0 | CN13: 0
A14: 10 | B14: Agostinho Neves | C14: 276 | D14: 2 | E14: 40 | H14: 21 | I14: 15 | M14: 0 | P14: 9 | Q14: 27 | T14: 7 | U14: 29 | Y14: 0 | AC14: 0 | AF14: 7 | AG14: 29 | AJ14: 10 | AK14: 26 | AN14: 2 | AO14: 40 | AR14: 4 | AS14: 35 | AV14: 4 | AW14: 35 | AZ14: 0 | BA14: 2 | BB14: 0 | BC14: 2 | BD14: 0 | BE14: 0 | BF14: 2 | BG14: 0 | BH14: 1 | BI14: 1 | BJ14: 0 | BK14: 0 | BL14: 0 | BM14: 0 | BN14: 0 | BO14: 0 | BP14: 0 | BQ14: 0 | BR14: 0 | BS14: 0 | BT14: 1 | BU14: 0 | BV14: 0 | BW14: 0 | BX14: 0 | BY14: 0 | BZ14: 0 | CA14: 0 | CB14: 0 | CC14: 0 | CD14: 0 | CE14: 0 | CF14: 0 | CG14: 0 | CH14: 0 | CI14: 0 | CJ14: 0 | CK14: 0 | CL14: 0 | CM14: 0 | CN14: 0
A15: 11 | B15: Anderson Oliveira | C15: 258 | D15: 11 | E15: 25 | H15: 11 | I15: 25 | L15: 8 | M15: 28 | P15: 11 | Q15: 25 | T15: 9 | U15: 27 | X15: 6 | Y15: 31 | AC15: 0 | AG15: 0 | AJ15: 14 | AK15: 22 | AN15: 11 | AO15: 25 | AR15: 12 | AS15: 24 | AV15: 10 | AW15: 26 | AZ15: 0 | BA15: 0 | BB15: 0 | BC15: 0 | BD15: 0 | BE15: 1 | BF15: 0 | BG15: 1 | BH15: 1 | BI15: 1 | BJ15: 4 | BK15: 1 | BL15: 0 | BM15: 1 | BN15: 0 | BO15: 0 | BP15: 0 | BQ15: 0 | BR15: 0 | BS15: 0 | BT15: 0 | BU15: 0 | BV15: 0 | BW15: 0 | BX15: 0 | BY15: 0 | BZ15: 0 | CA15: 0 | CB15: 0 | CC15: 0 | CD15: 0 | CE15: 0 | CF15: 0 | CG15: 0 | CH15: 0 | CI15: 0 | CJ15: 0 | CK15: 0 | CL15: 0 | CM15: 0 | CN15: 0
A16: 12 | B16: Luciano Brandão | C16: 224 | D16: 3 | E16: 37 | H16: 5 | I16: 33 | L16: 11 | M16: 25 | Q16: 0 | U16: 0 | X16: 9 | Y16: 27 | AB16: 7 | AC16: 29 | AF16: 11 | AG16: 25 | AJ16: 9 | AK16: 27 | AN16: 15 | AO16: 21 | AS16: 0 | AW16: 0 | AZ16: 0 | BA16: 0 | BB16: 0 | BC16: 0 | BD16: 0 | BE16: 0 | BF16: 0 | BG16: 0 | BH16: 0 | BI16: 0 | BJ16: 0 | BK16: 0 | BL16: 0 | BM16: 0 | BN16: 0 | BO16: 0 | BP16: 0 | BQ16: 0 | BR16: 0 | BS16: 0 | BT16: 0 | BU16: 0 | BV16: 0 | BW16: 0 | BX16: 0 | BY16: 0 | BZ16: 0 | CA16: 0 | CB16: 0 | CC16: 0 | CD16: 0 | CE16: 0 | CF16: 0 | CG16: 0 | CH16: 0 | CI16: 0 | CJ16: 0 | CK16: 0 | CL16: 0 | CM16: 0 | CN16: 0
A17: 13 | B17: Flavio Magalhães | C17: 200 | E17: 0 | I17: 0 | L17: 16 | M17: 20 | P17: 8 | Q17: 28 | T17: 11 | U17: 25 | X17: 11 | Y17: 25 | AB17: 10 | AC17: 26 | AF17: 6 | AG17: 31 | AJ17: 15 | AK17: 21 | AN17: 12 | AO17: 24 | AS17: 0 | AW17: 0 | AZ17: 0 | BA17: 0 | BB17: 0 | BC17: 0 | BD17: 0 | BE17: 0 | BF17: 0 | BG17: 0 | BH17: 0 | BI17: 0 | BJ17: 0 | BK17: 0 | BL17: 0 | BM17: 0 | BN17: 0 | BO17: 0 | BP17: 0 | BQ17: 0 | BR17: 0 | BS17: 0 | BT17: 0 | BU17: 0 | BV17: 0 | BW17: 0 | BX17: 0 | BY17: 0 | BZ17: 0 | CA17: 0 | CB17: 0 | CC17: 0 | CD17: 0 | CE17: 0 | CF17: 0 | CG17: 0 | CH17: 0 | CI17: 0 | CJ17: 0 | CK17: 0 | CL17: 0 | CM17: 0 | CN17: 0
A18: 14 | B18: Gabriel Gontijo | C18: 195 | E18: 0 | I18: 0 | L18: 17 | M18: 19 | P18: 12 | Q18: 24 | T18: 12 | U18: 24 | X18: 14 | Y18: 22 | AB18: 12 | AC18: 24 | AF18: 9 | AG18: 27 | AK18: 0 | AO18: 0 | AR18: 10 | AS18: 26 | AV18: 7 | AW18: 29 | AZ18: 0 | BA18: 0 | BB18: 0 | BC18: 0 | BD18: 0 | BE18: 0 | BF18: 0 | BG18: 0 | BH18: 0 | BI18: 0 | BJ18: 0 | BK18: 0 | BL18: 0 | BM18: 0 | BN18: 0 | BO18: 0 | BP18: 0 | BQ18: 0 | BR18: 0 | BS18: 0 | BT18: 0 | BU18: 0 | BV18: 0 | BW18: 0 | BX18: 0 | BY18: 0 | BZ18: 0 | CA18: 0 | CB18: 0 | CC18: 0 | CD18: 0 | CE18: 0 | CF18: 0 | CG18: 0 | CH18: 0 | CI18: 0 | CJ18: 0 | CK18: 0 | CL18: 0 | CM18: 0 | CN18: 0
A19: 15 | B19: Leodegario Junior | C19: 186 | D19: 13 | E19: 23 | H19: 17 | I19: 19 | L19: 13 | M19: 23 | Q19: 0 | T19: 13 | U19: 23 | X19: 12 | Y19: 24 | AB19: 8 | AC19: 28 | AG19: 0 | AJ19: 12 | AK19: 24 | AN19: 14 | AO19: 22 | AS19: 0 | AW19: 0 | AZ19: 0 | BA19: 0 | BB19: 0 | BC19: 0 | BD19: 0 | BE19: 0 | BF19: 0 | BG19: 0 | BH19: 0 | BI19: 0 | BJ19: 0 | BK19: 0 | BL19: 0 | BM19: 0 | BN19: 0 | BO19: 0 | BP19: 0 | BQ19: 0 | BR19: 0 | BS19: 0 | BT19: 0 | BU19: 0 | BV19: 0 | BW19: 0 | BX19: 0 | BY19: 0 | BZ19: 0 | CA19: 0 | CB19: 0 | CC19: 0 | CD19: 0 | CE19: 0 | CF19: 0 | CG19: 0 | CH19: 0 | CI19: 0 | CJ19: 0 | CK19: 0 | CL19: 0 | CM19: 0 | CN19: 0
A20: 16 | B20: Gladystone Reis | C20: 173 | D20: 14 | E20: 22 | H20: 20 | I20: 16 | L20: 18 | M20: 18 | P20: 17 | Q20: 19 | U20: 0 | X20: 15 | Y20: 21 | AC20: 0 | AF20: 12 | AG20: 24 | AK20: 0 | AO20: 0 | AR20: 11 | AS20: 25 | AV20: 8 | AW20: 28 | AZ20: 0 | BA20: 0 | BB20: 0 | BC20: 0 | BD20: 0 | BE20: 0 | BF20: 0 | BG20: 0 | BH20: 0 | BI20: 0 | BJ20: 0 | BK20: 0 | BL20: 0 | BM20: 0 | BN20: 0 | BO20: 0 | BP20: 0 | BQ20: 0 | BR20: 0 | BS20: 0 | BT20: 0 | BU20: 0 | BV20: 0 | BW20: 0 | BX20: 0 | BY20: 0 | BZ20: 0 | CA20: 0 | CB20: 0 | CC20: 0 | CD20: 0 | CE20: 0 | CF20: 0 | CG20: 0 | CH20: 0 | CI20: 0 | CJ20: 0 | CK20: 0 | CL20: 0 | CM20: 0 | CN20: 0
A21: 17 | B21: Vitor Diniz | C21: 165 | E21: 0 | I21: 0 | M21: 0 | P21: 16 | Q21: 20 | T21: 14 | U21: 22 | X21: 10 | Y21: 26 | AB21: 13 | AC21: 23 | AF21: 8 | AG21: 28 | AJ21: 16 | AK21: 20 | AN21: 10 | AO21: 26 | AS21: 0 | AW21: 0 | AZ21: 0 | BA21: 0 | BB21: 0 | BC21: 0 | BD21: 0 | BE21: 0 | BF21: 0 | BG21: 0 | BH21: 0 | BI21: 0 | BJ21: 0 | BK21: 0 | BL21: 0 | BM21: 0 | BN21: 0 | BO21: 0 | BP21: 0 | BQ21: 0 | BR21: 0 | BS21: 0 | BT21: 0 | BU21: 0 | BV21: 0 | BW21: 0 | BX21: 0 | BY21: 0 | BZ21: 0 | CA21: 0 | CB21: 0 | CC21: 0 | CD21: 0 | CE21: 0 | CF21: 0 | CG21: 0 | CH21: 0 | CI21: 0 | CJ21: 0 | CK21: 0 | CL21: 0 | CM21: 0 | CN21: 0
A22: 18 | B22: Aparecido Faria | C22: 154 | E22: 0 | H22: 12 | I22: 24 | M22: 0 | Q22: 0 | T22: 6 | U22: 31 | Y22: 0 | AC22: 0 | AG22: 0 | AJ22: 13 | AK22: 23 | AN22: 16 | AO22: 20 | AR22: 7 | AS22: 29 | AV22: 9 | AW22: 27 | AZ22: 0 | BA22: 0 | BB22: 0 | BC22: 0 | BD22: 0 | BE22: 0 | BF22: 0 | BG22: 0 | BH22: 0 | BI22: 0 | BJ22: 0 | BK22: 0 | BL22: 0 | BM22: 0 | BN22: 0 | BO22: 0 | BP22: 0 | BQ22: 0 | BR22: 0 | BS22: 0 | BT22: 0 | BU22: 0 | BV22: 0 | BW22: 0 | BX22: 0 | BY22: 0 | BZ22: 0 | CA22: 0 | CB22: 0 | CC22: 0 | CD22: 0 | CE22: 0 | CF22: 0 | CG22: 0 | CH22: 0 | CI22: 0 | CJ22: 0 | CK22: 0 | CL22: 0 | CM22: 0 | CN22: 0
A23: 19 | B23: Diego Silva | C23: 149 | D23: 7 | E23: 29 | H23: 10 | I23: 26 | L23: 4 | M23: 35 | Q23: 0 | U23: 0 | Y23: 0 | AB23: 11 | AC23: 25 | AF23: 5 | AG23: 33 | AH23: 1 | AK23: 0 | AO23: 0 | AS23: 0 | AW23: 0 | AZ23: 0 | BA23: 0 | BB23: 0 | BC23: 0 | BD23: 0 | BE23: 0 | BF23: 0 | BG23: 0 | BH23: 0 | BI23: 0 | BJ23: 0 | BK23: 0 | BL23: 0 | BM23: 0 | BN23: 0 | BO23: 0 | BP23: 0 | BQ23: 0 | BR23: 0 | BS23: 0 | BT23: 0 | BU23: 0 | BV23: 0 | BW23: 0 | BX23: 0 | BY23: 0 | BZ23: 0 | CA23: 0 | CB23: 0 | CC23: 0 | CD23: 0 | CE23: 0 | CF23: 0 | CG23: 0 | CH23: 0 | CI23: 0 | CJ23: 0 | CK23: 0 | CL23: 0 | CM23: 0 | CN23: 0
A24: 20 | B24: Bruno Camargos | C24: 112 | D24: 18 | E24: 18 | H24: 18 | I24: 18 | L24: 14 | M24: 22 | P24: 14 | Q24: 22 | U24: 0 | X24: 23 | Y24: 13 | AA24: SIM | AC24: 0 | AG24: 0 | AJ24: 17 | AK24: 19 | AO24: 0 | AS24: 0 | AW24: 0 | AZ24: 0 | BA24: 0 | BB24: 0 | BC24: 0 | BD24: 0 | BE24: 0 | BF24: 0 | BG24: 0 | BH24: 0 | BI24: 0 | BJ24: 0 | BK24: 0 | BL24: 0 | BM24: 0 | BN24: 0 | BO24: 0 | BP24: 0 | BQ24: 0 | BR24: 0 | BS24: 0 | BT24: 0 | BU24: 0 | BV24: 0 | BW24: 0 | BX24: 0 | BY24: 0 | BZ24: 0 | CA24: 0 | CB24: 0 | CC24: 0 | CD24: 0 | CE24: 0 | CF24: 0 | CG24: 0 | CH24: 0 | CI24: 0 | CJ24: 0 | CK24: 0 | CL24: 0 | CM24: 0 | CN24: 0
A25: 21 | B25: Arthur Santiago | C25: 90 | D25: 16 | E25: 20 | H25: 16 | I25: 20 | M25: 0 | P25: 13 | Q25: 23 | U25: 0 | Y25: 0 | AB25: 9 | AC25: 27 | AG25: 0 | AK25: 0 | AO25: 0 | AS25: 0 | AW25: 0 | AZ25: 0 | BA25: 0 | BB25: 0 | BC25: 0 | BD25: 0 | BE25: 0 | BF25: 0 | BG25: 0 | BH25: 0 | BI25: 0 | BJ25: 0 | BK25: 0 | BL25: 0 | BM25: 0 | BN25: 0 | BO25: 0 | BP25: 0 | BQ25: 0 | BR25: 0 | BS25: 0 | BT25: 0 | BU25: 0 | BV25: 0 | BW25: 0 | BX25: 0 | BY25: 0 | BZ25: 0 | CA25: 0 | CB25: 0 | CC25: 0 | CD25: 0 | CE25: 0 | CF25: 0 | CG25: 0 | CH25: 0 | CI25: 0 | CJ25: 0 | CK25: 0 | CL25: 0 | CM25: 0 | CN25: 0
A26: 22 | B26: Felipe Curi | C26: 83 | D26: 4 | E26: 35 | H26: 6 | I26: 31 | L26: 19 | M26: 17 | O26: SIM | Q26: 0 | U26: 0 | Y26: 0 | AC26: 0 | AG26: 0 | AK26: 0 | AO26: 0 | AS26: 0 | AW26: 0 | AZ26: 0 | BA26: 0 | BB26: 0 | BC26: 0 | BD26: 0 | BE26: 0 | BF26: 0 | BG26: 0 | BH26: 0 | BI26: 0 | BJ26: 0 | BK26: 0 | BL26: 0 | BM26: 0 | BN26: 0 | BO26: 0 | BP26: 0 | BQ26: 0 | BR26: 0 | BS26: 0 | BT26: 0 | BU26: 0 | BV26: 0 | BW26: 0 | BX26: 0 | BY26: 0 | BZ26: 0 | CA26: 0 | CB26: 0 | CC26: 0 | CD26: 0 | CE26: 0 | CF26: 0 | CG26: 0 | CH26: 0 | CI26: 0 | CJ26: 0 | CK26: 0 | CL26: 0 | CM26: 0 | CN26: 0
A27: 23 | B27: Thales Silva | C27: 70 | D27: 9 | E27: 27 | H27: 14 | I27: 22 | L27: 15 | M27: 21 | Q27: 0 | U27: 0 | Y27: 0 | AC27: 0 | AG27: 0 | AK27: 0 | AO27: 0 | AS27: 0 | AW27: 0 | AZ27: 0 | BA27: 0 | BB27: 0 | BC27: 0 | BD27: 0 | BE27: 0 | BF27: 0 | BG27: 0 | BH27: 0 | BI27: 0 | BJ27: 0 | BK27: 0 | BL27: 0 | BM27: 0 | BN27: 0 | BO27: 0 | BP27: 0 | BQ27: 0 | BR27: 0 | BS27: 0 | BT27: 0 | BU27: 0 | BV27: 0 | BW27: 0 | BX27: 0 | BY27: 0 | BZ27: 0 | CA27: 0 | CB27: 0 | CC27: 0 | CD27: 0 | CE27: 0 | CF27: 0 | CG27: 0 | CH27: 0 | CI27: 0 | CJ27: 0 | CK27: 0 | CL27: 0 | CM27: 0 | CN27: 0
A28: 24 | B28: Mathias Almeida | C28: 57 | D28: 17 | E28: 19 | H28: 15 | I28: 21 | L28: 20 | M28: 16 | N28: 1 | Q28: 0 | U28: 0 | Y28: 0 | AC28: 0 | AG28: 0 | AK28: 0 | AO28: 0 | AS28: 0 | AW28: 0 | AZ28: 0 | BA28: 0 | BB28: 0 | BC28: 0 | BD28: 0 | BE28: 0 | BF28: 0 | BG28: 0 | BH28: 0 | BI28: 0 | BJ28: 0 | BK28: 0 | BL28: 0 | BM28: 0 | BN28: 0 | BO28: 0 | BP28: 0 | BQ28: 0 | BR28: 0 | BS28: 0 | BT28: 0 | BU28: 0 | BV28: 0 | BW28: 0 | BX28: 0 | BY28: 0 | BZ28: 0 | CA28: 0 | CB28: 0 | CC28: 0 | CD28: 0 | CE28: 0 | CF28: 0 | CG28: 0 | CH28: 0 | CI28: 0 | CJ28: 0 | CK28: 0 | CL28: 0 | CM28: 0 | CN28: 0
A29: 25 | B29: Matheus Dias | C29: 56 | D29: 24 | E29: 12 | F29: 1 | G29: SIM | H29: 19 | I29: 17 | L29: 10 | M29: 26 | Q29: 0 | U29: 0 | Y29: 0 | AC29: 0 | AG29: 0 | AK29: 0 | AO29: 0 | AS29: 0 | AW29: 0 | AZ29: 0 | BA29: 0 | BB29: 0 | BC29: 0 | BD29: 0 | BE29: 0 | BF29: 0 | BG29: 0 | BH29: 0 | BI29: 0 | BJ29: 0 | BK29: 0 | BL29: 0 | BM29: 0 | BN29: 0 | BO29: 0 | BP29: 0 | BQ29: 0 | BR29: 0 | BS29: 0 | BT29: 0 | BU29: 0 | BV29: 0 | BW29: 0 | BX29: 0 | BY29: 0 | BZ29: 0 | CA29: 0 | CB29: 0 | CC29: 0 | CD29: 0 | CE29: 0 | CF29: 0 | CG29: 0 | CH29: 0 | CI29: 0 | CJ29: 0 | CK29: 0 | CL29: 0 | CM29: 0 | CN29: 0
A30: 26 | B30: Lucas Mourão | C30: 52 | D30: 19 | E30: 17 | H30: 22 | I30: 14 | M30: 0 | P30: 15 | Q30: 21 | U30: 0 | Y30: 0 | AC30: 0 | AG30: 0 | AK30: 0 | AO30: 0 | AS30: 0 | AW30: 0 | AZ30: 0 | BA30: 0 | BB30: 0 | BC30: 0 | BD30: 0 | BE30: 0 | BF30: 0 | BG30: 0 | BH30: 0 | BI30: 0 | BJ30: 0 | BK30: 0 | BL30: 0 | BM30: 0 | BN30: 0 | BO30: 0 | BP30: 0 | BQ30: 0 | BR30: 0 | BS30: 0 | BT30: 0 | BU30: 0 | BV30: 0 | BW30: 0 | BX30: 0 | BY30: 0 | BZ30: 0 | CA30: 0 | CB30: 0 | CC30: 0 | CD30: 0 | CE30: 0 | CF30: 0 | CG30: 0 | CH30: 0 | CI30: 0 | CJ30: 0 | CK30: 0 | CL30: 0 | CM30: 0 | CN30: 0
A31: 27 | B31: Wilson Cristofani | C31: 42 | D31: 22 | E31: 14 | I31: 0 | M31: 0 | Q31: 0 | U31: 0 | X31: 8 | Y31: 28 | AC31: 0 | AG31: 0 | AK31: 0 | AO31: 0 | AS31: 0 | AW31: 0 | AZ31: 0 | BA31: 0 | BB31: 0 | BC31: 0 | BD31: 0 | BE31: 0 | BF31: 0 | BG31: 0 | BH31: 0 | BI31: 0 | BJ31: 0 | BK31: 0 | BL31: 0 | BM31: 0 | BN31: 0 | BO31: 0 | BP31: 0 | BQ31: 0 | BR31: 0 | BS31: 0 | BT31: 0 | BU31: 0 | BV31: 0 | BW31: 0 | BX31: 0 | BY31: 0 | BZ31: 0 | CA31: 0 | CB31: 0 | CC31: 0 | CD31: 0 | CE31: 0 | CF31: 0 | CG31: 0 | CH31: 0 | CI31: 0 | CJ31: 0 | CK31: 0 | CL31: 0 | CM31: 0 | CN31: 0
A32: 28 | B32: João Ferreira | C32: 37 | D32: 20 | E32: 16 | I32: 0 | M32: 0 | Q32: 0 | T32: 15 | U32: 21 | Y32: 0 | AC32: 0 | AG32: 0 | AK32: 0 | AO32: 0 | AS32: 0 | AW32: 0 | AZ32: 0 | BA32: 0 | BB32: 0 | BC32: 0 | BD32: 0 | BE32: 0 | BF32: 0 | BG32: 0 | BH32: 0 | BI32: 0 | BJ32: 0 | BK32: 0 | BL32: 0 | BM32: 0 | BN32: 0 | BO32: 0 | BP32: 0 | BQ32: 0 | BR32: 0 | BS32: 0 | BT32: 0 | BU32: 0 | BV32: 0 | BW32: 0 | BX32: 0 | BY32: 0 | BZ32: 0 | CA32: 0 | CB32: 0 | CC32: 0 | CD32: 0 | CE32: 0 | CF32: 0 | CG32: 0 | CH32: 0 | CI32: 0 | CJ32: 0 | CK32: 0 | CL32: 0 | CM32: 0 | CN32: 0
A33: 29 | B33: Pericles Barcelos | C33: 32 | D33: 21 | E33: 15 | H33: 0 | I33: 0 | K33: SIM | M33: 0 | P33: 19 | Q33: 17 | U33: 0 | Y33: 0 | AC33: 0 | AG33: 0 | AK33: 0 | AO33: 0 | AS33: 0 | AW33: 0 | AZ33: 0 | BA33: 0 | BB33: 0 | BC33: 0 | BD33: 0 | BE33: 0 | BF33: 0 | BG33: 0 | BH33: 0 | BI33: 0 | BJ33: 0 | BK33: 0 | BL33: 0 | BM33: 0 | BN33: 0 | BO33: 0 | BP33: 0 | BQ33: 0 | BR33: 0 | BS33: 0 | BT33: 0 | BU33: 0 | BV33: 0 | BW33: 0 | BX33: 0 | BY33: 0 | BZ33: 0 | CA33: 0 | CB33: 0 | CC33: 0 | CD33: 0 | CE33: 0 | CF33: 0 | CG33: 0 | CH33: 0 | CI33: 0 | CJ33: 0 | CK33: 0 | CL33: 0 | CM33: 0 | CN33: 0
A34: 30 | B34: Leandro Leite | C34: 21 | E34: 0 | I34: 0 | M34: 0 | Q34: 0 | U34: 0 | Y34: 0 | AB34: 15 | AC34: 21 | AG34: 0 | AK34: 0 | AO34: 0 | AS34: 0 | AW34: 0 | AZ34: 0 | BA34: 0 | BB34: 0 | BC34: 0 | BD34: 0 | BE34: 0 | BF34: 0 | BG34: 0 | BH34: 0 | BI34: 0 | BJ34: 0 | BK34: 0 | BL34: 0 | BM34: 0 | BN34: 0 | BO34: 0 | BP34: 0 | BQ34: 0 | BR34: 0 | BS34: 0 | BT34: 0 | BU34: 0 | BV34: 0 | BW34: 0 | BX34: 0 | BY34: 0 | BZ34: 0 | CA34: 0 | CB34: 0 | CC34: 0 | CD34: 0 | CE34: 0 | CF34: 0 | CG34: 0 | CH34: 0 | CI34: 0 | CJ34: 0 | CK34: 0 | CL34: 0 | CM34: 0 | CN34: 0
A35: 31 | B35: Robert Freitas | C35: 0 | E35: 0 | I35: 0 | M35: 0 | Q35: 0 | U35: 0 | Y35: 0 | AC35: 0 | AG35: 0 | AK35: 0 | AO35: 0 | AS35: 0 | AW35: 0 | AZ35: 0 | BA35: 0 | BB35: 0 | BC35: 0 | BD35: 0 | BE35: 0 | BF35: 0 | BG35: 0 | BH35: 0 | BI35: 0 | BJ35: 0 | BK35: 0 | BL35: 0 | BM35: 0 | BN35: 0 | BO35: 0 | BP35: 0 | BQ35: 0 | BR35: 0 | BS35: 0 | BT35: 0 | BU35: 0 | BV35: 0 | BW35: 0 | BX35: 0 | BY35: 0 | BZ35: 0 | CA35: 0 | CB35: 0 | CC35: 0 | CD35: 0 | CE35: 0 | CF35: 0 | CG35: 0 | CH35: 0 | CI35: 0 | CJ35: 0 | CK35: 0 | CL35: 0 | CM35: 0 | CN35: 0
A36: 32 | B36: Luis Cáceres | C36: 0 | E36: 0 | I36: 0 | M36: 0 | Q36: 0 | U36: 0 | Y36: 0 | AC36: 0 | AG36: 0 | AK36: 0 | AO36: 0 | AS36: 0 | AW36: 0 | AZ36: 0 | BA36: 0 | BB36: 0 | BC36: 0 | BD36: 0 | BE36: 0 | BF36: 0 | BG36: 0 | BH36: 0 | BI36: 0 | BJ36: 0 | BK36: 0 | BL36: 0 | BM36: 0 | BN36: 0 | BO36: 0 | BP36: 0 | BQ36: 0 | BR36: 0 | BS36: 0 | BT36: 0 | BU36: 0 | BV36: 0 | BW36: 0 | BX36: 0 | BY36: 0 | BZ36: 0 | CA36: 0 | CB36: 0 | CC36: 0 | CD36: 0 | CE36: 0 | CF36: 0 | CG36: 0 | CH36: 0 | CI36: 0 | CJ36: 0 | CK36: 0 | CL36: 0 | CM36: 0 | CN36: 0
A37: 33 | C37: 0 | E37: 0 | I37: 0 | M37: 0 | Q37: 0 | U37: 0 | Y37: 0 | AC37: 0 | AG37: 0 | AK37: 0 | AO37: 0 | AS37: 0 | AW37: 0 | AZ37: 0 | BA37: 0 | BB37: 0 | BC37: 0 | BD37: 0 | BE37: 0 | BF37: 0 | BG37: 0 | BH37: 0 | BI37: 0 | BJ37: 0 | BK37: 0 | BL37: 0 | BM37: 0 | BN37: 0 | BO37: 0 | BP37: 0 | BQ37: 0 | BR37: 0 | BS37: 0 | BT37: 0 | BU37: 0 | BV37: 0 | BW37: 0 | BX37: 0 | BY37: 0 | BZ37: 0 | CA37: 0 | CB37: 0 | CC37: 0 | CD37: 0 | CE37: 0 | CF37: 0 | CG37: 0 | CH37: 0 | CI37: 0 | CJ37: 0 | CK37: 0 | CL37: 0 | CM37: 0 | CN37: 0
A38: 34 | C38: 0 | E38: 0 | I38: 0 | M38: 0 | Q38: 0 | U38: 0 | Y38: 0 | AC38: 0 | AG38: 0 | AK38: 0 | AO38: 0 | AS38: 0 | AW38: 0 | AZ38: 0 | BA38: 0 | BB38: 0 | BC38: 0 | BD38: 0 | BE38: 0 | BF38: 0 | BG38: 0 | BH38: 0 | BI38: 0 | BJ38: 0 | BK38: 0 | BL38: 0 | BM38: 0 | BN38: 0 | BO38: 0 | BP38: 0 | BQ38: 0 | BR38: 0 | BS38: 0 | BT38: 0 | BU38: 0 | BV38: 0 | BW38: 0 | BX38: 0 | BY38: 0 | BZ38: 0 | CA38: 0 | CB38: 0 | CC38: 0 | CD38: 0 | CE38: 0 | CF38: 0 | CG38: 0 | CH38: 0 | CI38: 0 | CJ38: 0 | CK38: 0 | CL38: 0 | CM38: 0 | CN38: 0
A39: 35 | C39: 0 | E39: 0 | I39: 0 | M39: 0 | Q39: 0 | U39: 0 | Y39: 0 | AC39: 0 | AG39: 0 | AK39: 0 | AO39: 0 | AS39: 0 | AW39: 0 | AZ39: 0 | BA39: 0 | BB39: 0 | BC39: 0 | BD39: 0 | BE39: 0 | BF39: 0 | BG39: 0 | BH39: 0 | BI39: 0 | BJ39: 0 | BK39: 0 | BL39: 0 | BM39: 0 | BN39: 0 | BO39: 0 | BP39: 0 | BQ39: 0 | BR39: 0 | BS39: 0 | BT39: 0 | BU39: 0 | BV39: 0 | BW39: 0 | BX39: 0 | BY39: 0 | BZ39: 0 | CA39: 0 | CB39: 0 | CC39: 0 | CD39: 0 | CE39: 0 | CF39: 0 | CG39: 0 | CH39: 0 | CI39: 0 | CJ39: 0 | CK39: 0 | CL39: 0 | CM39: 0 | CN39: 0
A40: 36 | C40: 0 | E40: 0 | I40: 0 | M40: 0 | Q40: 0 | U40: 0 | Y40: 0 | AC40: 0 | AG40: 0 | AK40: 0 | AO40: 0 | AS40: 0 | AW40: 0 | AZ40: 0 | BA40: 0 | BB40: 0 | BC40: 0 | BD40: 0 | BE40: 0 | BF40: 0 | BG40: 0 | BH40: 0 | BI40: 0 | BJ40: 0 | BK40: 0 | BL40: 0 | BM40: 0 | BN40: 0 | BO40: 0 | BP40: 0 | BQ40: 0 | BR40: 0 | BS40: 0 | BT40: 0 | BU40: 0 | BV40: 0 | BW40: 0 | BX40: 0 | BY40: 0 | BZ40: 0 | CA40: 0 | CB40: 0 | CC40: 0 | CD40: 0 | CE40: 0 | CF40: 0 | CG40: 0 | CH40: 0 | CI40: 0 | CJ40: 0 | CK40: 0 | CL40: 0 | CM40: 0 | CN40: 0
A41: 37 | C41: 0 | E41: 0 | I41: 0 | M41: 0 | Q41: 0 | U41: 0 | Y41: 0 | AC41: 0 | AG41: 0 | AK41: 0 | AO41: 0 | AS41: 0 | AW41: 0 | AZ41: 0 | BA41: 0 | BB41: 0 | BC41: 0 | BD41: 0 | BE41: 0 | BF41: 0 | BG41: 0 | BH41: 0 | BI41: 0 | BJ41: 0 | BK41: 0 | BL41: 0 | BM41: 0 | BN41: 0 | BO41: 0 | BP41: 0 | BQ41: 0 | BR41: 0 | BS41: 0 | BT41: 0 | BU41: 0 | BV41: 0 | BW41: 0 | BX41: 0 | BY41: 0 | BZ41: 0 | CA41: 0 | CB41: 0 | CC41: 0 | CD41: 0 | CE41: 0 | CF41: 0 | CG41: 0 | CH41: 0 | CI41: 0 | CJ41: 0 | CK41: 0 | CL41: 0 | CM41: 0 | CN41: 0
A42: 38 | C42: 0 | E42: 0 | I42: 0 | M42: 0 | Q42: 0 | U42: 0 | Y42: 0 | AC42: 0 | AG42: 0 | AK42: 0 | AO42: 0 | AS42: 0 | AW42: 0 | AZ42: 0 | BA42: 0 | BB42: 0 | BC42: 0 | BD42: 0 | BE42: 0 | BF42: 0 | BG42: 0 | BH42: 0 | BI42: 0 | BJ42: 0 | BK42: 0 | BL42: 0 | BM42: 0 | BN42: 0 | BO42: 0 | BP42: 0 | BQ42: 0 | BR42: 0 | BS42: 0 | BT42: 0 | BU42: 0 | BV42: 0 | BW42: 0 | BX42: 0 | BY42: 0 | BZ42: 0 | CA42: 0 | CB42: 0 | CC42: 0 | CD42: 0 | CE42: 0 | CF42: 0 | CG42: 0 | CH42: 0 | CI42: 0 | CJ42: 0 | CK42: 0 | CL42: 0 | CM42: 0 | CN42: 0
A43: 39 | C43: 0 | E43: 0 | I43: 0 | M43: 0 | Q43: 0 | U43: 0 | Y43: 0 | AC43: 0 | AG43: 0 | AK43: 0 | AO43: 0 | AS43: 0 | AW43: 0 | AZ43: 0 | BA43: 0 | BB43: 0 | BC43: 0 | BD43: 0 | BE43: 0 | BF43: 0 | BG43: 0 | BH43: 0 | BI43: 0 | BJ43: 0 | BK43: 0 | BL43: 0 | BM43: 0 | BN43: 0 | BO43: 0 | BP43: 0 | BQ43: 0 | BR43: 0 | BS43: 0 | BT43: 0 | BU43: 0 | BV43: 0 | BW43: 0 | BX43: 0 | BY43: 0 | BZ43: 0 | CA43: 0 | CB43: 0 | CC43: 0 | CD43: 0 | CE43: 0 | CF43: 0 | CG43: 0 | CH43: 0 | CI43: 0 | CJ43: 0 | CK43: 0 | CL43: 0 | CM43: 0 | CN43: 0
A44: 40 | C44: 0 | E44: 0 | I44: 0 | M44: 0 | Q44: 0 | U44: 0 | Y44: 0 | AC44: 0 | AG44: 0 | AK44: 0 | AO44: 0 | AS44: 0 | AW44: 0 | AZ44: 0 | BA44: 0 | BB44: 0 | BC44: 0 | BD44: 0 | BE44: 0 | BF44: 0 | BG44: 0 | BH44: 0 | BI44: 0 | BJ44: 0 | BK44: 0 | BL44: 0 | BM44: 0 | BN44: 0 | BO44: 0 | BP44: 0 | BQ44: 0 | BR44: 0 | BS44: 0 | BT44: 0 | BU44: 0 | BV44: 0 | BW44: 0 | BX44: 0 | BY44: 0 | BZ44: 0 | CA44: 0 | CB44: 0 | CC44: 0 | CD44: 0 | CE44: 0 | CF44: 0 | CG44: 0 | CH44: 0 | CI44: 0 | CJ44: 0 | CK44: 0 | CL44: 0 | CM44: 0 | CN44: 0
A45: 41 | C45: 0 | E45: 0 | I45: 0 | M45: 0 | Q45: 0 | U45: 0 | Y45: 0 | AC45: 0 | AG45: 0 | AK45: 0 | AO45: 0 | AS45: 0 | AW45: 0 | AZ45: 0 | BA45: 0 | BB45: 0 | BC45: 0 | BD45: 0 | BE45: 0 | BF45: 0 | BG45: 0 | BH45: 0 | BI45: 0 | BJ45: 0 | BK45: 0 | BL45: 0 | BM45: 0 | BN45: 0 | BO45: 0 | BP45: 0 | BQ45: 0 | BR45: 0 | BS45: 0 | BT45: 0 | BU45: 0 | BV45: 0 | BW45: 0 | BX45: 0 | BY45: 0 | BZ45: 0 | CA45: 0 | CB45: 0 | CC45: 0 | CD45: 0 | CE45: 0 | CF45: 0 | CG45: 0 | CH45: 0 | CI45: 0 | CJ45: 0 | CK45: 0 | CL45: 0 | CM45: 0 | CN45: 0
A46: 42 | C46: 0 | E46: 0 | I46: 0 | M46: 0 | Q46: 0 | U46: 0 | Y46: 0 | AC46: 0 | AG46: 0 | AK46: 0 | AO46: 0 | AS46: 0 | AW46: 0 | AZ46: 0 | BA46: 0 | BB46: 0 | BC46: 0 | BD46: 0 | BE46: 0 | BF46: 0 | BG46: 0 | BH46: 0 | BI46: 0 | BJ46: 0 | BK46: 0 | BL46: 0 | BM46: 0 | BN46: 0 | BO46: 0 | BP46: 0 | BQ46: 0 | BR46: 0 | BS46: 0 | BT46: 0 | BU46: 0 | BV46: 0 | BW46: 0 | BX46: 0 | BY46: 0 | BZ46: 0 | CA46: 0 | CB46: 0 | CC46: 0 | CD46: 0 | CE46: 0 | CF46: 0 | CG46: 0 | CH46: 0 | CI46: 0 | CJ46: 0 | CK46: 0 | CL46: 0 | CM46: 0 | CN46: 0
A47: 43 | C47: 0 | E47: 0 | I47: 0 | M47: 0 | Q47: 0 | U47: 0 | Y47: 0 | AC47: 0 | AG47: 0 | AK47: 0 | AO47: 0 | AS47: 0 | AW47: 0 | AZ47: 0 | BA47: 0 | BB47: 0 | BC47: 0 | BD47: 0 | BE47: 0 | BF47: 0 | BG47: 0 | BH47: 0 | BI47: 0 | BJ47: 0 | BK47: 0 | BL47: 0 | BM47: 0 | BN47: 0 | BO47: 0 | BP47: 0 | BQ47: 0 | BR47: 0 | BS47: 0 | BT47: 0 | BU47: 0 | BV47: 0 | BW47: 0 | BX47: 0 | BY47: 0 | BZ47: 0 | CA47: 0 | CB47: 0 | CC47: 0 | CD47: 0 | CE47: 0 | CF47: 0 | CG47: 0 | CH47: 0 | CI47: 0 | CJ47: 0 | CK47: 0 | CL47: 0 | CM47: 0 | CN47: 0
A48: 44 | C48: 0 | E48: 0 | I48: 0 | M48: 0 | Q48: 0 | U48: 0 | Y48: 0 | AC48: 0 | AG48: 0 | AK48: 0 | AO48: 0 | AS48: 0 | AW48: 0 | AZ48: 0 | BA48: 0 | BB48: 0 | BC48: 0 | BD48: 0 | BE48: 0 | BF48: 0 | BG48: 0 | BH48: 0 | BI48: 0 | BJ48: 0 | BK48: 0 | BL48: 0 | BM48: 0 | BN48: 0 | BO48: 0 | BP48: 0 | BQ48: 0 | BR48: 0 | BS48: 0 | BT48: 0 | BU48: 0 | BV48: 0 | BW48: 0 | BX48: 0 | BY48: 0 | BZ48: 0 | CA48: 0 | CB48: 0 | CC48: 0 | CD48: 0 | CE48: 0 | CF48: 0 | CG48: 0 | CH48: 0 | CI48: 0 | CJ48: 0 | CK48: 0 | CL48: 0 | CM48: 0 | CN48: 0
A49: 45 | C49: 0 | E49: 0 | I49: 0 | M49: 0 | Q49: 0 | U49: 0 | Y49: 0 | AC49: 0 | AG49: 0 | AK49: 0 | AO49: 0 | AS49: 0 | AW49: 0 | AZ49: 0 | BA49: 0 | BB49: 0 | BC49: 0 | BD49: 0 | BE49: 0 | BF49: 0 | BG49: 0 | BH49: 0 | BI49: 0 | BJ49: 0 | BK49: 0 | BL49: 0 | BM49: 0 | BN49: 0 | BO49: 0 | BP49: 0 | BQ49: 0 | BR49: 0 | BS49: 0 | BT49: 0 | BU49: 0 | BV49: 0 | BW49: 0 | BX49: 0 | BY49: 0 | BZ49: 0 | CA49: 0 | CB49: 0 | CC49: 0 | CD49: 0 | CE49: 0 | CF49: 0 | CG49: 0 | CH49: 0 | CI49: 0 | CJ49: 0 | CK49: 0 | CL49: 0 | CM49: 0 | CN49: 0

Sheet Class. elimin. 2 piores res
A1: 2021 | E1: OK | I1: OK | M1: OK | Q1: OK | U1: OK | Y1: OK | AC1: OK | AG1: OK | AK1: OK | AO1: OK | AS1: OK | AW1: OK
D2: 2ª etapa | H2: 5ª etapa | L2: 6ª etapa | P2: 7ª etapa | T2: 8ª etapa | X2: Etapa 9 09/09/2021 - 21:15 | AB2: Etapa 10 14/10/2021 - 21:15 | AF2: Etapa 11 11/11/2021 - 21:15 | AJ2: Etapa 12 09/12/2021 - 21:15 | AN2: Etapa01 09/12/2021 - 22:45 | AR2: Etapa 03 | AV2: Etapa 04
D3: SUPER | T3: 2021-08-12
B4: Nome do (a) Piloto (a) | C4: Pontuação Geral | D4: Posição | E4: Pontos | F4: Bônus | G4: Penalidade | H4: Posição | I4: Pontos | J4: Bônus | K4: Penalidade | L4: Posição | M4: Pontos | N4: Bônus | O4: Penalidade | P4: Posição | Q4: Pontos | R4: Bônus | S4: Penalidade | T4: Posição | U4: Pontos | V4: Bônus | W4: Penalidade | X4: Posição | Y4: Pontos | Z4: Bônus | AA4: Penalidade | AB4: Posição | AC4: Pontos | AD4: Bônus | AE4: Penalidade | AF4: Posição | AG4: Pontos | AH4: Bônus | AI4: Penalidade | AJ4: Posição | AK4: Pontos | AL4: Bônus | AM4: Penalidade | AN4: Posição | AO4: Pontos | AP4: Bônus | AQ4: Penalidade | AR4: Posição | AS4: Pontos | AT4: Bônus | AU4: Penalidade | AV4: Posição | AW4: Pontos | AX4: Bônus | AY4: Penalidade | AZ4: 1º LUGAR | BA4: 2º LUGAR | BB4: 3º LUGAR | BC4: 4º LUGAR | BD4: 5º LUGAR | BE4: 6º LUGAR | BF4: 7º LUGAR | BG4: 8º LUGAR | BH4: 9º LUGAR | BI4: 10º LUGAR | BJ4: 11º LUGAR | BK4: 12º LUGAR | BL4: 13º LUGAR | BM4: 14º LUGAR | BN4: 15º LUGAR | BO4: 16º LUGAR | BP4: 17º LUGAR | BQ4: 18º LUGAR | BR4: 19º LUGAR | BS4: 20º LUGAR | BT4: 21º LUGAR | BU4: 22º LUGAR | BV4: 23º LUGAR | BW4: 24º LUGAR | BX4: 25º LUGAR | BY4: 26º LUGAR | BZ4: 27º LUGAR | CA4: 28º LUGAR | CB4: 29º LUGAR | CC4: 30º LUGAR | CD4: 31º LUGAR | CE4: 32º LUGAR | CF4: 33º LUGAR | CG4: 34º LUGAR | CH4: 35º LUGAR | CI4: 36º LUGAR | CJ4: 37º LUGAR | CK4: 38º LUGAR | CL4: 39º LUGAR | CM4: 40º LUGAR | CN4: 41º LUGAR
A5: 1 | B5: Lucas Rabelo | C5: 389 | D5: 25 | E5: 11* | H5: 2 | I5: 40 | L5: 2 | M5: 40 | P5: 1 | Q5: 45 | U5: 0* | X5: 1 | Y5: 45 | Z5: 1 | AB5: 3 | AC5: 37 | AF5: 2 | AG5: 40 | AJ5: 1 | AK5: 45 | AL5: 1 | AN5: 9 | AO5: 27 | AR5: 8 | AS5: 28 | AV5: 2 | AW5: 40 | AZ5: 0 | BA5: 0 | BB5: 0 | BC5: 0 | BD5: 0 | BE5: 0 | BF5: 0 | BG5: 0 | BH5: 0 | BI5: 0 | BJ5: 0 | BK5: 0 | BL5: 0 | BM5: 0 | BN5: 0 | BO5: 0 | BP5: 0 | BQ5: 0 | BR5: 0 | BS5: 0 | BT5: 0 | BU5: 0 | BV5: 0 | BW5: 0 | BX5: 0 | BY5: 0 | BZ5: 0 | CA5: 0 | CB5: 0 | CC5: 0 | CD5: 0 | CE5: 0 | CF5: 0 | CG5: 0 | CH5: 0 | CI5: 0 | CJ5: 0 | CK5: 0 | CL5: 0 | CM5: 0 | CN5: 0
A6: 2 | B6: Rafael Miranda | C6: 382 | D6: 8 | E6: 28* | H6: 8 | I6: 28 | L6: 3 | M6: 37 | P6: 3 | Q6: 37 | T6: 2 | U6: 40 | X6: 2 | Y6: 40 | AB6: 1 | AC6: 45 | AD6: 1 | AG6: 0* | AJ6: 4 | AK6: 35 | AN6: 5 | AO6: 33 | AR6: 2 | AS6: 40 | AV6: 1 | AW6: 45 | AX6: 1 | AZ6: 0 | BA6: 0 | BB6: 0 | BC6: 0 | BD6: 0 | BE6: 0 | BF6: 0 | BG6: 0 | BH6: 0 | BI6: 0 | BJ6: 0 | BK6: 0 | BL6: 0 | BM6: 0 | BN6: 0 | BO6: 0 | BP6: 0 | BQ6: 0 | BR6: 0 | BS6: 0 | BT6: 0 | BU6: 0 | BV6: 0 | BW6: 0 | BX6: 0 | BY6: 0 | BZ6: 0 | CA6: 0 | CB6: 0 | CC6: 0 | CD6: 0 | CE6: 0 | CF6: 0 | CG6: 0 | CH6: 0 | CI6: 0 | CJ6: 0 | CK6: 0 | CL6: 0 | CM6: 0 | CN6: 0
A7: 3 | B7: Alexandre Melillo | C7: 351 | D7: 5 | E7: 33 | H7: 9 | I7: 27* | L7: 6 | M7: 31 | P7: 6 | Q7: 31 | T7: 8 | U7: 28* | X7: 3 | Y7: 37 | AB7: 5 | AC7: 33 | AF7: 1 | AG7: 45 | AJ7: 7 | AK7: 29 | AN7: 1 | AO7: 45 | AR7: 5 | AS7: 33 | AT7: 1 | AV7: 5 | AW7: 33 | AZ7: 2 | BA7: 0 | BB7: 1 | BC7: 0 | BD7: 4 | BE7: 2 | BF7: 1 | BG7: 1 | BH7: 1 | BI7: 0 | BJ7: 0 | BK7: 0 | BL7: 0 | BM7: 0 | BN7: 0 | BO7: 0 | BP7: 0 | BQ7: 0 | BR7: 0 | BS7: 0 | BT7: 0 | BU7: 0 | BV7: 0 | BW7: 0 | BX7: 0 | BY7: 0 | BZ7: 0 | CA7: 0 | CB7: 0 | CC7: 0 | CD7: 0 | CE7: 0 | CF7: 0 | CG7: 0 | CH7: 0 | CI7: 0 | CJ7: 0 | CK7: 0 | CL7: 0 | CM7: 0 | CN7: 0
A8: 4 | B8: Fernando Mota | C8: 347 | D8: 1 | E8: 45 | F8: 1 | H8: 7 | I8: 29 | L8: 7 | M8: 29 | P8: 10 | Q8: 26 | T8: 3 | U8: 37 | X8: 7 | Y8: 29 | AB8: 16 | AC8: 20* | AG8: 0* | AJ8: 2 | AK8: 40 | AN8: 7 | AO8: 29 | AR8: 1 | AS8: 45 | AV8: 3 | AW8: 37 | AZ8: 0 | BA8: 0 | BB8: 0 | BC8: 0 | BD8: 0 | BE8: 0 | BF8: 0 | BG8: 0 | BH8: 0 | BI8: 0 | BJ8: 0 | BK8: 0 | BL8: 0 | BM8: 0 | BN8: 0 | BO8: 0 | BP8: 0 | BQ8: 0 | BR8: 0 | BS8: 0 | BT8: 0 | BU8: 0 | BV8: 0 | BW8: 0 | BX8: 0 | BY8: 0 | BZ8: 0 | CA8: 0 | CB8: 0 | CC8: 0 | CD8: 0 | CE8: 0 | CF8: 0 | CG8: 0 | CH8: 0 | CI8: 0 | CJ8: 0 | CK8: 0 | CL8: 0 | CM8: 0 | CN8: 0
A9: 5 | B9: Anderson Teixeira | C9: 316 | D9: 12 | E9: 24 | H9: 1 | I9: 45 | J9: 1 | L9: 12 | M9: 24 | P9: 7 | Q9: 29 | T9: 4 | U9: 35 | X9: 13 | Y9: 23* | AB9: 14 | AC9: 22* | AF9: 4 | AG9: 35 | AJ9: 5 | AK9: 33 | AN9: 4 | AO9: 35 | AR9: 6 | AS9: 31 | AV9: 12 | AW9: 24 | AZ9: 0 | BA9: 0 | BB9: 0 | BC9: 0 | BD9: 0 | BE9: 0 | BF9: 0 | BG9: 0 | BH9: 0 | BI9: 0 | BJ9: 0 | BK9: 0 | BL9: 0 | BM9: 0 | BN9: 0 | BO9: 0 | BP9: 0 | BQ9: 0 | BR9: 0 | BS9: 0 | BT9: 0 | BU9: 0 | BV9: 0 | BW9: 0 | BX9: 0 | BY9: 0 | BZ9: 0 | CA9: 0 | CB9: 0 | CC9: 0 | CD9: 0 | CE9: 0 | CF9: 0 | CG9: 0 | CH9: 0 | CI9: 0 | CJ9: 0 | CK9: 0 | CL9: 0 | CM9: 0 | CN9: 0
A10: 6 | B10: Petronio Jr. | C10: 314 | D10: 23 | E10: 13 | H10: 3 | I10: 37 | L10: 1 | M10: 45 | P10: 5 | Q10: 33 | T10: 1 | U10: 45 | V10: 1 | X10: 4 | Y10: 35 | AB10: 2 | AC10: 40 | AG10: 0* | AJ10: 3 | AK10: 37 | AN10: 8 | AO10: 28 | AS10: 0* | AW10: 0 | AZ10: 0 | BA10: 0 | BB10: 0 | BC10: 0 | BD10: 0 | BE10: 0 | BF10: 0 | BG10: 0 | BH10: 0 | BI10: 0 | BJ10: 0 | BK10: 0 | BL10: 0 | BM10: 0 | BN10: 0 | BO10: 0 | BP10: 0 | BQ10: 0 | BR10: 0 | BS10: 0 | BT10: 0 | BU10: 0 | BV10: 0 | BW10: 0 | BX10: 0 | BY10: 0 | BZ10: 0 | CA10: 0 | CB10: 0 | CC10: 0 | CD10: 0 | CE10: 0 | CF10: 0 | CG10: 0 | CH10: 0 | CI10: 0 | CJ10: 0 | CK10: 0 | CL10: 0 | CM10: 0 | CN10: 0
A11: 7 | B11: Felipe Franca | C11: 282 | D11: 15 | E11: 21 | H11: 13 | I11: 23 | L11: 5 | M11: 33 | P11: 4 | Q11: 35 | T11: 5 | U11: 33 | Y11: 0* | AB11: 23 | AC11: 13 | AE11: SIM | AG11: 0* | AJ11: 11 | AK11: 25 | AN11: 6 | AO11: 31 | AR11: 3 | AS11: 37 | AV11: 6 | AW11: 31 | AZ11: 0 | BA11: 0 | BB11: 0 | BC11: 0 | BD11: 0 | BE11: 0 | BF11: 0 | BG11: 0 | BH11: 0 | BI11: 0 | BJ11: 0 | BK11: 0 | BL11: 0 | BM11: 0 | BN11: 0 | BO11: 0 | BP11: 0 | BQ11: 0 | BR11: 0 | BS11: 0 | BT11: 0 | BU11: 0 | BV11: 0 | BW11: 0 | BX11: 0 | BY11: 0 | BZ11: 0 | CA11: 0 | CB11: 0 | CC11: 0 | CD11: 0 | CE11: 0 | CF11: 0 | CG11: 0 | CH11: 0 | CI11: 0 | CJ11: 0 | CK11: 0 | CL11: 0 | CM11: 0 | CN11: 0
A12: 8 | B12: Marcus Gregorio | C12: 281 | D12: 6 | E12: 31 | H12: 4 | I12: 35 | M12: 0* | P12: 2 | Q12: 40 | R12: 1 | U12: 0* | X12: 5 | Y12: 33 | AB12: 4 | AC12: 35 | AF12: 3 | AG12: 37 | AJ12: 6 | AK12: 31 | AN12: 3 | AO12: 37 | AP12: 1 | AS12: 0 | AW12: 0 | AZ12: 0 | BA12: 0 | BB12: 0 | BC12: 0 | BD12: 0 | BE12: 0 | BF12: 0 | BG12: 0 | BH12: 0 | BI12: 0 | BJ12: 0 | BK12: 0 | BL12: 0 | BM12: 0 | BN12: 0 | BO12: 0 | BP12: 0 | BQ12: 0 | BR12: 0 | BS12: 0 | BT12: 0 | BU12: 0 | BV12: 0 | BW12: 0 | BX12: 0 | BY12: 0 | BZ12: 0 | CA12: 0 | CB12: 0 | CC12: 0 | CD12: 0 | CE12: 0 | CF12: 0 | CG12: 0 | CH12: 0 | CI12: 0 | CJ12: 0 | CK12: 0 | CL12: 0 | CM12: 0 | CN12: 0
A13: 9 | B13: Agostinho Neves | C13: 276 | D13: 2 | E13: 40 | H13: 21 | I13: 15 | M13: 0* | P13: 9 | Q13: 27 | T13: 7 | U13: 29 | Y13: 0* | AC13: 0 | AF13: 7 | AG13: 29 | AJ13: 10 | AK13: 26 | AN13: 2 | AO13: 40 | AR13: 4 | AS13: 35 | AV13: 4 | AW13: 35 | AZ13: 0 | BA13: 2 | BB13: 0 | BC13: 2 | BD13: 0 | BE13: 0 | BF13: 2 | BG13: 0 | BH13: 1 | BI13: 1 | BJ13: 0 | BK13: 0 | BL13: 0 | BM13: 0 | BN13: 0 | BO13: 0 | BP13: 0 | BQ13: 0 | BR13: 0 | BS13: 0 | BT13: 1 | BU13: 0 | BV13: 0 | BW13: 0 | BX13: 0 | BY13: 0 | BZ13: 0 | CA13: 0 | CB13: 0 | CC13: 0 | CD13: 0 | CE13: 0 | CF13: 0 | CG13: 0 | CH13: 0 | CI13: 0 | CJ13: 0 | CK13: 0 | CL13: 0 | CM13: 0 | CN13: 0
A14: 10 | B14: Anderson Oliveira | C14: 258 | D14: 11 | E14: 25 | H14: 11 | I14: 25 | L14: 8 | M14: 28 | P14: 11 | Q14: 25 | T14: 9 | U14: 27 | X14: 6 | Y14: 31 | AC14: 0* | AG14: 0* | AJ14: 14 | AK14: 22 | AN14: 11 | AO14: 25 | AR14: 12 | AS14: 24 | AV14: 10 | AW14: 26 | AZ14: 0 | BA14: 0 | BB14: 0 | BC14: 0 | BD14: 0 | BE14: 1 | BF14: 0 | BG14: 1 | BH14: 1 | BI14: 1 | BJ14: 4 | BK14: 1 | BL14: 0 | BM14: 1 | BN14: 0 | BO14: 0 | BP14: 0 | BQ14: 0 | BR14: 0 | BS14: 0 | BT14: 0 | BU14: 0 | BV14: 0 | BW14: 0 | BX14: 0 | BY14: 0 | BZ14: 0 | CA14: 0 | CB14: 0 | CC14: 0 | CD14: 0 | CE14: 0 | CF14: 0 | CG14: 0 | CH14: 0 | CI14: 0 | CJ14: 0 | CK14: 0 | CL14: 0 | CM14: 0 | CN14: 0
A15: 11 | B15: Lúcio Chequer | C15: 246 | D15: 10 | E15: 26 | H15: 29 | I15: 7 | K15: SIM | L15: 9 | M15: 27 | P15: 18 | Q15: 18* | T15: 10 | U15: 26 | X15: 16 | Y15: 20* | AB15: 6 | AC15: 31 | AF15: 10 | AG15: 26 | AJ15: 8 | AK15: 28 | AN15: 13 | AO15: 23 | AR15: 9 | AS15: 27 | AV15: 11 | AW15: 25 | AZ15: 0 | BA15: 0 | BB15: 0 | BC15: 0 | BD15: 0 | BE15: 0 | BF15: 0 | BG15: 0 | BH15: 0 | BI15: 0 | BJ15: 0 | BK15: 0 | BL15: 0 | BM15: 0 | BN15: 0 | BO15: 0 | BP15: 0 | BQ15: 0 | BR15: 0 | BS15: 0 | BT15: 0 | BU15: 0 | BV15: 0 | BW15: 0 | BX15: 0 | BY15: 0 | BZ15: 0 | CA15: 0 | CB15: 0 | CC15: 0 | CD15: 0 | CE15: 0 | CF15: 0 | CG15: 0 | CH15: 0 | CI15: 0 | CJ15: 0 | CK15: 0 | CL15: 0 | CM15: 0 | CN15: 0
A16: 12 | B16: Luciano Brandão | C16: 224 | D16: 3 | E16: 37 | H16: 5 | I16: 33 | L16: 11 | M16: 25 | Q16: 0* | U16: 0* | X16: 9 | Y16: 27 | AB16: 7 | AC16: 29 | AF16: 11 | AG16: 25 | AJ16: 9 | AK16: 27 | AN16: 15 | AO16: 21 | AS16: 0 | AW16: 0 | AZ16: 0 | BA16: 0 | BB16: 0 | BC16: 0 | BD16: 0 | BE16: 0 | BF16: 0 | BG16: 0 | BH16: 0 | BI16: 0 | BJ16: 0 | BK16: 0 | BL16: 0 | BM16: 0 | BN16: 0 | BO16: 0 | BP16: 0 | BQ16: 0 | BR16: 0 | BS16: 0 | BT16: 0 | BU16: 0 | BV16: 0 | BW16: 0 | BX16: 0 | BY16: 0 | BZ16: 0 | CA16: 0 | CB16: 0 | CC16: 0 | CD16: 0 | CE16: 0 | CF16: 0 | CG16: 0 | CH16: 0 | CI16: 0 | CJ16: 0 | CK16: 0 | CL16: 0 | CM16: 0 | CN16: 0
A17: 13 | B17: Flavio Magalhães | C17: 200 | E17: 0* | I17: 0* | L17: 16 | M17: 20 | P17: 8 | Q17: 28 | T17: 11 | U17: 25 | X17: 11 | Y17: 25 | AB17: 10 | AC17: 26 | AF17: 6 | AG17: 31 | AJ17: 15 | AK17: 21 | AN17: 12 | AO17: 24 | AS17: 0 | AW17: 0 | AZ17: 0 | BA17: 0 | BB17: 0 | BC17: 0 | BD17: 0 | BE17: 0 | BF17: 0 | BG17: 0 | BH17: 0 | BI17: 0 | BJ17: 0 | BK17: 0 | BL17: 0 | BM17: 0 | BN17: 0 | BO17: 0 | BP17: 0 | BQ17: 0 | BR17: 0 | BS17: 0 | BT17: 0 | BU17: 0 | BV17: 0 | BW17: 0 | BX17: 0 | BY17: 0 | BZ17: 0 | CA17: 0 | CB17: 0 | CC17: 0 | CD17: 0 | CE17: 0 | CF17: 0 | CG17: 0 | CH17: 0 | CI17: 0 | CJ17: 0 | CK17: 0 | CL17: 0 | CM17: 0 | CN17: 0
A18: 14 | B18: Gabriel Gontijo | C18: 195 | E18: 0* | I18: 0* | L18: 17 | M18: 19 | P18: 12 | Q18: 24 | T18: 12 | U18: 24 | X18: 14 | Y18: 22 | AB18: 12 | AC18: 24 | AF18: 9 | AG18: 27 | AK18: 0 | AO18: 0 | AR18: 10 | AS18: 26 | AV18: 7 | AW18: 29 | AZ18: 0 | BA18: 0 | BB18: 0 | BC18: 0 | BD18: 0 | BE18: 0 | BF18: 0 | BG18: 0 | BH18: 0 | BI18: 0 | BJ18: 0 | BK18: 0 | BL18: 0 | BM18: 0 | BN18: 0 | BO18: 0 | BP18: 0 | BQ18: 0 | BR18: 0 | BS18: 0 | BT18: 0 | BU18: 0 | BV18: 0 | BW18: 0 | BX18: 0 | BY18: 0 | BZ18: 0 | CA18: 0 | CB18: 0 | CC18: 0 | CD18: 0 | CE18: 0 | CF18: 0 | CG18: 0 | CH18: 0 | CI18: 0 | CJ18: 0 | CK18: 0 | CL18: 0 | CM18: 0 | CN18: 0
A19: 15 | B19: Leodegario Junior | C19: 186 | D19: 13 | E19: 23 | H19: 17 | I19: 19 | L19: 13 | M19: 23 | Q19: 0* | T19: 13 | U19: 23 | X19: 12 | Y19: 24 | AB19: 8 | AC19: 28 | AG19: 0* | AJ19: 12 | AK19: 24 | AN19: 14 | AO19: 22 | AS19: 0 | AW19: 0 | AZ19: 0 | BA19: 0 | BB19: 0 | BC19: 0 | BD19: 0 | BE19: 0 | BF19: 0 | BG19: 0 | BH19: 0 | BI19: 0 | BJ19: 0 | BK19: 0 | BL19: 0 | BM19: 0 | BN19: 0 | BO19: 0 | BP19: 0 | BQ19: 0 | BR19: 0 | BS19: 0 | BT19: 0 | BU19: 0 | BV19: 0 | BW19: 0 | BX19: 0 | BY19: 0 | BZ19: 0 | CA19: 0 | CB19: 0 | CC19: 0 | CD19: 0 | CE19: 0 | CF19: 0 | CG19: 0 | CH19: 0 | CI19: 0 | CJ19: 0 | CK19: 0 | CL19: 0 | CM19: 0 | CN19: 0
A20: 16 | B20: Gladystone Reis | C20: 173 | D20: 14 | E20: 22 | H20: 20 | I20: 16 | L20: 18 | M20: 18 | P20: 17 | Q20: 19 | U20: 0* | X20: 15 | Y20: 21 | AC20: 0* | AF20: 12 | AG20: 24 | AK20: 0 | AO20: 0 | AR20: 11 | AS20: 25 | AV20: 8 | AW20: 28 | AZ20: 0 | BA20: 0 | BB20: 0 | BC20: 0 | BD20: 0 | BE20: 0 | BF20: 0 | BG20: 0 | BH20: 0 | BI20: 0 | BJ20: 0 | BK20: 0 | BL20: 0 | BM20: 0 | BN20: 0 | BO20: 0 | BP20: 0 | BQ20: 0 | BR20: 0 | BS20: 0 | BT20: 0 | BU20: 0 | BV20: 0 | BW20: 0 | BX20: 0 | BY20: 0 | BZ20: 0 | CA20: 0 | CB20: 0 | CC20: 0 | CD20: 0 | CE20: 0 | CF20: 0 | CG20: 0 | CH20: 0 | CI20: 0 | CJ20: 0 | CK20: 0 | CL20: 0 | CM20: 0 | CN20: 0
A21: 17 | B21: Vitor Diniz | C21: 165 | E21: 0* | I21: 0* | M21: 0 | P21: 16 | Q21: 20 | T21: 14 | U21: 22 | X21: 10 | Y21: 26 | AB21: 13 | AC21: 23 | AF21: 8 | AG21: 28 | AJ21: 16 | AK21: 20 | AN21: 10 | AO21: 26 | AS21: 0 | AW21: 0 | AZ21: 0 | BA21: 0 | BB21: 0 | BC21: 0 | BD21: 0 | BE21: 0 | BF21: 0 | BG21: 0 | BH21: 0 | BI21: 0 | BJ21: 0 | BK21: 0 | BL21: 0 | BM21: 0 | BN21: 0 | BO21: 0 | BP21: 0 | BQ21: 0 | BR21: 0 | BS21: 0 | BT21: 0 | BU21: 0 | BV21: 0 | BW21: 0 | BX21: 0 | BY21: 0 | BZ21: 0 | CA21: 0 | CB21: 0 | CC21: 0 | CD21: 0 | CE21: 0 | CF21: 0 | CG21: 0 | CH21: 0 | CI21: 0 | CJ21: 0 | CK21: 0 | CL21: 0 | CM21: 0 | CN21: 0
A22: 18 | B22: Aparecido Faria | C22: 154 | E22: 0* | H22: 12 | I22: 24 | M22: 0* | Q22: 0 | T22: 6 | U22: 31 | Y22: 0 | AC22: 0 | AG22: 0 | AJ22: 13 | AK22: 23 | AN22: 16 | AO22: 20 | AR22: 7 | AS22: 29 | AV22: 9 | AW22: 27 | AZ22: 0 | BA22: 0 | BB22: 0 | BC22: 0 | BD22: 0 | BE22: 0 | BF22: 0 | BG22: 0 | BH22: 0 | BI22: 0 | BJ22: 0 | BK22: 0 | BL22: 0 | BM22: 0 | BN22: 0 | BO22: 0 | BP22: 0 | BQ22: 0 | BR22: 0 | BS22: 0 | BT22: 0 | BU22: 0 | BV22: 0 | BW22: 0 | BX22: 0 | BY22: 0 | BZ22: 0 | CA22: 0 | CB22: 0 | CC22: 0 | CD22: 0 | CE22: 0 | CF22: 0 | CG22: 0 | CH22: 0 | CI22: 0 | CJ22: 0 | CK22: 0 | CL22: 0 | CM22: 0 | CN22: 0
A23: 19 | B23: Diego Silva | C23: 149 | D23: 7 | E23: 29 | H23: 10 | I23: 26 | L23: 4 | M23: 35 | Q23: 0* | U23: 0* | Y23: 0 | AB23: 11 | AC23: 25 | AF23: 5 | AG23: 33 | AH23: 1 | AK23: 0 | AO23: 0 | AS23: 0 | AW23: 0 | AZ23: 0 | BA23: 0 | BB23: 0 | BC23: 0 | BD23: 0 | BE23: 0 | BF23: 0 | BG23: 0 | BH23: 0 | BI23: 0 | BJ23: 0 | BK23: 0 | BL23: 0 | BM23: 0 | BN23: 0 | BO23: 0 | BP23: 0 | BQ23: 0 | BR23: 0 | BS23: 0 | BT23: 0 | BU23: 0 | BV23: 0 | BW23: 0 | BX23: 0 | BY23: 0 | BZ23: 0 | CA23: 0 | CB23: 0 | CC23: 0 | CD23: 0 | CE23: 0 | CF23: 0 | CG23: 0 | CH23: 0 | CI23: 0 | CJ23: 0 | CK23: 0 | CL23: 0 | CM23: 0 | CN23: 0
A24: 20 | B24: Bruno Camargos | C24: 112 | D24: 18 | E24: 18 | H24: 18 | I24: 18 | L24: 14 | M24: 22 | P24: 14 | Q24: 22 | U24: 0* | X24: 23 | Y24: 13 | AA24: SIM | AC24: 0* | AG24: 0 | AJ24: 17 | AK24: 19 | AO24: 0 | AS24: 0 | AW24: 0 | AZ24: 0 | BA24: 0 | BB24: 0 | BC24: 0 | BD24: 0 | BE24: 0 | BF24: 0 | BG24: 0 | BH24: 0 | BI24: 0 | BJ24: 0 | BK24: 0 | BL24: 0 | BM24: 0 | BN24: 0 | BO24: 0 | BP24: 0 | BQ24: 0 | BR24: 0 | BS24: 0 | BT24: 0 | BU24: 0 | BV24: 0 | BW24: 0 | BX24: 0 | BY24: 0 | BZ24: 0 | CA24: 0 | CB24: 0 | CC24: 0 | CD24: 0 | CE24: 0 | CF24: 0 | CG24: 0 | CH24: 0 | CI24: 0 | CJ24: 0 | CK24: 0 | CL24: 0 | CM24: 0 | CN24: 0
A25: 21 | B25: Arthur Santiago | C25: 90 | D25: 16 | E25: 20 | H25: 16 | I25: 20 | M25: 0* | P25: 13 | Q25: 23 | U25: 0* | Y25: 0 | AB25: 9 | AC25: 27 | AG25: 0 | AK25: 0 | AO25: 0 | AS25: 0 | AW25: 0 | AZ25: 0 | BA25: 0 | BB25: 0 | BC25: 0 | BD25: 0 | BE25: 0 | BF25: 0 | BG25: 0 | BH25: 0 | BI25: 0 | BJ25: 0 | BK25: 0 | BL25: 0 | BM25: 0 | BN25: 0 | BO25: 0 | BP25: 0 | BQ25: 0 | BR25: 0 | BS25: 0 | BT25: 0 | BU25: 0 | BV25: 0 | BW25: 0 | BX25: 0 | BY25: 0 | BZ25: 0 | CA25: 0 | CB25: 0 | CC25: 0 | CD25: 0 | CE25: 0 | CF25: 0 | CG25: 0 | CH25: 0 | CI25: 0 | CJ25: 0 | CK25: 0 | CL25: 0 | CM25: 0 | CN25: 0
A26: 22 | B26: Felipe Curi | C26: 83 | D26: 4 | E26: 35 | H26: 6 | I26: 31 | L26: 19 | M26: 17 | O26: SIM | Q26: 0* | U26: 0* | Y26: 0 | AC26: 0 | AG26: 0 | AK26: 0 | AO26: 0 | AS26: 0 | AW26: 0 | AZ26: 0 | BA26: 0 | BB26: 0 | BC26: 0 | BD26: 0 | BE26: 0 | BF26: 0 | BG26: 0 | BH26: 0 | BI26: 0 | BJ26: 0 | BK26: 0 | BL26: 0 | BM26: 0 | BN26: 0 | BO26: 0 | BP26: 0 | BQ26: 0 | BR26: 0 | BS26: 0 | BT26: 0 | BU26: 0 | BV26: 0 | BW26: 0 | BX26: 0 | BY26: 0 | BZ26: 0 | CA26: 0 | CB26: 0 | CC26: 0 | CD26: 0 | CE26: 0 | CF26: 0 | CG26: 0 | CH26: 0 | CI26: 0 | CJ26: 0 | CK26: 0 | CL26: 0 | CM26: 0 | CN26: 0
A27: 23 | B27: Thales Silva | C27: 70 | D27: 9 | E27: 27 | H27: 14 | I27: 22 | L27: 15 | M27: 21 | Q27: 0* | U27: 0* | Y27: 0 | AC27: 0 | AG27: 0 | AK27: 0 | AO27: 0 | AS27: 0 | AW27: 0 | AZ27: 0 | BA27: 0 | BB27: 0 | BC27: 0 | BD27: 0 | BE27: 0 | BF27: 0 | BG27: 0 | BH27: 0 | BI27: 0 | BJ27: 0 | BK27: 0 | BL27: 0 | BM27: 0 | BN27: 0 | BO27: 0 | BP27: 0 | BQ27: 0 | BR27: 0 | BS27: 0 | BT27: 0 | BU27: 0 | BV27: 0 | BW27: 0 | BX27: 0 | BY27: 0 | BZ27: 0 | CA27: 0 | CB27: 0 | CC27: 0 | CD27: 0 | CE27: 0 | CF27: 0 | CG27: 0 | CH27: 0 | CI27: 0 | CJ27: 0 | CK27: 0 | CL27: 0 | CM27: 0 | CN27: 0
A28: 24 | B28: Mathias Almeida | C28: 57 | D28: 17 | E28: 19 | H28: 15 | I28: 21 | L28: 20 | M28: 16 | N28: 1 | Q28: 0* | U28: 0* | Y28: 0 | AC28: 0 | AG28: 0 | AK28: 0 | AO28: 0 | AS28: 0 | AW28: 0 | AZ28: 0 | BA28: 0 | BB28: 0 | BC28: 0 | BD28: 0 | BE28: 0 | BF28: 0 | BG28: 0 | BH28: 0 | BI28: 0 | BJ28: 0 | BK28: 0 | BL28: 0 | BM28: 0 | BN28: 0 | BO28: 0 | BP28: 0 | BQ28: 0 | BR28: 0 | BS28: 0 | BT28: 0 | BU28: 0 | BV28: 0 | BW28: 0 | BX28: 0 | BY28: 0 | BZ28: 0 | CA28: 0 | CB28: 0 | CC28: 0 | CD28: 0 | CE28: 0 | CF28: 0 | CG28: 0 | CH28: 0 | CI28: 0 | CJ28: 0 | CK28: 0 | CL28: 0 | CM28: 0 | CN28: 0
A29: 25 | B29: Matheus Dias | C29: 56 | D29: 24 | E29: 12 | F29: 1 | G29: SIM | H29: 19 | I29: 17 | L29: 10 | M29: 26 | Q29: 0* | U29: 0* | Y29: 0 | AC29: 0 | AG29: 0 | AK29: 0 | AO29: 0 | AS29: 0 | AW29: 0 | AZ29: 0 | BA29: 0 | BB29: 0 | BC29: 0 | BD29: 0 | BE29: 0 | BF29: 0 | BG29: 0 | BH29: 0 | BI29: 0 | BJ29: 0 | BK29: 0 | BL29: 0 | BM29: 0 | BN29: 0 | BO29: 0 | BP29: 0 | BQ29: 0 | BR29: 0 | BS29: 0 | BT29: 0 | BU29: 0 | BV29: 0 | BW29: 0 | BX29: 0 | BY29: 0 | BZ29: 0 | CA29: 0 | CB29: 0 | CC29: 0 | CD29: 0 | CE29: 0 | CF29: 0 | CG29: 0 | CH29: 0 | CI29: 0 | CJ29: 0 | CK29: 0 | CL29: 0 | CM29: 0 | CN29: 0
A30: 26 | B30: Lucas Mourão | C30: 52 | D30: 19 | E30: 17 | H30: 22 | I30: 14 | M30: 0* | P30: 15 | Q30: 21 | U30: 0* | Y30: 0 | AC30: 0 | AG30: 0 | AK30: 0 | AO30: 0 | AS30: 0 | AW30: 0 | AZ30: 0 | BA30: 0 | BB30: 0 | BC30: 0 | BD30: 0 | BE30: 0 | BF30: 0 | BG30: 0 | BH30: 0 | BI30: 0 | BJ30: 0 | BK30: 0 | BL30: 0 | BM30: 0 | BN30: 0 | BO30: 0 | BP30: 0 | BQ30: 0 | BR30: 0 | BS30: 0 | BT30: 0 | BU30: 0 | BV30: 0 | BW30: 0 | BX30: 0 | BY30: 0 | BZ30: 0 | CA30: 0 | CB30: 0 | CC30: 0 | CD30: 0 | CE30: 0 | CF30: 0 | CG30: 0 | CH30: 0 | CI30: 0 | CJ30: 0 | CK30: 0 | CL30: 0 | CM30: 0 | CN30: 0
A31: 27 | B31: Wilson Cristofani | C31: 42 | D31: 22 | E31: 14 | I31: 0* | M31: 0* | Q31: 0 | U31: 0 | X31: 8 | Y31: 28 | AC31: 0 | AG31: 0 | AK31: 0 | AO31: 0 | AS31: 0 | AW31: 0 | AZ31: 0 | BA31: 0 | BB31: 0 | BC31: 0 | BD31: 0 | BE31: 0 | BF31: 0 | BG31: 0 | BH31: 0 | BI31: 0 | BJ31: 0 | BK31: 0 | BL31: 0 | BM31: 0 | BN31: 0 | BO31: 0 | BP31: 0 | BQ31: 0 | BR31: 0 | BS31: 0 | BT31: 0 | BU31: 0 | BV31: 0 | BW31: 0 | BX31: 0 | BY31: 0 | BZ31: 0 | CA31: 0 | CB31: 0 | CC31: 0 | CD31: 0 | CE31: 0 | CF31: 0 | CG31: 0 | CH31: 0 | CI31: 0 | CJ31: 0 | CK31: 0 | CL31: 0 | CM31: 0 | CN31: 0
A32: 28 | B32: João Ferreira | C32: 37 | D32: 20 | E32: 16 | I32: 0* | M32: 0* | Q32: 0 | T32: 15 | U32: 21 | Y32: 0 | AC32: 0 | AG32: 0 | AK32: 0 | AO32: 0 | AS32: 0 | AW32: 0 | AZ32: 0 | BA32: 0 | BB32: 0 | BC32: 0 | BD32: 0 | BE32: 0 | BF32: 0 | BG32: 0 | BH32: 0 | BI32: 0 | BJ32: 0 | BK32: 0 | BL32: 0 | BM32: 0 | BN32: 0 | BO32: 0 | BP32: 0 | BQ32: 0 | BR32: 0 | BS32: 0 | BT32: 0 | BU32: 0 | BV32: 0 | BW32: 0 | BX32: 0 | BY32: 0 | BZ32: 0 | CA32: 0 | CB32: 0 | CC32: 0 | CD32: 0 | CE32: 0 | CF32: 0 | CG32: 0 | CH32: 0 | CI32: 0 | CJ32: 0 | CK32: 0 | CL32: 0 | CM32: 0 | CN32: 0
A33: 29 | B33: Pericles Barcelos | C33: 32 | D33: 21 | E33: 15 | H33: 0 | I33: 0 | K33: SIM | M33: 0* | P33: 19 | Q33: 17 | U33: 0* | Y33: 0 | AC33: 0 | AG33: 0 | AK33: 0 | AO33: 0 | AS33: 0 | AW33: 0 | AZ33: 0 | BA33: 0 | BB33: 0 | BC33: 0 | BD33: 0 | BE33: 0 | BF33: 0 | BG33: 0 | BH33: 0 | BI33: 0 | BJ33: 0 | BK33: 0 | BL33: 0 | BM33: 0 | BN33: 0 | BO33: 0 | BP33: 0 | BQ33: 0 | BR33: 0 | BS33: 0 | BT33: 0 | BU33: 0 | BV33: 0 | BW33: 0 | BX33: 0 | BY33: 0 | BZ33: 0 | CA33: 0 | CB33: 0 | CC33: 0 | CD33: 0 | CE33: 0 | CF33: 0 | CG33: 0 | CH33: 0 | CI33: 0 | CJ33: 0 | CK33: 0 | CL33: 0 | CM33: 0 | CN33: 0
A34: 30 | B34: Leandro Leite | C34: 21 | E34: 0* | I34: 0* | M34: 0 | Q34: 0 | U34: 0 | Y34: 0 | AB34: 15 | AC34: 21 | AG34: 0 | AK34: 0 | AO34: 0 | AS34: 0 | AW34: 0 | AZ34: 0 | BA34: 0 | BB34: 0 | BC34: 0 | BD34: 0 | BE34: 0 | BF34: 0 | BG34: 0 | BH34: 0 | BI34: 0 | BJ34: 0 | BK34: 0 | BL34: 0 | BM34: 0 | BN34: 0 | BO34: 0 | BP34: 0 | BQ34: 0 | BR34: 0 | BS34: 0 | BT34: 0 | BU34: 0 | BV34: 0 | BW34: 0 | BX34: 0 | BY34: 0 | BZ34: 0 | CA34: 0 | CB34: 0 | CC34: 0 | CD34: 0 | CE34: 0 | CF34: 0 | CG34: 0 | CH34: 0 | CI34: 0 | CJ34: 0 | CK34: 0 | CL34: 0 | CM34: 0 | CN34: 0
A35: 31 | B35: Robert Freitas | C35: 0 | E35: 0* | I35: 0* | M35: 0 | Q35: 0 | U35: 0 | Y35: 0 | AC35: 0 | AG35: 0 | AK35: 0 | AO35: 0 | AS35: 0 | AW35: 0 | AZ35: 0 | BA35: 0 | BB35: 0 | BC35: 0 | BD35: 0 | BE35: 0 | BF35: 0 | BG35: 0 | BH35: 0 | BI35: 0 | BJ35: 0 | BK35: 0 | BL35: 0 | BM35: 0 | BN35: 0 | BO35: 0 | BP35: 0 | BQ35: 0 | BR35: 0 | BS35: 0 | BT35: 0 | BU35: 0 | BV35: 0 | BW35: 0 | BX35: 0 | BY35: 0 | BZ35: 0 | CA35: 0 | CB35: 0 | CC35: 0 | CD35: 0 | CE35: 0 | CF35: 0 | CG35: 0 | CH35: 0 | CI35: 0 | CJ35: 0 | CK35: 0 | CL35: 0 | CM35: 0 | CN35: 0
A36: 32 | B36: Luis Cáceres | C36: 0 | E36: 0* | I36: 0* | M36: 0 | Q36: 0 | U36: 0 | Y36: 0 | AC36: 0 | AG36: 0 | AK36: 0 | AO36: 0 | AS36: 0 | AW36: 0 | AZ36: 0 | BA36: 0 | BB36: 0 | BC36: 0 | BD36: 0 | BE36: 0 | BF36: 0 | BG36: 0 | BH36: 0 | BI36: 0 | BJ36: 0 | BK36: 0 | BL36: 0 | BM36: 0 | BN36: 0 | BO36: 0 | BP36: 0 | BQ36: 0 | BR36: 0 | BS36: 0 | BT36: 0 | BU36: 0 | BV36: 0 | BW36: 0 | BX36: 0 | BY36: 0 | BZ36: 0 | CA36: 0 | CB36: 0 | CC36: 0 | CD36: 0 | CE36: 0 | CF36: 0 | CG36: 0 | CH36: 0 | CI36: 0 | CJ36: 0 | CK36: 0 | CL36: 0 | CM36: 0 | CN36: 0
A37: 33 | C37: 0 | E37: 0 | I37: 0 | M37: 0 | Q37: 0 | U37: 0 | Y37: 0 | AC37: 0 | AG37: 0 | AK37: 0 | AO37: 0 | AS37: 0 | AW37: 0 | AZ37: 0 | BA37: 0 | BB37: 0 | BC37: 0 | BD37: 0 | BE37: 0 | BF37: 0 | BG37: 0 | BH37: 0 | BI37: 0 | BJ37: 0 | BK37: 0 | BL37: 0 | BM37: 0 | BN37: 0 | BO37: 0 | BP37: 0 | BQ37: 0 | BR37: 0 | BS37: 0 | BT37: 0 | BU37: 0 | BV37: 0 | BW37: 0 | BX37: 0 | BY37: 0 | BZ37: 0 | CA37: 0 | CB37: 0 | CC37: 0 | CD37: 0 | CE37: 0 | CF37: 0 | CG37: 0 | CH37: 0 | CI37: 0 | CJ37: 0 | CK37: 0 | CL37: 0 | CM37: 0 | CN37: 0
A38: 34 | C38: 0 | E38: 0 | I38: 0 | M38: 0 | Q38: 0 | U38: 0 | Y38: 0 | AC38: 0 | AG38: 0 | AK38: 0 | AO38: 0 | AS38: 0 | AW38: 0 | AZ38: 0 | BA38: 0 | BB38: 0 | BC38: 0 | BD38: 0 | BE38: 0 | BF38: 0 | BG38: 0 | BH38: 0 | BI38: 0 | BJ38: 0 | BK38: 0 | BL38: 0 | BM38: 0 | BN38: 0 | BO38: 0 | BP38: 0 | BQ38: 0 | BR38: 0 | BS38: 0 | BT38: 0 | BU38: 0 | BV38: 0 | BW38: 0 | BX38: 0 | BY38: 0 | BZ38: 0 | CA38: 0 | CB38: 0 | CC38: 0 | CD38: 0 | CE38: 0 | CF38: 0 | CG38: 0 | CH38: 0 | CI38: 0 | CJ38: 0 | CK38: 0 | CL38: 0 | CM38: 0 | CN38: 0
A39: 35 | C39: 0 | E39: 0 | I39: 0 | M39: 0 | Q39: 0 | U39: 0 | Y39: 0 | AC39: 0 | AG39: 0 | AK39: 0 | AO39: 0 | AS39: 0 | AW39: 0 | AZ39: 0 | BA39: 0 | BB39: 0 | BC39: 0 | BD39: 0 | BE39: 0 | BF39: 0 | BG39: 0 | BH39: 0 | BI39: 0 | BJ39: 0 | BK39: 0 | BL39: 0 | BM39: 0 | BN39: 0 | BO39: 0 | BP39: 0 | BQ39: 0 | BR39: 0 | BS39: 0 | BT39: 0 | BU39: 0 | BV39: 0 | BW39: 0 | BX39: 0 | BY39: 0 | BZ39: 0 | CA39: 0 | CB39: 0 | CC39: 0 | CD39: 0 | CE39: 0 | CF39: 0 | CG39: 0 | CH39: 0 | CI39: 0 | CJ39: 0 | CK39: 0 | CL39: 0 | CM39: 0 | CN39: 0
A40: 36 | C40: 0 | E40: 0 | I40: 0 | M40: 0 | Q40: 0 | U40: 0 | Y40: 0 | AC40: 0 | AG40: 0 | AK40: 0 | AO40: 0 | AS40: 0 | AW40: 0 | AZ40: 0 | BA40: 0 | BB40: 0 | BC40: 0 | BD40: 0 | BE40: 0 | BF40: 0 | BG40: 0 | BH40: 0 | BI40: 0 | BJ40: 0 | BK40: 0 | BL40: 0 | BM40: 0 | BN40: 0 | BO40: 0 | BP40: 0 | BQ40: 0 | BR40: 0 | BS40: 0 | BT40: 0 | BU40: 0 | BV40: 0 | BW40: 0 | BX40: 0 | BY40: 0 | BZ40: 0 | CA40: 0 | CB40: 0 | CC40: 0 | CD40: 0 | CE40: 0 | CF40: 0 | CG40: 0 | CH40: 0 | CI40: 0 | CJ40: 0 | CK40: 0 | CL40: 0 | CM40: 0 | CN40: 0
A41: 37 | C41: 0 | E41: 0 | I41: 0 | M41: 0 | Q41: 0 | U41: 0 | Y41: 0 | AC41: 0 | AG41: 0 | AK41: 0 | AO41: 0 | AS41: 0 | AW41: 0 | AZ41: 0 | BA41: 0 | BB41: 0 | BC41: 0 | BD41: 0 | BE41: 0 | BF41: 0 | BG41: 0 | BH41: 0 | BI41: 0 | BJ41: 0 | BK41: 0 | BL41: 0 | BM41: 0 | BN41: 0 | BO41: 0 | BP41: 0 | BQ41: 0 | BR41: 0 | BS41: 0 | BT41: 0 | BU41: 0 | BV41: 0 | BW41: 0 | BX41: 0 | BY41: 0 | BZ41: 0 | CA41: 0 | CB41: 0 | CC41: 0 | CD41: 0 | CE41: 0 | CF41: 0 | CG41: 0 | CH41: 0 | CI41: 0 | CJ41: 0 | CK41: 0 | CL41: 0 | CM41: 0 | CN41: 0
A42: 38 | C42: 0 | E42: 0 | I42: 0 | M42: 0 | Q42: 0 | U42: 0 | Y42: 0 | AC42: 0 | AG42: 0 | AK42: 0 | AO42: 0 | AS42: 0 | AW42: 0 | AZ42: 0 | BA42: 0 | BB42: 0 | BC42: 0 | BD42: 0 | BE42: 0 | BF42: 0 | BG42: 0 | BH42: 0 | BI42: 0 | BJ42: 0 | BK42: 0 | BL42: 0 | BM42: 0 | BN42: 0 | BO42: 0 | BP42: 0 | BQ42: 0 | BR42: 0 | BS42: 0 | BT42: 0 | BU42: 0 | BV42: 0 | BW42: 0 | BX42: 0 | BY42: 0 | BZ42: 0 | CA42: 0 | CB42: 0 | CC42: 0 | CD42: 0 | CE42: 0 | CF42: 0 | CG42: 0 | CH42: 0 | CI42: 0 | CJ42: 0 | CK42: 0 | CL42: 0 | CM42: 0 | CN42: 0
A43: 39 | C43: 0 | E43: 0 | I43: 0 | M43: 0 | Q43: 0 | U43: 0 | Y43: 0 | AC43: 0 | AG43: 0 | AK43: 0 | AO43: 0 | AS43: 0 | AW43: 0 | AZ43: 0 | BA43: 0 | BB43: 0 | BC43: 0 | BD43: 0 | BE43: 0 | BF43: 0 | BG43: 0 | BH43: 0 | BI43: 0 | BJ43: 0 | BK43: 0 | BL43: 0 | BM43: 0 | BN43: 0 | BO43: 0 | BP43: 0 | BQ43: 0 | BR43: 0 | BS43: 0 | BT43: 0 | BU43: 0 | BV43: 0 | BW43: 0 | BX43: 0 | BY43: 0 | BZ43: 0 | CA43: 0 | CB43: 0 | CC43: 0 | CD43: 0 | CE43: 0 | CF43: 0 | CG43: 0 | CH43: 0 | CI43: 0 | CJ43: 0 | CK43: 0 | CL43: 0 | CM43: 0 | CN43: 0
A44: 40 | C44: 0 | E44: 0 | I44: 0 | M44: 0 | Q44: 0 | U44: 0 | Y44: 0 | AC44: 0 | AG44: 0 | AK44: 0 | AO44: 0 | AS44: 0 | AW44: 0 | AZ44: 0 | BA44: 0 | BB44: 0 | BC44: 0 | BD44: 0 | BE44: 0 | BF44: 0 | BG44: 0 | BH44: 0 | BI44: 0 | BJ44: 0 | BK44: 0 | BL44: 0 | BM44: 0 | BN44: 0 | BO44: 0 | BP44: 0 | BQ44: 0 | BR44: 0 | BS44: 0 | BT44: 0 | BU44: 0 | BV44: 0 | BW44: 0 | BX44: 0 | BY44: 0 | BZ44: 0 | CA44: 0 | CB44: 0 | CC44: 0 | CD44: 0 | CE44: 0 | CF44: 0 | CG44: 0 | CH44: 0 | CI44: 0 | CJ44: 0 | CK44: 0 | CL44: 0 | CM44: 0 | CN44: 0
A45: 41 | C45: 0 | E45: 0 | I45: 0 | M45: 0 | Q45: 0 | U45: 0 | Y45: 0 | AC45: 0 | AG45: 0 | AK45: 0 | AO45: 0 | AS45: 0 | AW45: 0 | AZ45: 0 | BA45: 0 | BB45: 0 | BC45: 0 | BD45: 0 | BE45: 0 | BF45: 0 | BG45: 0 | BH45: 0 | BI45: 0 | BJ45: 0 | BK45: 0 | BL45: 0 | BM45: 0 | BN45: 0 | BO45: 0 | BP45: 0 | BQ45: 0 | BR45: 0 | BS45: 0 | BT45: 0 | BU45: 0 | BV45: 0 | BW45: 0 | BX45: 0 | BY45: 0 | BZ45: 0 | CA45: 0 | CB45: 0 | CC45: 0 | CD45: 0 | CE45: 0 | CF45: 0 | CG45: 0 | CH45: 0 | CI45: 0 | CJ45: 0 | CK45: 0 | CL45: 0 | CM45: 0 | CN45: 0
A46: 42 | C46: 0 | E46: 0 | I46: 0 | M46: 0 | Q46: 0 | U46: 0 | Y46: 0 | AC46: 0 | AG46: 0 | AK46: 0 | AO46: 0 | AS46: 0 | AW46: 0 | AZ46: 0 | BA46: 0 | BB46: 0 | BC46: 0 | BD46: 0 | BE46: 0 | BF46: 0 | BG46: 0 | BH46: 0 | BI46: 0 | BJ46: 0 | BK46: 0 | BL46: 0 | BM46: 0 | BN46: 0 | BO46: 0 | BP46: 0 | BQ46: 0 | BR46: 0 | BS46: 0 | BT46: 0 | BU46: 0 | BV46: 0 | BW46: 0 | BX46: 0 | BY46: 0 | BZ46: 0 | CA46: 0 | CB46: 0 | CC46: 0 | CD46: 0 | CE46: 0 | CF46: 0 | CG46: 0 | CH46: 0 | CI46: 0 | CJ46: 0 | CK46: 0 | CL46: 0 | CM46: 0 | CN46: 0
A47: 43 | C47: 0 | E47: 0 | I47: 0 | M47: 0 | Q47: 0 | U47: 0 | Y47: 0 | AC47: 0 | AG47: 0 | AK47: 0 | AO47: 0 | AS47: 0 | AW47: 0 | AZ47: 0 | BA47: 0 | BB47: 0 | BC47: 0 | BD47: 0 | BE47: 0 | BF47: 0 | BG47: 0 | BH47: 0 | BI47: 0 | BJ47: 0 | BK47: 0 | BL47: 0 | BM47: 0 | BN47: 0 | BO47: 0 | BP47: 0 | BQ47: 0 | BR47: 0 | BS47: 0 | BT47: 0 | BU47: 0 | BV47: 0 | BW47: 0 | BX47: 0 | BY47: 0 | BZ47: 0 | CA47: 0 | CB47: 0 | CC47: 0 | CD47: 0 | CE47: 0 | CF47: 0 | CG47: 0 | CH47: 0 | CI47: 0 | CJ47: 0 | CK47: 0 | CL47: 0 | CM47: 0 | CN47: 0
A48: 44 | C48: 0 | E48: 0 | I48: 0 | M48: 0 | Q48: 0 | U48: 0 | Y48: 0 | AC48: 0 | AG48: 0 | AK48: 0 | AO48: 0 | AS48: 0 | AW48: 0 | AZ48: 0 | BA48: 0 | BB48: 0 | BC48: 0 | BD48: 0 | BE48: 0 | BF48: 0 | BG48: 0 | BH48: 0 | BI48: 0 | BJ48: 0 | BK48: 0 | BL48: 0 | BM48: 0 | BN48: 0 | BO48: 0 | BP48: 0 | BQ48: 0 | BR48: 0 | BS48: 0 | BT48: 0 | BU48: 0 | BV48: 0 | BW48: 0 | BX48: 0 | BY48: 0 | BZ48: 0 | CA48: 0 | CB48: 0 | CC48: 0 | CD48: 0 | CE48: 0 | CF48: 0 | CG48: 0 | CH48: 0 | CI48: 0 | CJ48: 0 | CK48: 0 | CL48: 0 | CM48: 0 | CN48: 0
A49: 45 | C49: 0 | E49: 0 | I49: 0 | M49: 0 | Q49: 0 | U49: 0 | Y49: 0 | AC49: 0 | AG49: 0 | AK49: 0 | AO49: 0 | AS49: 0 | AW49: 0 | AZ49: 0 | BA49: 0 | BB49: 0 | BC49: 0 | BD49: 0 | BE49: 0 | BF49: 0 | BG49: 0 | BH49: 0 | BI49: 0 | BJ49: 0 | BK49: 0 | BL49: 0 | BM49: 0 | BN49: 0 | BO49: 0 | BP49: 0 | BQ49: 0 | BR49: 0 | BS49: 0 | BT49: 0 | BU49: 0 | BV49: 0 | BW49: 0 | BX49: 0 | BY49: 0 | BZ49: 0 | CA49: 0 | CB49: 0 | CC49: 0 | CD49: 0 | CE49: 0 | CF49: 0 | CG49: 0 | CH49: 0 | CI49: 0 | CJ49: 0 | CK49: 0 | CL49: 0 | CM49: 0 | CN49: 0

Sheet Tabela Equipes
A1: 2021 | D1: OK | H1: OK | L1: OK | P1: OK | T1: OK | X1: OK | AB1: OK | AF1: OK | AJ1: OK | AN1: OK | AR1: OK | AV1: OK
C2: 2ª etapa | G2: 5ª etapa | K2: 6ª etapa | O2: 7ª etapa | S2: 8ª etapa | W2: Etapa 9 09/09/2021 - 21:15 | AA2: Etapa 10 14/10/2021 - 21:15 | AE2: Etapa 11 11/11/2021 - 21:15 | AI2: Etapa 12 09/12/2021 - 21:15 | AM2: Etapa01 09/12/2021 - 22:45 | AQ2: Etapa 03 | AU2: Etapa 04
C3: SUPER | G3: 00:00:00 | K3: 00:00:00 | O3: 00:00:00 | S3: 2021-08-12 | W3: 00:00:00 | AA3: 00:00:00 | AE3: 00:00:00 | AI3: 00:00:00 | AM3: 00:00:00 | AQ3: 00:00:00 | AU3: 00:00:00
A4: EQUIPES | B4: Pontuação Geral | C4: Posição | D4: Pontos | E4: Bônus | F4: Penalidade | G4: Posição | H4: Pontos | I4: Bônus | J4: Penalidade | K4: Posição | L4: Pontos | M4: Bônus | N4: Penalidade | O4: Posição | P4: Pontos | Q4: Bônus | R4: Penalidade | S4: Posição | T4: Pontos | U4: Bônus | V4: Penalidade | W4: Posição | X4: Pontos | Y4: Bônus | Z4: Penalidade | AA4: Posição | AB4: Pontos | AC4: Bônus | AD4: Penalidade | AE4: Posição | AF4: Pontos | AG4: Bônus | AH4: Penalidade | AI4: Posição | AJ4: Pontos | AK4: Bônus | AL4: Penalidade | AM4: Posição | AN4: Pontos | AO4: Bônus | AP4: Penalidade | AQ4: Posição | AR4: Pontos | AS4: Bônus | AT4: Penalidade | AU4: Posição | AV4: Pontos | AW4: Bônus | AX4: Penalidade
A5: Grupo Santiago / RNG | B5: 865 | D5: 71 | E5: 0 | H5: 67 | I5: 0 | L5: 88 | M5: 0 | P5: 91 | Q5: 0 | T5: 73 | U5: 0 | X5: 61 | Y5: 0 | AB5: 58 | AC5: 1 | AF5: 24 | AG5: 0 | AJ5: 60 | AK5: 0 | AN5: 64 | AO5: 0 | AR5: 102 | AS5: 0 | AV5: 104 | AW5: 1
A6: Rafael Miranda | B6: 410 | C6: 8 | D6: 28 | E6: 0 | G6: 8 | H6: 28 | I6: 0 | K6: 3 | L6: 37 | M6: 0 | O6: 3 | P6: 37 | Q6: 0 | S6: 2 | T6: 40 | U6: 0 | W6: 2 | X6: 40 | Y6: 0 | AA6: 1 | AB6: 45 | AC6: 1 | AE6: 0 | AF6: 0 | AG6: 0 | AI6: 4 | AJ6: 35 | AK6: 0 | AM6: 5 | AN6: 33 | AO6: 0 | AQ6: 2 | AR6: 40 | AS6: 0 | AU6: 1 | AV6: 45 | AW6: 1
A7: Gladystone Reis | B7: 173 | C7: 14 | D7: 22 | E7: 0 | G7: 20 | H7: 16 | I7: 0 | K7: 18 | L7: 18 | M7: 0 | O7: 17 | P7: 19 | Q7: 0 | S7: 0 | T7: 0 | U7: 0 | W7: 15 | X7: 21 | Y7: 0 | AA7: 0 | AB7: 0 | AC7: 0 | AE7: 12 | AF7: 24 | AG7: 0 | AI7: 0 | AJ7: 0 | AK7: 0 | AM7: 0 | AN7: 0 | AO7: 0 | AQ7: 11 | AR7: 25 | AS7: 0 | AU7: 8 | AV7: 28 | AW7: 0
A8: Felipe Franca | B8: 282 | C8: 15 | D8: 21 | E8: 0 | G8: 13 | H8: 23 | I8: 0 | K8: 5 | L8: 33 | M8: 0 | O8: 4 | P8: 35 | Q8: 0 | S8: 5 | T8: 33 | U8: 0 | W8: 0 | X8: 0 | Y8: 0 | AA8: 23 | AB8: 13 | AC8: 0 | AE8: 0 | AF8: 0 | AG8: 0 | AI8: 11 | AJ8: 25 | AK8: 0 | AM8: 6 | AN8: 31 | AO8: 0 | AQ8: 3 | AR8: 37 | AS8: 0 | AU8: 6 | AV8: 31 | AW8: 0
A9: XXXXXX
A10: XXXXXX | B10: 0
A11: RBC Racing / Multiseg | B11: 351 | D11: 73 | E11: 0 | H11: 53 | I11: 0 | L11: 25 | M11: 0 | P11: 23 | Q11: 0 | T11: 21 | U11: 0 | X11: 27 | Y11: 0 | AB11: 56 | AC11: 0 | AF11: 25 | AG11: 0 | AJ11: 27 | AK11: 0 | AN11: 21 | AO11: 0 | AR11: 0 | AS11: 0 | AV11: 0 | AW11: 0
A12: Luciano Brandão | B12: 224 | C12: 3 | D12: 37 | E12: 0 | G12: 5 | H12: 33 | I12: 0 | K12: 11 | L12: 25 | M12: 0 | O12: 0 | P12: 0 | Q12: 0 | S12: 0 | T12: 0 | U12: 0 | W12: 9 | X12: 27 | Y12: 0 | AA12: 7 | AB12: 29 | AC12: 0 | AE12: 11 | AF12: 25 | AG12: 0 | AI12: 9 | AJ12: 27 | AK12: 0 | AM12: 15 | AN12: 21 | AO12: 0 | AQ12: 0 | AR12: 0 | AS12: 0 | AU12: 0 | AV12: 0 | AW12: 0
A13: João Ferreira | B13: 37 | C13: 20 | D13: 16 | E13: 0 | G13: 0 | H13: 0 | I13: 0 | K13: 0 | L13: 0 | M13: 0 | O13: 0 | P13: 0 | Q13: 0 | S13: 15 | T13: 21 | U13: 0 | W13: 0 | X13: 0 | Y13: 0 | AA13: 0 | AB13: 0 | AC13: 0 | AE13: 0 | AF13: 0 | AG13: 0 | AI13: 0 | AJ13: 0 | AK13: 0 | AM13: 0 | AN13: 0 | AO13: 0 | AQ13: 0 | AR13: 0 | AS13: 0 | AU13: 0 | AV13: 0 | AW13: 0
A14: Arthur Santiago | B14: 90 | C14: 16 | D14: 20 | E14: 0 | G14: 16 | H14: 20 | I14: 0 | K14: 0 | L14: 0 | M14: 0 | O14: 13 | P14: 23 | Q14: 0 | S14: 0 | T14: 0 | U14: 0 | W14: 0 | X14: 0 | Y14: 0 | AA14: 9 | AB14: 27 | AC14: 0 | AE14: 0 | AF14: 0 | AG14: 0 | AI14: 0 | AJ14: 0 | AK14: 0 | AM14: 0 | AN14: 0 | AO14: 0 | AQ14: 0 | AR14: 0 | AS14: 0 | AU14: 0 | AV14: 0 | AW14: 0
A15: XXXXXX
A16: XXXXXX
A17: O2BH / Pyramo Cervejaria | B17: 659 | D17: 65 | E17: 0 | H17: 82 | I17: 1 | L17: 69 | M17: 0 | P17: 51 | Q17: 0 | T17: 58 | U17: 0 | X17: 60 | Y17: 0 | AB17: 50 | AC17: 0 | AF17: 35 | AG17: 0 | AJ17: 76 | AK17: 0 | AN17: 57 | AO17: 0 | AR17: 31 | AS17: 0 | AV17: 24 | AW17: 0
A18: Anderson Teixeira | B18: 361 | C18: 12 | D18: 24 | E18: 0 | G18: 1 | H18: 45 | I18: 1 | K18: 12 | L18: 24 | M18: 0 | O18: 7 | P18: 29 | Q18: 0 | S18: 4 | T18: 35 | U18: 0 | W18: 13 | X18: 23 | Y18: 0 | AA18: 14 | AB18: 22 | AC18: 0 | AE18: 4 | AF18: 35 | AG18: 0 | AI18: 5 | AJ18: 33 | AK18: 0 | AM18: 4 | AN18: 35 | AO18: 0 | AQ18: 6 | AR18: 31 | AS18: 0 | AU18: 12 | AV18: 24 | AW18: 0
A19: Leodegario Junior | B19: 186 | C19: 13 | D19: 23 | E19: 0 | G19: 17 | H19: 19 | I19: 0 | K19: 13 | L19: 23 | M19: 0 | O19: 0 | P19: 0 | Q19: 0 | S19: 13 | T19: 23 | U19: 0 | W19: 12 | X19: 24 | Y19: 0 | AA19: 8 | AB19: 28 | AC19: 0 | AE19: 0 | AF19: 0 | AG19: 0 | AI19: 12 | AJ19: 24 | AK19: 0 | AM19: 14 | AN19: 22 | AO19: 0 | AQ19: 0 | AR19: 0 | AS19: 0 | AU19: 0 | AV19: 0 | AW19: 0
A20: Bruno Camargos | B20: 112 | C20: 18 | D20: 18 | E20: 0 | G20: 18 | H20: 18 | I20: 0 | K20: 14 | L20: 22 | M20: 0 | O20: 14 | P20: 22 | Q20: 0 | S20: 0 | T20: 0 | U20: 0 | W20: 23 | X20: 13 | Y20: 0 | AA20: 0 | AB20: 0 | AC20: 0 | AE20: 0 | AF20: 0 | AG20: 0 | AI20: 17 | AJ20: 19 | AK20: 0 | AM20: 0 | AN20: 0 | AO20: 0 | AQ20: 0 | AR20: 0 | AS20: 0 | AU20: 0 | AV20: 0 | AW20: 0
A21: XXXXXX
A22: XXXXXX | B22: 0
A23: Essencia Studio | B23: 742 | D23: 76 | E23: 0 | H23: 48 | I23: 0 | L23: 58 | M23: 0 | P23: 70 | Q23: 0 | T23: 54 | U23: 0 | X23: 57 | Y23: 0 | AB23: 64 | AC23: 0 | AF23: 71 | AG23: 0 | AJ23: 57 | AK23: 0 | AN23: 68 | AO23: 0 | AR23: 60 | AS23: 1 | AV23: 58 | AW23: 0
A24: Alexandre Melillo | B24: 406 | C24: 5 | D24: 33 | E24: 0 | G24: 9 | H24: 27 | I24: 0 | K24: 6 | L24: 31 | M24: 0 | O24: 6 | P24: 31 | Q24: 0 | S24: 8 | T24: 28 | U24: 0 | W24: 3 | X24: 37 | Y24: 0 | AA24: 5 | AB24: 33 | AC24: 0 | AE24: 1 | AF24: 45 | AG24: 0 | AI24: 7 | AJ24: 29 | AK24: 0 | AM24: 1 | AN24: 45 | AO24: 0 | AQ24: 5 | AR24: 33 | AS24: 1 | AU24: 5 | AV24: 33 | AW24: 0
A25: Lúcio Chequer | B25: 284 | C25: 10 | D25: 26 | E25: 0 | G25: 29 | H25: 7 | I25: 0 | K25: 9 | L25: 27 | M25: 0 | O25: 18 | P25: 18 | Q25: 0 | S25: 10 | T25: 26 | U25: 0 | W25: 16 | X25: 20 | Y25: 0 | AA25: 6 | AB25: 31 | AC25: 0 | AE25: 10 | AF25: 26 | AG25: 0 | AI25: 8 | AJ25: 28 | AK25: 0 | AM25: 13 | AN25: 23 | AO25: 0 | AQ25: 9 | AR25: 27 | AS25: 0 | AU25: 11 | AV25: 25 | AW25: 0
A26: Lucas Mourão | B26: 52 | C26: 19 | D26: 17 | E26: 0 | G26: 22 | H26: 14 | I26: 0 | K26: 0 | L26: 0 | M26: 0 | O26: 15 | P26: 21 | Q26: 0 | S26: 0 | T26: 0 | U26: 0 | W26: 0 | X26: 0 | Y26: 0 | AA26: 0 | AB26: 0 | AC26: 0 | AE26: 0 | AF26: 0 | AG26: 0 | AI26: 0 | AJ26: 0 | AK26: 0 | AM26: 0 | AN26: 0 | AO26: 0 | AQ26: 0 | AR26: 0 | AS26: 0 | AU26: 0 | AV26: 0 | AW26: 0
A27: XXXXXX
A28: XXXXXX | B28: 0
A29: Gui Figueiredo | B29: 243 | D29: 34 | E29: 0 | H29: 45 | I29: 0 | L29: 16 | M29: 1 | P29: 17 | Q29: 0 | T29: 31 | U29: 0 | X29: 0 | Y29: 0 | AB29: 0 | AC29: 0 | AF29: 0 | AG29: 0 | AJ29: 23 | AK29: 0 | AN29: 20 | AO29: 0 | AR29: 29 | AS29: 0 | AV29: 27 | AW29: 0
A30: Mathias Almeida | B30: 57 | C30: 17 | D30: 19 | E30: 0 | G30: 15 | H30: 21 | I30: 0 | K30: 20 | L30: 16 | M30: 1 | O30: 0 | P30: 0 | Q30: 0 | S30: 0 | T30: 0 | U30: 0 | W30: 0 | X30: 0 | Y30: 0 | AA30: 0 | AB30: 0 | AC30: 0 | AE30: 0 | AF30: 0 | AG30: 0 | AI30: 0 | AJ30: 0 | AK30: 0 | AM30: 0 | AN30: 0 | AO30: 0 | AQ30: 0 | AR30: 0 | AS30: 0 | AU30: 0 | AV30: 0 | AW30: 0
A31: Aparecido Faria | B31: 154 | C31: 0 | D31: 0 | E31: 0 | G31: 12 | H31: 24 | I31: 0 | K31: 0 | L31: 0 | M31: 0 | O31: 0 | P31: 0 | Q31: 0 | S31: 6 | T31: 31 | U31: 0 | W31: 0 | X31: 0 | Y31: 0 | AA31: 0 | AB31: 0 | AC31: 0 | AE31: 0 | AF31: 0 | AG31: 0 | AI31: 13 | AJ31: 23 | AK31: 0 | AM31: 16 | AN31: 20 | AO31: 0 | AQ31: 7 | AR31: 29 | AS31: 0 | AU31: 9 | AV31: 27 | AW31: 0
A32: Pericles Barcelos | B32: 32 | C32: 21 | D32: 15 | E32: 0 | G32: 0 | H32: 0 | I32: 0 | K32: 0 | L32: 0 | M32: 0 | O32: 19 | P32: 17 | Q32: 0 | S32: 0 | T32: 0 | U32: 0 | W32: 0 | X32: 0 | Y32: 0 | AA32: 0 | AB32: 0 | AC32: 0 | AE32: 0 | AF32: 0 | AG32: 0 | AI32: 0 | AJ32: 0 | AK32: 0 | AM32: 0 | AN32: 0 | AO32: 0 | AQ32: 0 | AR32: 0 | AS32: 0 | AU32: 0 | AV32: 0 | AW32: 0
A33: XXXXXX
A34: XXXXXX | B34: 0
A35: Inovesa | B35: 377 | D35: 27 | E35: 0 | H35: 37 | I35: 0 | L35: 45 | M35: 0 | P35: 33 | Q35: 0 | T35: 45 | U35: 1 | X35: 63 | Y35: 0 | AB35: 61 | AC35: 0 | AF35: 0 | AG35: 0 | AJ35: 37 | AK35: 0 | AN35: 28 | AO35: 0 | AR35: 0 | AS35: 0 | AV35: 0 | AW35: 0
A36: Wilson Cristofani | B36: 42 | C36: 22 | D36: 14 | E36: 0 | G36: 0 | H36: 0 | I36: 0 | K36: 0 | L36: 0 | M36: 0 | O36: 0 | P36: 0 | Q36: 0 | S36: 0 | T36: 0 | U36: 0 | W36: 8 | X36: 28 | Y36: 0 | AA36: 0 | AB36: 0 | AC36: 0 | AE36: 0 | AF36: 0 | AG36: 0 | AI36: 0 | AJ36: 0 | AK36: 0 | AM36: 0 | AN36: 0 | AO36: 0 | AQ36: 0 | AR36: 0 | AS36: 0 | AU36: 0 | AV36: 0 | AW36: 0
A37: Leandro Leite | B37: 21 | C37: 0 | D37: 0 | E37: 0 | G37: 0 | H37: 0 | I37: 0 | K37: 0 | L37: 0 | M37: 0 | O37: 0 | P37: 0 | Q37: 0 | S37: 0 | T37: 0 | U37: 0 | W37: 0 | X37: 0 | Y37: 0 | AA37: 15 | AB37: 21 | AC37: 0 | AE37: 0 | AF37: 0 | AG37: 0 | AI37: 0 | AJ37: 0 | AK37: 0 | AM37: 0 | AN37: 0 | AO37: 0 | AQ37: 0 | AR37: 0 | AS37: 0 | AU37: 0 | AV37: 0 | AW37: 0
A38: Petronio Jr. | B38: 314 | C38: 23 | D38: 13 | E38: 0 | G38: 3 | H38: 37 | I38: 0 | K38: 1 | L38: 45 | M38: 0 | O38: 5 | P38: 33 | Q38: 0 | S38: 1 | T38: 45 | U38: 1 | W38: 4 | X38: 35 | Y38: 0 | AA38: 2 | AB38: 40 | AC38: 0 | AE38: 0 | AF38: 0 | AG38: 0 | AI38: 3 | AJ38: 37 | AK38: 0 | AM38: 8 | AN38: 28 | AO38: 0 | AQ38: 0 | AR38: 0 | AS38: 0 | AU38: 0 | AV38: 0 | AW38: 0
A39: XXXXXX
A40: XXXXXX | B40: 0
A41: Os Piratas | B41: 767 | D41: 56 | E41: 1 | H41: 69 | I41: 0 | L41: 69 | M41: 0 | P41: 71 | Q41: 0 | T41: 37 | U41: 0 | X41: 74 | Y41: 1 | AB41: 57 | AC41: 0 | AF41: 40 | AG41: 0 | AJ41: 85 | AK41: 1 | AN41: 56 | AO41: 0 | AR41: 73 | AS41: 0 | AV41: 77 | AW41: 0
A42: Fernando Mota | B42: 367 | C42: 1 | D42: 45 | E42: 1 | G42: 7 | H42: 29 | I42: 0 | K42: 7 | L42: 29 | M42: 0 | O42: 10 | P42: 26 | Q42: 0 | S42: 3 | T42: 37 | U42: 0 | W42: 7 | X42: 29 | Y42: 0 | AA42: 16 | AB42: 20 | AC42: 0 | AE42: 0 | AF42: 0 | AG42: 0 | AI42: 2 | AJ42: 40 | AK42: 0 | AM42: 7 | AN42: 29 | AO42: 0 | AQ42: 1 | AR42: 45 | AS42: 0 | AU42: 3 | AV42: 37 | AW42: 0
A43: Robert Freitas | B43: 0 | C43: 0 | D43: 0 | E43: 0 | G43: 0 | H43: 0 | I43: 0 | K43: 0 | L43: 0 | M43: 0 | O43: 0 | P43: 0 | Q43: 0 | S43: 0 | T43: 0 | U43: 0 | W43: 0 | X43: 0 | Y43: 0 | AA43: 0 | AB43: 0 | AC43: 0 | AE43: 0 | AF43: 0 | AG43: 0 | AI43: 0 | AJ43: 0 | AK43: 0 | AM43: 0 | AN43: 0 | AO43: 0 | AQ43: 0 | AR43: 0 | AS43: 0 | AU43: 0 | AV43: 0 | AW43: 0
A44: Lucas Rabelo | B44: 400 | C44: 25 | D44: 11 | E44: 0 | G44: 2 | H44: 40 | I44: 0 | K44: 2 | L44: 40 | M44: 0 | O44: 1 | P44: 45 | Q44: 0 | S44: 0 | T44: 0 | U44: 0 | W44: 1 | X44: 45 | Y44: 1 | AA44: 3 | AB44: 37 | AC44: 0 | AE44: 2 | AF44: 40 | AG44: 0 | AI44: 1 | AJ44: 45 | AK44: 1 | AM44: 9 | AN44: 27 | AO44: 0 | AQ44: 8 | AR44: 28 | AS44: 0 | AU44: 2 | AV44: 40 | AW44: 0
A45: XXXXXX
A46: XXXXXX | B46: 0
B47: 607 | D47: 54 | E47: 0 | H47: 51 | I47: 0 | L47: 83 | M47: 0 | P47: 53 | Q47: 0 | T47: 52 | U47: 0 | X47: 56 | Y47: 0 | AB47: 51 | AC47: 0 | AF47: 64 | AG47: 1 | AJ47: 43 | AK47: 0 | AN47: 49 | AO47: 0 | AR47: 24 | AS47: 0 | AV47: 26 | AW47: 0
A48: Anderson Oliveira | B48: 258 | C48: 11 | D48: 25 | E48: 0 | G48: 11 | H48: 25 | I48: 0 | K48: 8 | L48: 28 | M48: 0 | O48: 11 | P48: 25 | Q48: 0 | S48: 9 | T48: 27 | U48: 0 | W48: 6 | X48: 31 | Y48: 0 | AA48: 0 | AB48: 0 | AC48: 0 | AE48: 0 | AF48: 0 | AG48: 0 | AI48: 14 | AJ48: 22 | AK48: 0 | AM48: 11 | AN48: 25 | AO48: 0 | AQ48: 12 | AR48: 24 | AS48: 0 | AU48: 10 | AV48: 26 | AW48: 0
A49: Diego Silva | B49: 149 | C49: 7 | D49: 29 | E49: 0 | G49: 10 | H49: 26 | I49: 0 | K49: 4 | L49: 35 | M49: 0 | O49: 0 | P49: 0 | Q49: 0 | S49: 0 | T49: 0 | U49: 0 | W49: 0 | X49: 0 | Y49: 0 | AA49: 11 | AB49: 25 | AC49: 0 | AE49: 5 | AF49: 33 | AG49: 1 | AI49: 0 | AJ49: 0 | AK49: 0 | AM49: 0 | AN49: 0 | AO49: 0 | AQ49: 0 | AR49: 0 | AS49: 0 | AU49: 0 | AV49: 0 | AW49: 0
A50: Flavio Magalhães | B50: 200 | C50: 0 | D50: 0 | E50: 0 | G50: 0 | H50: 0 | I50: 0 | K50: 16 | L50: 20 | M50: 0 | O50: 8 | P50: 28 | Q50: 0 | S50: 11 | T50: 25 | U50: 0 | W50: 11 | X50: 25 | Y50: 0 | AA50: 10 | AB50: 26 | AC50: 0 | AE50: 6 | AF50: 31 | AG50: 0 | AI50: 15 | AJ50: 21 | AK50: 0 | AM50: 12 | AN50: 24 | AO50: 0 | AQ50: 0 | AR50: 0 | AS50: 0 | AU50: 0 | AV50: 0 | AW50: 0
A51: XXXXXX
A52: XXXXXX
B53: 346 | D53: 67 | E53: 0 | H53: 37 | I53: 0 | L53: 21 | M53: 0 | P53: 27 | Q53: 0 | T53: 29 | U53: 0 | X53: 0 | Y53: 0 | AB53: 0 | AC53: 0 | AF53: 29 | AG53: 0 | AJ53: 26 | AK53: 0 | AN53: 40 | AO53: 0 | AR53: 35 | AS53: 0 | AV53: 35 | AW53: 0
A54: Agostinho Neves | B54: 276 | C54: 2 | D54: 40 | E54: 0 | G54: 21 | H54: 15 | I54: 0 | K54: 0 | L54: 0 | M54: 0 | O54: 9 | P54: 27 | Q54: 0 | S54: 7 | T54: 29 | U54: 0 | W54: 0 | X54: 0 | Y54: 0 | AA54: 0 | AB54: 0 | AC54: 0 | AE54: 7 | AF54: 29 | AG54: 0 | AI54: 10 | AJ54: 26 | AK54: 0 | AM54: 2 | AN54: 40 | AO54: 0 | AQ54: 4 | AR54: 35 | AS54: 0 | AU54: 4 | AV54: 35 | AW54: 0
A55: Thales Silva | B55: 70 | C55: 9 | D55: 27 | E55: 0 | G55: 14 | H55: 22 | I55: 0 | K55: 15 | L55: 21 | M55: 0 | O55: 0 | P55: 0 | Q55: 0 | S55: 0 | T55: 0 | U55: 0 | W55: 0 | X55: 0 | Y55: 0 | AA55: 0 | AB55: 0 | AC55: 0 | AE55: 0 | AF55: 0 | AG55: 0 | AI55: 0 | AJ55: 0 | AK55: 0 | AM55: 0 | AN55: 0 | AO55: 0 | AQ55: 0 | AR55: 0 | AS55: 0 | AU55: 0 | AV55: 0 | AW55: 0
A56: Luis Cáceres | B56: 0 | C56: 0 | D56: 0 | E56: 0 | G56: 0 | H56: 0 | I56: 0 | K56: 0 | L56: 0 | M56: 0 | O56: 0 | P56: 0 | Q56: 0 | S56: 0 | T56: 0 | U56: 0 | W56: 0 | X56: 0 | Y56: 0 | AA56: 0 | AB56: 0 | AC56: 0 | AE56: 0 | AF56: 0 | AG56: 0 | AI56: 0 | AJ56: 0 | AK56: 0 | AM56: 0 | AN56: 0 | AO56: 0 | AQ56: 0 | AR56: 0 | AS56: 0 | AU56: 0 | AV56: 0 | AW56: 0
A57: XXXXXX
A58: XXXXXX
B59: 420 | D59: 78 | E59: 1 | H59: 83 | I59: 0 | L59: 43 | M59: 0 | P59: 40 | Q59: 1 | T59: 0 | U59: 0 | X59: 33 | Y59: 0 | AB59: 35 | AC59: 0 | AF59: 37 | AG59: 0 | AJ59: 31 | AK59: 0 | AN59: 37 | AO59: 1 | AR59: 0 | AS59: 0 | AV59: 0 | AW59: 0
A60: Marcus Gregorio | B60: 281 | C60: 6 | D60: 31 | E60: 0 | G60: 4 | H60: 35 | I60: 0 | K60: 0 | L60: 0 | M60: 0 | O60: 2 | P60: 40 | Q60: 1 | S60: 0 | T60: 0 | U60: 0 | W60: 5 | X60: 33 | Y60: 0 | AA60: 4 | AB60: 35 | AC60: 0 | AE60: 3 | AF60: 37 | AG60: 0 | AI60: 6 | AJ60: 31 | AK60: 0 | AM60: 3 | AN60: 37 | AO60: 1 | AQ60: 0 | AR60: 0 | AS60: 0 | AU60: 0 | AV60: 0 | AW60: 0
A61: Matheus Dias | B61: 56 | C61: 24 | D61: 12 | E61: 1 | G61: 19 | H61: 17 | I61: 0 | K61: 10 | L61: 26 | M61: 0 | O61: 0 | P61: 0 | Q61: 0 | S61: 0 | T61: 0 | U61: 0 | W61: 0 | X61: 0 | Y61: 0 | AA61: 0 | AB61: 0 | AC61: 0 | AE61: 0 | AF61: 0 | AG61: 0 | AI61: 0 | AJ61: 0 | AK61: 0 | AM61: 0 | AN61: 0 | AO61: 0 | AQ61: 0 | AR61: 0 | AS61: 0 | AU61: 0 | AV61: 0 | AW61: 0
A62: Felipe Curi | B62: 83 | C62: 4 | D62: 35 | E62: 0 | G62: 6 | H62: 31 | I62: 0 | K62: 19 | L62: 17 | M62: 0 | O62: 0 | P62: 0 | Q62: 0 | S62: 0 | T62: 0 | U62: 0 | W62: 0 | X62: 0 | Y62: 0 | AA62: 0 | AB62: 0 | AC62: 0 | AE62: 0 | AF62: 0 | AG62: 0 | AI62: 0 | AJ62: 0 | AK62: 0 | AM62: 0 | AN62: 0 | AO62: 0 | AQ62: 0 | AR62: 0 | AS62: 0 | AU62: 0 | AV62: 0 | AW62: 0
A63: XXXXXX
A64: XXXXXX
A65: Grupo Santiago / RNG1 | B65: 360 | D65: 0 | E65: 0 | H65: 0 | I65: 0 | L65: 19 | M65: 0 | P65: 44 | Q65: 0 | T65: 46 | U65: 0 | X65: 48 | Y65: 0 | AB65: 47 | AC65: 0 | AF65: 55 | AG65: 0 | AJ65: 20 | AK65: 0 | AN65: 26 | AO65: 0 | AR65: 26 | AS65: 0 | AV65: 29 | AW65: 0
A66: Gabriel Gontijo | B66: 195 | C66: 0 | D66: 0 | E66: 0 | G66: 0 | H66: 0 | I66: 0 | K66: 17 | L66: 19 | M66: 0 | O66: 12 | P66: 24 | Q66: 0 | S66: 12 | T66: 24 | U66: 0 | W66: 14 | X66: 22 | Y66: 0 | AA66: 12 | AB66: 24 | AC66: 0 | AE66: 9 | AF66: 27 | AG66: 0 | AI66: 0 | AJ66: 0 | AK66: 0 | AM66: 0 | AN66: 0 | AO66: 0 | AQ66: 10 | AR66: 26 | AS66: 0 | AU66: 7 | AV66: 29 | AW66: 0
A67: Vitor Diniz | B67: 165 | C67: 0 | D67: 0 | E67: 0 | G67: 0 | H67: 0 | I67: 0 | K67: 0 | L67: 0 | M67: 0 | O67: 16 | P67: 20 | Q67: 0 | S67: 14 | T67: 22 | U67: 0 | W67: 10 | X67: 26 | Y67: 0 | AA67: 13 | AB67: 23 | AC67: 0 | AE67: 8 | AF67: 28 | AG67: 0 | AI67: 16 | AJ67: 20 | AK67: 0 | AM67: 10 | AN67: 26 | AO67: 0 | AQ67: 0 | AR67: 0 | AS67: 0 | AU67: 0 | AV67: 0 | AW67: 0
A68: XXXXXX
A69: XXXXXX
A70: XXXXXX

Sheet Class Elimin 2 Piores Equip
A1: 2021 | D1: OK | H1: OK | L1: OK | P1: OK | T1: OK | X1: OK | AB1: OK | AF1: OK | AJ1: OK | AN1: OK | AR1: OK | AV1: OK
C2: 2ª etapa | G2: 5ª etapa | K2: 6ª etapa | O2: 7ª etapa | S2: 8ª etapa | W2: Etapa 9 09/09/2021 - 21:15 | AA2: Etapa 10 14/10/2021 - 21:15 | AE2: Etapa 11 11/11/2021 - 21:15 | AI2: Etapa 12 09/12/2021 - 21:15 | AM2: Etapa01 09/12/2021 - 22:45 | AQ2: Etapa 03 | AU2: Etapa 04
C3: SUPER | G3: 00:00:00 | K3: 00:00:00 | O3: 00:00:00 | S3: 2021-08-12 | W3: 00:00:00 | AA3: 00:00:00 | AE3: 00:00:00 | AI3: 00:00:00 | AM3: 00:00:00 | AQ3: 00:00:00 | AU3: 00:00:00
A4: EQUIPES | B4: Pontuação Geral | C4: Posição | D4: Pontos | E4: Bônus | F4: Penalidade | G4: Posição | H4: Pontos | I4: Bônus | J4: Penalidade | K4: Posição | L4: Pontos | M4: Bônus | N4: Penalidade | O4: Posição | P4: Pontos | Q4: Bônus | R4: Penalidade | S4: Posição | T4: Pontos | U4: Bônus | V4: Penalidade | W4: Posição | X4: Pontos | Y4: Bônus | Z4: Penalidade | AA4: Posição | AB4: Pontos | AC4: Bônus | AD4: Penalidade | AE4: Posição | AF4: Pontos | AG4: Bônus | AH4: Penalidade | AI4: Posição | AJ4: Pontos | AK4: Bônus | AL4: Penalidade | AM4: Posição | AN4: Pontos | AO4: Bônus | AP4: Penalidade | AQ4: Posição | AR4: Pontos | AS4: Bônus | AT4: Penalidade | AU4: Posição | AV4: Pontos | AW4: Bônus | AX4: Penalidade
A5: Os Piratas | B5: 690 | D5: 56 | E5: 1 | H5: 69 | I5: 0 | L5: 69 | M5: 0 | P5: 71 | Q5: 0 | T5: 37* | U5: 0 | X5: 74 | Y5: 1 | AB5: 57 | AC5: 0 | AF5: 40* | AG5: 0 | AJ5: 85 | AK5: 1 | AN5: 56 | AO5: 0 | AR5: 73 | AS5: 0 | AV5: 77 | AW5: 0
A6: Fernando Mota | B6: 330 | C6: 1 | D6: 45 | E6: 1 | G6: 7 | H6: 29 | I6: 0 | K6: 7 | L6: 29 | M6: 0 | O6: 10 | P6: 26 | Q6: 0 | S6: 3 | T6: 37* | U6: 0 | W6: 7 | X6: 29 | Y6: 0 | AA6: 16 | AB6: 20 | AC6: 0 | AE6: 0 | AF6: 0* | AG6: 0 | AI6: 2 | AJ6: 40 | AK6: 0 | AM6: 7 | AN6: 29 | AO6: 0 | AQ6: 1 | AR6: 45 | AS6: 0 | AU6: 3 | AV6: 37 | AW6: 0
A7: Robert Freitas | B7: 0 | C7: 0 | D7: 0 | E7: 0 | G7: 0 | H7: 0 | I7: 0 | K7: 0 | L7: 0 | M7: 0 | O7: 0 | P7: 0 | Q7: 0 | S7: 0 | T7: 0* | U7: 0 | W7: 0 | X7: 0 | Y7: 0 | AA7: 0 | AB7: 0 | AC7: 0 | AE7: 0 | AF7: 0* | AG7: 0 | AI7: 0 | AJ7: 0 | AK7: 0 | AM7: 0 | AN7: 0 | AO7: 0 | AQ7: 0 | AR7: 0 | AS7: 0 | AU7: 0 | AV7: 0 | AW7: 0
A8: Lucas Rabelo | B8: 360 | C8: 25 | D8: 11 | E8: 0 | G8: 2 | H8: 40 | I8: 0 | K8: 2 | L8: 40 | M8: 0 | O8: 1 | P8: 45 | Q8: 0 | S8: 0 | T8: 0* | U8: 0 | W8: 1 | X8: 45 | Y8: 1 | AA8: 3 | AB8: 37 | AC8: 0 | AE8: 2 | AF8: 40* | AG8: 0 | AI8: 1 | AJ8: 45 | AK8: 1 | AM8: 9 | AN8: 27 | AO8: 0 | AQ8: 8 | AR8: 28 | AS8: 0 | AU8: 2 | AV8: 40 | AW8: 0
A9: XXXXXX | B9: 0 | T9: * | AF9: *
A10: XXXXXX | B10: 0 | T10: * | AF10: *
A11: Grupo Santiago / RNG | B11: 664 | D11: 50* | E11: 0 | H11: 51 | I11: 0 | L11: 70 | M11: 0 | P11: 72 | Q11: 0 | T11: 73 | U11: 0 | X11: 61 | Y11: 0 | AB11: 58 | AC11: 1 | AF11: 24* | AG11: 0 | AJ11: 60 | AK11: 0 | AN11: 64 | AO11: 0 | AR11: 77 | AS11: 0 | AV11: 76 | AW11: 1
A12: Rafael Miranda | B12: 382 | C12: 8 | D12: 28* | E12: 0 | G12: 8 | H12: 28 | I12: 0 | K12: 3 | L12: 37 | M12: 0 | O12: 3 | P12: 37 | Q12: 0 | S12: 2 | T12: 40 | U12: 0 | W12: 2 | X12: 40 | Y12: 0 | AA12: 1 | AB12: 45 | AC12: 1 | AE12: 0 | AF12: 0* | AG12: 0 | AI12: 4 | AJ12: 35 | AK12: 0 | AM12: 5 | AN12: 33 | AO12: 0 | AQ12: 2 | AR12: 40 | AS12: 0 | AU12: 1 | AV12: 45 | AW12: 1
A13: Gladystone Reis | B13: 21 | C13: 14 | D13: 22* | E13: 0 | G13: 20 | H13: 16* | I13: 0 | K13: 18 | L13: 18* | M13: 0 | O13: 17 | P13: 19* | Q13: 0 | S13: 0 | T13: 0 | U13: 0 | W13: 15 | X13: 21 | Y13: 0 | AA13: 0 | AB13: 0 | AC13: 0 | AE13: 12 | AF13: 24* | AG13: 0 | AI13: 0 | AJ13: 0 | AK13: 0 | AM13: 0 | AN13: 0 | AO13: 0 | AQ13: 11 | AR13: 25* | AS13: 0 | AU13: 8 | AV13: 28* | AW13: 0
A14: Felipe Franca | B14: 261 | C14: 15 | D14: 21** | E14: 0 | G14: 13 | H14: 23 | I14: 0 | K14: 5 | L14: 33 | M14: 0 | O14: 4 | P14: 35 | Q14: 0 | S14: 5 | T14: 33 | U14: 0 | W14: 0 | X14: 0 | Y14: 0 | AA14: 23 | AB14: 13 | AC14: 0 | AE14: 0 | AF14: 0* | AG14: 0 | AI14: 11 | AJ14: 25 | AK14: 0 | AM14: 6 | AN14: 31 | AO14: 0 | AQ14: 3 | AR14: 37 | AS14: 0 | AU14: 6 | AV14: 31 | AW14: 0
A15: XXXXXX | B15: 0 | D15: * | AF15: *
A16: XXXXXX | B16: 0 | D16: * | AF16: *
A17: Essencia Studio | B17: 607 | D17: 59 | E17: 0 | H17: 41* | I17: 0 | L17: 58 | M17: 0 | P17: 52* | Q17: 0 | T17: 54 | U17: 0 | X17: 57 | Y17: 0 | AB17: 64 | AC17: 0 | AF17: 71 | AG17: 0 | AJ17: 57 | AK17: 0 | AN17: 68 | AO17: 0 | AR17: 60 | AS17: 1 | AV17: 58 | AW17: 0
A18: Alexandre Melillo | B18: 348 | C18: 5 | D18: 33 | E18: 0 | G18: 9 | H18: 27* | I18: 0 | K18: 6 | L18: 31 | M18: 0 | O18: 6 | P18: 31* | Q18: 0 | S18: 8 | T18: 28 | U18: 0 | W18: 3 | X18: 37 | Y18: 0 | AA18: 5 | AB18: 33 | AC18: 0 | AE18: 1 | AF18: 45 | AG18: 0 | AI18: 7 | AJ18: 29 | AK18: 0 | AM18: 1 | AN18: 45 | AO18: 0 | AQ18: 5 | AR18: 33 | AS18: 1 | AU18: 5 | AV18: 33 | AW18: 0
A19: Lúcio Chequer | B19: 259 | C19: 10 | D19: 26 | E19: 0 | G19: 29 | H19: 7** | I19: 0 | K19: 9 | L19: 27 | M19: 0 | O19: 18 | P19: 18** | Q19: 0 | S19: 10 | T19: 26 | U19: 0 | W19: 16 | X19: 20 | Y19: 0 | AA19: 6 | AB19: 31 | AC19: 0 | AE19: 10 | AF19: 26 | AG19: 0 | AI19: 8 | AJ19: 28 | AK19: 0 | AM19: 13 | AN19: 23 | AO19: 0 | AQ19: 9 | AR19: 27 | AS19: 0 | AU19: 11 | AV19: 25 | AW19: 0
A20: Lucas Mourão | B20: 0 | C20: 19 | D20: 17* | E20: 0 | G20: 22 | H20: 14* | I20: 0 | K20: 0 | L20: 0 | M20: 0 | O20: 15 | P20: 21* | Q20: 0 | S20: 0 | T20: 0 | U20: 0 | W20: 0 | X20: 0 | Y20: 0 | AA20: 0 | AB20: 0 | AC20: 0 | AE20: 0 | AF20: 0 | AG20: 0 | AI20: 0 | AJ20: 0 | AK20: 0 | AM20: 0 | AN20: 0 | AO20: 0 | AQ20: 0 | AR20: 0 | AS20: 0 | AU20: 0 | AV20: 0 | AW20: 0
A21: XXXXXX | B21: 0 | H21: * | P21: *
A22: XXXXXX | B22: 0 | H22: * | P22: *
B23: 537 | D23: 54 | E23: 0 | H23: 51 | I23: 0 | L23: 63 | M23: 0 | P23: 53 | Q23: 0 | T23: 52 | U23: 0 | X23: 56 | Y23: 0 | AB23: 51 | AC23: 0 | AF23: 64 | AG23: 1 | AJ23: 43 | AK23: 0 | AN23: 49 | AO23: 0 | AR23: 24* | AS23: 0 | AV23: 26* | AW23: 0
A24: Anderson Oliveira | B24: 208 | C24: 11 | D24: 25 | E24: 0 | G24: 11 | H24: 25 | I24: 0 | K24: 8 | L24: 28 | M24: 0 | O24: 11 | P24: 25 | Q24: 0 | S24: 9 | T24: 27 | U24: 0 | W24: 6 | X24: 31 | Y24: 0 | AA24: 0 | AB24: 0 | AC24: 0 | AE24: 0 | AF24: 0 | AG24: 0 | AI24: 14 | AJ24: 22 | AK24: 0 | AM24: 11 | AN24: 25 | AO24: 0 | AQ24: 12 | AR24: 24* | AS24: 0 | AU24: 10 | AV24: 26* | AW24: 0
A25: Diego Silva | B25: 149 | C25: 7 | D25: 29 | E25: 0 | G25: 10 | H25: 26 | I25: 0 | K25: 4 | L25: 35 | M25: 0 | O25: 0 | P25: 0 | Q25: 0 | S25: 0 | T25: 0 | U25: 0 | W25: 0 | X25: 0 | Y25: 0 | AA25: 11 | AB25: 25 | AC25: 0 | AE25: 5 | AF25: 33 | AG25: 1 | AI25: 0 | AJ25: 0 | AK25: 0 | AM25: 0 | AN25: 0 | AO25: 0 | AQ25: 0 | AR25: 0* | AS25: 0 | AU25: 0 | AV25: 0* | AW25: 0
A26: Flavio Magalhães | B26: 180 | C26: 0 | D26: 0 | E26: 0 | G26: 0 | H26: 0 | I26: 0 | K26: 16 | L26: 20* | M26: 0 | O26: 8 | P26: 28 | Q26: 0 | S26: 11 | T26: 25 | U26: 0 | W26: 11 | X26: 25 | Y26: 0 | AA26: 10 | AB26: 26 | AC26: 0 | AE26: 6 | AF26: 31 | AG26: 0 | AI26: 15 | AJ26: 21 | AK26: 0 | AM26: 12 | AN26: 24 | AO26: 0 | AQ26: 0 | AR26: 0* | AS26: 0 | AU26: 0 | AV26: 0* | AW26: 0
A27: XXXXXX | B27: 0 | AR27: * | AV27: *
A28: XXXXXX | B28: 0 | AR28: * | AV28: *
A29: O2BH / Pyramo Cervejaria | B29: 514 | D29: 47 | E29: 0 | H29: 64 | I29: 1 | L29: 47 | M29: 0 | P29: 51 | Q29: 0 | T29: 58 | U29: 0 | X29: 47 | Y29: 0 | AB29: 50 | AC29: 0 | AF29: 35 | AG29: 0 | AJ29: 57 | AK29: 0 | AN29: 57 | AO29: 0 | AR29: 31* | AS29: 0 | AV29: 24* | AW29: 0
A30: Anderson Teixeira | B30: 306 | C30: 12 | D30: 24 | E30: 0 | G30: 1 | H30: 45 | I30: 1 | K30: 12 | L30: 24 | M30: 0 | O30: 7 | P30: 29 | Q30: 0 | S30: 4 | T30: 35 | U30: 0 | W30: 13 | X30: 23 | Y30: 0 | AA30: 14 | AB30: 22 | AC30: 0 | AE30: 4 | AF30: 35 | AG30: 0 | AI30: 5 | AJ30: 33 | AK30: 0 | AM30: 4 | AN30: 35 | AO30: 0 | AQ30: 6 | AR30: 31* | AS30: 0 | AU30: 12 | AV30: 24* | AW30: 0
A31: Leodegario Junior | B31: 186 | C31: 13 | D31: 23 | E31: 0 | G31: 17 | H31: 19 | I31: 0 | K31: 13 | L31: 23 | M31: 0 | O31: 0 | P31: 0 | Q31: 0 | S31: 13 | T31: 23 | U31: 0 | W31: 12 | X31: 24 | Y31: 0 | AA31: 8 | AB31: 28 | AC31: 0 | AE31: 0 | AF31: 0 | AG31: 0 | AI31: 12 | AJ31: 24 | AK31: 0 | AM31: 14 | AN31: 22 | AO31: 0 | AQ31: 0 | AR31: 0* | AS31: 0 | AU31: 0 | AV31: 0* | AW31: 0
A32: Bruno Camargos | B32: 22 | C32: 18 | D32: 18* | E32: 0 | G32: 18 | H32: 18* | I32: 0 | K32: 14 | L32: 22* | M32: 0 | O32: 14 | P32: 22 | Q32: 0 | S32: 0 | T32: 0 | U32: 0 | W32: 23 | X32: 13* | Y32: 0 | AA32: 0 | AB32: 0 | AC32: 0 | AE32: 0 | AF32: 0 | AG32: 0 | AI32: 17 | AJ32: 19* | AK32: 0 | AM32: 0 | AN32: 0 | AO32: 0 | AQ32: 0 | AR32: 0* | AS32: 0 | AU32: 0 | AV32: 0* | AW32: 0
A33: XXXXXX | B33: 0 | AR33: * | AV33: *
A34: XXXXXX | B34: 0 | AR34: * | AV34: *
B35: 391 | D35: 66 | E35: 1 | H35: 66 | I35: 0 | L35: 43 | M35: 0 | P35: 40 | Q35: 1 | T35: 0 | U35: 0 | X35: 33 | Y35: 0 | AB35: 35 | AC35: 0 | AF35: 37 | AG35: 0 | AJ35: 31 | AK35: 0 | AN35: 37 | AO35: 1 | AR35: 0* | AS35: 0 | AV35: 0* | AW35: 0
A36: Marcus Gregorio | B36: 281 | C36: 6 | D36: 31 | E36: 0 | G36: 4 | H36: 35 | I36: 0 | K36: 0 | L36: 0 | M36: 0 | O36: 2 | P36: 40 | Q36: 1 | S36: 0 | T36: 0 | U36: 0 | W36: 5 | X36: 33 | Y36: 0 | AA36: 4 | AB36: 35 | AC36: 0 | AE36: 3 | AF36: 37 | AG36: 0 | AI36: 6 | AJ36: 31 | AK36: 0 | AM36: 3 | AN36: 37 | AO36: 1 | AQ36: 0 | AR36: 0* | AS36: 0 | AU36: 0 | AV36: 0* | AW36: 0
A37: Matheus Dias | B37: 27 | C37: 24 | D37: 12* | E37: 1 | G37: 19 | H37: 17* | I37: 0 | K37: 10 | L37: 26 | M37: 0 | O37: 0 | P37: 0 | Q37: 0 | S37: 0 | T37: 0 | U37: 0 | W37: 0 | X37: 0 | Y37: 0 | AA37: 0 | AB37: 0 | AC37: 0 | AE37: 0 | AF37: 0 | AG37: 0 | AI37: 0 | AJ37: 0 | AK37: 0 | AM37: 0 | AN37: 0 | AO37: 0 | AQ37: 0 | AR37: 0* | AS37: 0 | AU37: 0 | AV37: 0* | AW37: 0
A38: Felipe Curi | B38: 83 | C38: 4 | D38: 35 | E38: 0 | G38: 6 | H38: 31 | I38: 0 | K38: 19 | L38: 17 | M38: 0 | O38: 0 | P38: 0 | Q38: 0 | S38: 0 | T38: 0 | U38: 0 | W38: 0 | X38: 0 | Y38: 0 | AA38: 0 | AB38: 0 | AC38: 0 | AE38: 0 | AF38: 0 | AG38: 0 | AI38: 0 | AJ38: 0 | AK38: 0 | AM38: 0 | AN38: 0 | AO38: 0 | AQ38: 0 | AR38: 0* | AS38: 0 | AU38: 0 | AV38: 0* | AW38: 0
A39: XXXXXX | B39: 0 | AR39: * | AV39: *
A40: XXXXXX | B40: 0 | AR40: * | AV40: *
A41: Inovesa | B41: 377 | D41: 27 | E41: 0 | H41: 37 | I41: 0 | L41: 45 | M41: 0 | P41: 33 | Q41: 0 | T41: 45 | U41: 1 | X41: 63 | Y41: 0 | AB41: 61 | AC41: 0 | AF41: 0 | AG41: 0 | AJ41: 37 | AK41: 0 | AN41: 28 | AO41: 0 | AR41: 0* | AS41: 0 | AV41: 0* | AW41: 0
A42: Wilson Cristofani | B42: 42 | C42: 22 | D42: 14 | E42: 0 | G42: 0 | H42: 0 | I42: 0 | K42: 0 | L42: 0 | M42: 0 | O42: 0 | P42: 0 | Q42: 0 | S42: 0 | T42: 0 | U42: 0 | W42: 8 | X42: 28 | Y42: 0 | AA42: 0 | AB42: 0 | AC42: 0 | AE42: 0 | AF42: 0 | AG42: 0 | AI42: 0 | AJ42: 0 | AK42: 0 | AM42: 0 | AN42: 0 | AO42: 0 | AQ42: 0 | AR42: 0* | AS42: 0 | AU42: 0 | AV42: 0* | AW42: 0
A43: Leandro Leite | B43: 21 | C43: 0 | D43: 0 | E43: 0 | G43: 0 | H43: 0 | I43: 0 | K43: 0 | L43: 0 | M43: 0 | O43: 0 | P43: 0 | Q43: 0 | S43: 0 | T43: 0 | U43: 0 | W43: 0 | X43: 0 | Y43: 0 | AA43: 15 | AB43: 21 | AC43: 0 | AE43: 0 | AF43: 0 | AG43: 0 | AI43: 0 | AJ43: 0 | AK43: 0 | AM43: 0 | AN43: 0 | AO43: 0 | AQ43: 0 | AR43: 0* | AS43: 0 | AU43: 0 | AV43: 0* | AW43: 0
A44: Petronio Jr. | B44: 314 | C44: 23 | D44: 13 | E44: 0 | G44: 3 | H44: 37 | I44: 0 | K44: 1 | L44: 45 | M44: 0 | O44: 5 | P44: 33 | Q44: 0 | S44: 1 | T44: 45 | U44: 1 | W44: 4 | X44: 35 | Y44: 0 | AA44: 2 | AB44: 40 | AC44: 0 | AE44: 0 | AF44: 0 | AG44: 0 | AI44: 3 | AJ44: 37 | AK44: 0 | AM44: 8 | AN44: 28 | AO44: 0 | AQ44: 0 | AR44: 0* | AS44: 0 | AU44: 0 | AV44: 0* | AW44: 0
A45: XXXXXX | B45: 0 | AR45: * | AV45: *
A46: XXXXXX | B46: 0 | AR46: * | AV46: *
A47: Grupo Santiago / RNG1 | B47: 360 | D47: 0* | E47: 0 | H47: 0* | I47: 0 | L47: 19 | M47: 0 | P47: 44 | Q47: 0 | T47: 46 | U47: 0 | X47: 48 | Y47: 0 | AB47: 47 | AC47: 0 | AF47: 55 | AG47: 0 | AJ47: 20 | AK47: 0 | AN47: 26 | AO47: 0 | AR47: 26 | AS47: 0 | AV47: 29 | AW47: 0
A48: Gabriel Gontijo | B48: 195 | C48: 0 | D48: 0* | E48: 0 | G48: 0 | H48: 0* | I48: 0 | K48: 17 | L48: 19 | M48: 0 | O48: 12 | P48: 24 | Q48: 0 | S48: 12 | T48: 24 | U48: 0 | W48: 14 | X48: 22 | Y48: 0 | AA48: 12 | AB48: 24 | AC48: 0 | AE48: 9 | AF48: 27 | AG48: 0 | AI48: 0 | AJ48: 0 | AK48: 0 | AM48: 0 | AN48: 0 | AO48: 0 | AQ48: 10 | AR48: 26 | AS48: 0 | AU48: 7 | AV48: 29 | AW48: 0
A49: Vitor Diniz | B49: 165 | C49: 0 | D49: 0* | E49: 0 | G49: 0 | H49: 0* | I49: 0 | K49: 0 | L49: 0 | M49: 0 | O49: 16 | P49: 20 | Q49: 0 | S49: 14 | T49: 22 | U49: 0 | W49: 10 | X49: 26 | Y49: 0 | AA49: 13 | AB49: 23 | AC49: 0 | AE49: 8 | AF49: 28 | AG49: 0 | AI49: 16 | AJ49: 20 | AK49: 0 | AM49: 10 | AN49: 26 | AO49: 0 | AQ49: 0 | AR49: 0 | AS49: 0 | AU49: 0 | AV49: 0 | AW49: 0
A50: XXXXXX | B50: 0 | D50: * | H50: *
A51: XXXXXX | B51: 0 | D51: * | H51: *
A52: XXXXXX | B52: 0 | D52: * | H52: *
B53: 346 | D53: 67 | E53: 0 | H53: 37 | I53: 0 | L53: 21 | M53: 0 | P53: 27 | Q53: 0 | T53: 29 | U53: 0 | X53: 0* | Y53: 0 | AB53: 0* | AC53: 0 | AF53: 29 | AG53: 0 | AJ53: 26 | AK53: 0 | AN53: 40 | AO53: 0 | AR53: 35 | AS53: 0 | AV53: 35 | AW53: 0
A54: Agostinho Neves | B54: 276 | C54: 2 | D54: 40 | E54: 0 | G54: 21 | H54: 15 | I54: 0 | K54: 0 | L54: 0 | M54: 0 | O54: 9 | P54: 27 | Q54: 0 | S54: 7 | T54: 29 | U54: 0 | W54: 0 | X54: 0* | Y54: 0 | AA54: 0 | AB54: 0* | AC54: 0 | AE54: 7 | AF54: 29 | AG54: 0 | AI54: 10 | AJ54: 26 | AK54: 0 | AM54: 2 | AN54: 40 | AO54: 0 | AQ54: 4 | AR54: 35 | AS54: 0 | AU54: 4 | AV54: 35 | AW54: 0
A55: Thales Silva | B55: 70 | C55: 9 | D55: 27 | E55: 0 | G55: 14 | H55: 22 | I55: 0 | K55: 15 | L55: 21 | M55: 0 | O55: 0 | P55: 0 | Q55: 0 | S55: 0 | T55: 0 | U55: 0 | W55: 0 | X55: 0* | Y55: 0 | AA55: 0 | AB55: 0* | AC55: 0 | AE55: 0 | AF55: 0 | AG55: 0 | AI55: 0 | AJ55: 0 | AK55: 0 | AM55: 0 | AN55: 0 | AO55: 0 | AQ55: 0 | AR55: 0 | AS55: 0 | AU55: 0 | AV55: 0 | AW55: 0
A56: Luis Cáceres | B56: 0 | C56: 0 | D56: 0 | E56: 0 | G56: 0 | H56: 0 | I56: 0 | K56: 0 | L56: 0 | M56: 0 | O56: 0 | P56: 0 | Q56: 0 | S56: 0 | T56: 0 | U56: 0 | W56: 0 | X56: 0* | Y56: 0 | AA56: 0 | AB56: 0* | AC56: 0 | AE56: 0 | AF56: 0 | AG56: 0 | AI56: 0 | AJ56: 0 | AK56: 0 | AM56: 0 | AN56: 0 | AO56: 0 | AQ56: 0 | AR56: 0 | AS56: 0 | AU56: 0 | AV56: 0 | AW56: 0
A57: XXXXXX | B57: 0 | X57: * | AB57: *
A58: XXXXXX | B58: 0 | X58: * | AB58: *
A59: RBC Racing / Multiseg | B59: 335 | D59: 57 | E59: 0 | H59: 53 | I59: 0 | L59: 25 | M59: 0 | P59: 23 | Q59: 0 | T59: 21 | U59: 0 | X59: 27 | Y59: 0 | AB59: 56 | AC59: 0 | AF59: 25 | AG59: 0 | AJ59: 27 | AK59: 0 | AN59: 21 | AO59: 0 | AR59: 0* | AS59: 0 | AV59: 0* | AW59: 0
A60: Luciano Brandão | B60: 224 | C60: 3 | D60: 37 | E60: 0 | G60: 5 | H60: 33 | I60: 0 | K60: 11 | L60: 25 | M60: 0 | O60: 0 | P60: 0 | Q60: 0 | S60: 0 | T60: 0 | U60: 0 | W60: 9 | X60: 27 | Y60: 0 | AA60: 7 | AB60: 29 | AC60: 0 | AE60: 11 | AF60: 25 | AG60: 0 | AI60: 9 | AJ60: 27 | AK60: 0 | AM60: 15 | AN60: 21 | AO60: 0 | AQ60: 0 | AR60: 0* | AS60: 0 | AU60: 0 | AV60: 0* | AW60: 0
A61: João Ferreira | B61: 21 | C61: 20 | D61: 16* | E61: 0 | G61: 0 | H61: 0 | I61: 0 | K61: 0 | L61: 0 | M61: 0 | O61: 0 | P61: 0 | Q61: 0 | S61: 15 | T61: 21 | U61: 0 | W61: 0 | X61: 0 | Y61: 0 | AA61: 0 | AB61: 0 | AC61: 0 | AE61: 0 | AF61: 0 | AG61: 0 | AI61: 0 | AJ61: 0 | AK61: 0 | AM61: 0 | AN61: 0 | AO61: 0 | AQ61: 0 | AR61: 0* | AS61: 0 | AU61: 0 | AV61: 0* | AW61: 0
A62: Arthur Santiago | B62: 90 | C62: 16 | D62: 20 | E62: 0 | G62: 16 | H62: 20 | I62: 0 | K62: 0 | L62: 0 | M62: 0 | O62: 13 | P62: 23 | Q62: 0 | S62: 0 | T62: 0 | U62: 0 | W62: 0 | X62: 0 | Y62: 0 | AA62: 9 | AB62: 27 | AC62: 0 | AE62: 0 | AF62: 0 | AG62: 0 | AI62: 0 | AJ62: 0 | AK62: 0 | AM62: 0 | AN62: 0 | AO62: 0 | AQ62: 0 | AR62: 0* | AS62: 0 | AU62: 0 | AV62: 0* | AW62: 0
A63: XXXXXX | B63: 0 | AR63: * | AV63: *
A64: XXXXXX | B64: 0 | AR64: * | AV64: *
A65: Gui Figueiredo | B65: 243 | D65: 34 | E65: 0 | H65: 45 | I65: 0 | L65: 16 | M65: 1 | P65: 17 | Q65: 0 | T65: 31 | U65: 0 | X65: 0 | Y65: 0 | AB65: 0* | AC65: 0 | AF65: 0* | AG65: 0 | AJ65: 23 | AK65: 0 | AN65: 20 | AO65: 0 | AR65: 29 | AS65: 0 | AV65: 27 | AW65: 0
A66: Mathias Almeida | B66: 57 | C66: 17 | D66: 19 | E66: 0 | G66: 15 | H66: 21 | I66: 0 | K66: 20 | L66: 16 | M66: 1 | O66: 0 | P66: 0 | Q66: 0 | S66: 0 | T66: 0 | U66: 0 | W66: 0 | X66: 0 | Y66: 0 | AA66: 0 | AB66: 0* | AC66: 0 | AE66: 0 | AF66: 0* | AG66: 0 | AI66: 0 | AJ66: 0 | AK66: 0 | AM66: 0 | AN66: 0 | AO66: 0 | AQ66: 0 | AR66: 0 | AS66: 0 | AU66: 0 | AV66: 0 | AW66: 0
A67: Aparecido Faria | B67: 154 | C67: 0 | D67: 0 | E67: 0 | G67: 12 | H67: 24 | I67: 0 | K67: 0 | L67: 0 | M67: 0 | O67: 0 | P67: 0 | Q67: 0 | S67: 6 | T67: 31 | U67: 0 | W67: 0 | X67: 0 | Y67: 0 | AA67: 0 | AB67: 0* | AC67: 0 | AE67: 0 | AF67: 0* | AG67: 0 | AI67: 13 | AJ67: 23 | AK67: 0 | AM67: 16 | AN67: 20 | AO67: 0 | AQ67: 7 | AR67: 29 | AS67: 0 | AU67: 9 | AV67: 27 | AW67: 0
A68: Pericles Barcelos | B68: 32 | C68: 21 | D68: 15 | E68: 0 | G68: 0 | H68: 0 | I68: 0 | K68: 0 | L68: 0 | M68: 0 | O68: 19 | P68: 17 | Q68: 0 | S68: 0 | T68: 0 | U68: 0 | W68: 0 | X68: 0 | Y68: 0 | AA68: 0 | AB68: 0* | AC68: 0 | AE68: 0 | AF68: 0* | AG68: 0 | AI68: 0 | AJ68: 0 | AK68: 0 | AM68: 0 | AN68: 0 | AO68: 0 | AQ68: 0 | AR68: 0 | AS68: 0 | AU68: 0 | AV68: 0 | AW68: 0
A69: XXXXXX | B69: 0 | AB69: * | AF69: *
A70: XXXXXX | B70: 0 | AB70: * | AF70: *

Sheet Posição x Pontos
H1: Posição | I1: Pontos
H2: 1 | I2: 45
H3: 2 | I3: 40
H4: 3 | I4: 37
H5: 4 | I5: 35
H6: 5 | I6: 33
H7: 6 | I7: 31
H8: 7 | I8: 29
H9: 8 | I9: 28
H10: 9 | I10: 27
H11: 10 | I11: 26
H12: 11 | I12: 25
H13: 12 | I13: 24
H14: 13 | I14: 23
H15: 14 | I15: 22
H16: 15 | I16: 21
H17: 16 | I17: 20
H18: 17 | I18: 19
H19: 18 | I19: 18
H20: 19 | I20: 17
H21: 20 | I21: 16
H22: 21 | I22: 15
H23: 22 | I23: 14
H24: 23 | I24: 13
H25: 24 | I25: 12
H26: 25 | I26: 11
H27: 26 | I27: 10
H28: 27 | I28: 9
H29: 28 | I29: 8
H30: 29 | I30: 7
H31: 30 | I31: 6
H32: 31 | I32: 5
H33: 32 | I33: 4
H34: 33 | I34: 3
H35: 34 | I35: 2
H36: 35 | I36: 1
H37: 36 | I37: 1
